Workbook

Sheet Macros
C1: Debug Test | E1: FALSE | L1: CNTL, X and SHIFT, CNTL +
C3: https://www.sec.gov/ | Q3: SHIFT, CNTL, I
C5: Amazon | E5: 1018724 | F5: company
C6: Year | E6: 17 | F6: year
C7: Number | E7: 200 | F7: filing
C8: Number Text | E8: =TEXT(E7,"000000") -> 000200 | F8: filing_no | Q8: Shift, CNTL, C
C10: start filing | E10: 1 | F10: start filing
C11: end filing | E11: 160 | F11: end filing
C13: Start Year | E13: 17 | F13: start | H13: Download Type | J13: 10-K and 10-Q | K13: =MATCH(J13,D64:D67,0) -> 3 | Q13: Shift, CNTL, B
C14: End Year | E14: 20 | F14: end
C16: C:\Users\edwar\Documents\SEC Outputs\Amazon\ | H16: output folder
C18: =C31&E5&"/"&"000"&E5&E6&E8&"/Financial_Report.xlsx" -> https://www.sec.gov/Archives/edgar/data/1018724/000101872417000200/Financial_Report.xlsx | Q18: =active_book() -> Apple 2012 10-K.xlsx
C20: https://www.sec.gov/Archives/edgar/data/1018724/000101872417000011/Financial_Report.xlsx
C24: https://www.sec.gov/Archives/edgar/data/320193/000032019317000070/Financial_Report.xlsx
C28: URL's for SEC 10K for Amazon
C30: https://www.sec.gov/Archives/edgar/data/320193/000032019320000010/Financial_Report.xlsx
C31: https://www.sec.gov/Archives/edgar/data/
C32: https://www.sec.gov/Archives/edgar/data/320193/0000320193
C33: https://www.sec.gov/Archives/edgar/data/320193/000032019320
C34: https://www.sec.gov/Archives/edgar/data/320193/000032019320000010/Financial_Report.xlsx
C35: https://www.sec.gov/Archives/edgar/data/320193/000032019319000076/Financial_Report.xlsx
C37: https://www.sec.gov/Archives/edgar/data/320193/000119312509153165/Financial_Report.xls | M37: 2009 10-K
C38: https://www.sec.gov/Archives/edgar/data/320193/000119312510238044/Financial_Report.xls
C39: https://www.sec.gov/Archives/edgar/data/320193/000119312511282113/Financial_Report.xls
C40: https://www.sec.gov/Archives/edgar/data/320193/000119312512444068/Financial_Report.xls
C41: https://www.sec.gov/Archives/edgar/data/320193/000119312513416534/Financial_Report.xlsx
C42: https://www.sec.gov/Archives/edgar/data/320193/000119312514383437/Financial_Report.xlsx
C43: https://www.sec.gov/Archives/edgar/data/320193/000119312515356351/Financial_Report.xlsx
C45: https://www.sec.gov/Archives/edgar/data/320193/000162828016020309/Financial_Report.xlsx
C47: https://www.sec.gov/Archives/edgar/data/320193/000032019317000070/Financial_Report.xlsx
C49: https://www.sec.gov/Archives/edgar/data/320193/000032019320000010/Financial_Report.xlsx
C51: https://www.sec.gov/Archives/edgar/data/1018724/000101872419000004/Financial_Report.xlsx | M51: 1018724
C52: https://www.sec.gov/Archives/edgar/data/1018724/000101872417000011/Financial_Report.xlsx
C53: https://www.sec.gov/Archives/edgar/data/1018724/000101872418000005/Financial_Report.xlsx
C54: https://www.sec.gov/Archives/edgar/data/1018724/000101872417000011/Financial_Report.xlsx
C55: https://www.sec.gov/Archives/edgar/data/1018724/000101872420000004/Financial_Report.xlsx
C56: https://www.sec.gov/Archives/edgar/data/1018724/000119312512032846/Financial_Report.xls
C60: https://www.sec.gov/Archives/edgar/data/320193/000119312509153165/Financial_Report.xls
C61: https://www.sec.gov/Archives/edgar/data/320193/000119312509153165/Financial_Report.xls
D64: 10-K
D65: 10-Q
D66: 10-K and 10-Q
D67: All

Sheet 2009-2015 URL
P2: You can collect the 10k's from the SEC website
C3: =output_folder -> C:\Users\edwar\Documents\SEC Outputs\Amazon\ | G3: output folder
C4: Company Name | E4: Apple | P4: https://www.sec.gov/
C6: Year Number | E6: 8
A8: 1 | C8: 2009 10-K | E8: https://www.sec.gov/Archives/edgar/data/320193/000119312510012091/Financial_Report.xls
A9: 2 | C9: 2010 10-K | E9: https://www.sec.gov/Archives/edgar/data/320193/000119312510238044/Financial_Report.xls
A10: 3 | C10: 2011 10-K | E10: https://www.sec.gov/Archives/edgar/data/320193/000119312511282113/Financial_Report.xls
A11: 4 | C11: 2012 10-K | E11: https://www.sec.gov/Archives/edgar/data/320193/000119312512444068/Financial_Report.xls
A12: 5 | C12: 2013 10-K | E12: https://www.sec.gov/Archives/edgar/data/320193/000119312513416534/Financial_Report.xlsx
A13: 6 | C13: 2014 10-K | E13: https://www.sec.gov/Archives/edgar/data/320193/000119312514383437/Financial_Report.xlsx
A14: 7 | C14: 2015 10-K | E14: https://www.sec.gov/Archives/edgar/data/320193/000119312515356351/Financial_Report.xlsx
A15: 8 | C15: 2016 10-K | E15: https://www.sec.gov/Archives/edgar/data/320193/000162828016020309/Financial_Report.xlsx
C17: =INDEX(C8:C15,$E$6) -> 2016 10-K | E17: =INDEX(E8:E15,$E$6) -> https://www.sec.gov/Archives/edgar/data/320193/000162828016020309/Financial_Report.xlsx | O17: old_url

Sheet Total Financial Statements

Sheet Income Statement Formatted
B1: 2007 | C1: 2008 | D1: 2009 | E1: 2010 | F1: 2011 | G1: 2012 | H1: 2013 | I1: 2014 | J1: 2015 | K1: 2016 | L1: 2017 | M1: 2018 | N1: 2019
A2: Net sales | B2: 24578 | C2: 37491 | D2: 42905 | E2: 65225 | F2: 108249 | G2: 156508 | H2: 170910 | I2: 182795 | J2: 233715 | K2: 215639 | L2: 229234 | M2: 265595 | N2: 260174
A3: Cost of sales | B3: 16426 | C3: 24294 | D3: 25683 | E3: 39541 | F3: 64431 | G3: 87846 | H3: 106606 | I3: 112258 | J3: 140089 | K3: 131376 | L3: 141048 | M3: 163756 | N3: 161782
A4: Gross margin | B4: 8152 | C4: 13197 | D4: 17222 | E4: 25684 | F4: 43818 | G4: 68662 | H4: 64304 | I4: 70537 | J4: 93626 | K4: 84263 | L4: 88186 | M4: 101839 | N4: 98392
A5: Operating expenses:
A6: Research and development | B6: 782 | C6: 1109 | D6: 1333 | E6: 1782 | F6: 2429 | G6: 3381 | H6: 4475 | I6: 6041 | J6: 8067 | K6: 10045 | L6: 11581 | M6: 14236 | N6: 16217
A7: Selling, general and administrative | B7: 2963 | C7: 3761 | D7: 4149 | E7: 5517 | F7: 7599 | G7: 10040 | H7: 10830 | I7: 11993 | J7: 14329 | K7: 14194 | L7: 15261 | M7: 16705 | N7: 18245
A8: Total operating expenses | B8: 3745 | C8: 4870 | D8: 5482 | E8: 7299 | F8: 10028 | G8: 13421 | H8: 15305 | I8: 18034 | J8: 22396 | K8: 24239 | L8: 26842 | M8: 30941 | N8: 34462
A9: Operating income | B9: 4407 | C9: 8327 | D9: 11740 | E9: 18385 | F9: 33790 | G9: 55241 | H9: 48999 | I9: 52503 | J9: 71230 | K9: 60024 | L9: 61344 | M9: 70898 | N9: 63930
A10: Other income and expense | B10: 599 | C10: 620 | D10: 326 | E10: 155 | F10: 415 | G10: 522 | H10: 1156 | I10: 980 | J10: 1285 | K10: 1348 | L10: 2745 | M10: 2005 | N10: 1807
A11: Income before provision for income taxes | B11: 5006 | C11: 8947 | D11: 12066 | E11: 18540 | F11: 34205 | G11: 55763 | H11: 50155 | I11: 53483 | J11: 72515 | K11: 61372 | L11: 64089 | M11: 72903 | N11: 65737
A12: Provision for income taxes | B12: 1511 | C12: 2828 | D12: 3831 | E12: 4527 | F12: 8283 | G12: 14030 | H12: 13118 | I12: 13973 | J12: 19121 | K12: 15685 | L12: 15738 | M12: 13372 | N12: 10481
A13: Net income | B13: 3495 | C13: 6119 | D13: 8235 | E13: 14013 | F13: 25922 | G13: 41733 | H13: 37037 | I13: 39510 | J13: 53394 | K13: 45687 | L13: 48351 | M13: 59531 | N13: 55256
A15: Gross Margin % | B15: =B3/B2 -> 0.6683212629 | C15: =C3/C2 -> 0.6479955189 | D15: =D3/D2 -> 0.5986015616 | E15: 0.6062246071 | F15: 0.5952110412 | G15: 0.5612876019 | H15: 0.6237551928 | I15: 0.6141196422 | J15: 0.5994009798 | K15: 0.6092404435 | L15: 0.6153013951 | M15: 0.6165628118 | N15: 0.6218223189
A16: Sales Growth | C16: =C2/B2-1 -> 0.5253885589 | D16: =D2/C2-1 -> 0.1444079913 | E16: 0.5202190887 | F16: 0.6596243772 | G16: 0.4458147419 | H16: 0.09202085516 | I16: 0.06953952373 | J16: 0.278563418 | K16: -0.07734206191 | L16: 0.06304518199 | M16: 0.1586195765 | N16: -0.02041077581
A18: COGS - Depreciation | B18: =B3-'Cash Flow Formatted'!B6 -> 15692 | C18: =C3-'Cash Flow Formatted'!C6 -> 23798 | D18: =D3-'Cash Flow Formatted'!D6 -> 25356 | E18: =E3-'Cash Flow Formatted'!E6 -> 38514 | F18: =F3-'Cash Flow Formatted'!F6 -> 62617 | G18: =G3-'Cash Flow Formatted'!G6 -> 84569 | H18: =H3-'Cash Flow Formatted'!H6 -> 99849 | I18: =I3-'Cash Flow Formatted'!I6 -> 104312 | J18: =J3-'Cash Flow Formatted'!J6 -> 128832 | K18: =K3-'Cash Flow Formatted'!K6 -> 120871 | L18: =L3-'Cash Flow Formatted'!L6 -> 130891 | M18: =M3-'Cash Flow Formatted'!M6 -> 152853 | N18: =N3-'Cash Flow Formatted'!N6 -> 149235
A19: Adjusted Margin | B19: =B2-B18 -> 8886 | C19: =C2-C18 -> 13693 | D19: 17549 | E19: 26711 | F19: 45632 | G19: 71939 | H19: 71061 | I19: 78483 | J19: 104883 | K19: 94768 | L19: 98343 | M19: 112742 | N19: 110939
B20: =B19/B2 -> 0.3615428432 | C20: =C19/C2 -> 0.3652343229 | D20: 0.4090199277 | E20: 0.4095208892 | F20: 0.4215466194 | G20: 0.4596506249 | H20: 0.4157802352 | I20: 0.4293498181 | J20: 0.4487645209 | K20: 0.4394752341 | L20: 0.4290070408 | M20: 0.4244884128 | N20: 0.4264030995
A22: Tax Rate | B22: =B12/B11 -> 0.3018377946 | C22: =C12/C11 -> 0.3160836034 | D22: 0.3175037295 | E22: 0.2441747573 | F22: 0.2421575793 | G22: 0.2516005236 | H22: 0.2615491975 | I22: 0.2612605875 | J22: 0.2636833759 | K22: 0.2555725738 | L22: 0.2455647615 | M22: 0.1834218071 | N22: 0.159438368
A24: Cash Taxes | B24: ='Cash Flow Formatted'!B53 -> 2997 | C24: ='Cash Flow Formatted'!C53 -> 1267 | D24: ='Cash Flow Formatted'!D53 -> 863 | E24: ='Cash Flow Formatted'!E53 -> 2697 | F24: ='Cash Flow Formatted'!F53 -> 3338 | G24: ='Cash Flow Formatted'!G53 -> 7682 | H24: ='Cash Flow Formatted'!H53 -> 9128 | I24: ='Cash Flow Formatted'!I53 -> 10026 | J24: ='Cash Flow Formatted'!J53 -> 13252 | K24: ='Cash Flow Formatted'!K53 -> 10444 | L24: ='Cash Flow Formatted'!L53 -> 11591 | M24: ='Cash Flow Formatted'!M53 -> 10417 | N24: ='Cash Flow Formatted'!N53 -> 15263
B25: =B24/B11 -> 0.5986815821 | C25: =C24/C11 -> 0.1416117134 | D25: 0.07152328858 | E25: 0.1454692557 | F25: 0.09758807192 | G25: 0.1377615982 | H25: 0.181995813 | I25: 0.1874614363 | J25: 0.1827483969 | K25: 0.1701753243 | L25: 0.1808578695 | M25: 0.1428884957 | N25: 0.232182789
A27: EBIT | B27: =B9 -> 4407 | C27: =C9 -> 8327 | D27: 11740 | E27: 18385 | F27: 33790 | G27: 55241 | H27: 48999 | I27: 52503 | J27: 71230 | K27: 60024 | L27: 61344 | M27: 70898 | N27: 63930
A28: After Tax | B28: =B27*(1-B22) -> 3076.800839 | C28: =C27*(1-C22) -> 5694.971834 | D28: 8012.506216 | E28: 13895.84709 | F28: 25607.4954 | G28: 41342.33547 | H28: 36183.35087 | I28: 38786.03538 | J28: 52447.83314 | K28: 44683.51183 | L28: 46280.07527 | M28: 57893.76072 | N28: 53737.10513
A29: Adjusted | B29: =(B9+B6)*(1-B25) -> 2082.44127 | C29: =(C9+C6)*(1-C25) -> 8099.751872 | D29: 12137.97605 | E29: 17233.32152 | F29: 32684.45762 | G29: 50546.13959 | H29: 43741.9559 | I29: 47569.25767 | J29: 64805.60037 | K29: 58144.9852 | L29: 59735.93986 | M29: 72969.33081 | N29: 61538.24601
A32: Acccumulate R&D | C32: =C6+B6 -> 1891 | D32: =D6+C6 -> 2442 | E32: 3115 | F32: 4211 | G32: 5810 | H32: 7856 | I32: 10516 | J32: 14108 | K32: 18112 | L32: 21626 | M32: 25817 | N32: 30453
A34: Invested Capital | B34: =AVERAGE('Balance Sheet Formatted'!F40:G40) -> 320 | C34: =AVERAGE('Balance Sheet Formatted'!G40:H40) -> 1161.5 | D34: =AVERAGE('Balance Sheet Formatted'!H40:I40) -> 2726.5 | E34: =AVERAGE('Balance Sheet Formatted'!I40:J40) -> 5140.5 | F34: =AVERAGE('Balance Sheet Formatted'!J40:K40) -> 11551 | G34: =AVERAGE('Balance Sheet Formatted'!K40:L40) -> 16426 | H34: =AVERAGE('Balance Sheet Formatted'!L40:M40) -> 18020.5 | I34: =AVERAGE('Balance Sheet Formatted'!M40:N40) -> 17264 | J34: =AVERAGE('Balance Sheet Formatted'!N40:O40) -> 15884 | K34: =AVERAGE('Balance Sheet Formatted'!O40:P40) -> 20391.5 | L34: =AVERAGE('Balance Sheet Formatted'!P40:Q40) -> 28295 | M34: =AVERAGE('Balance Sheet Formatted'!Q40:R40) -> 37823.5 | N34: =AVERAGE('Balance Sheet Formatted'!R40:S40) -> 43140
A35: Adjusted Invested Capita | C35: =C34+C32 -> 3052.5 | D35: =D34+D32 -> 5168.5 | E35: 8255.5 | F35: 15762 | G35: 22236 | H35: 25876.5 | I35: 27780 | J35: 29992 | K35: 38503.5 | L35: 49921 | M35: 63640.5 | N35: 73593
A37: ROIC | D37: =D28/D34 -> 2.938751592 | E37: =E28/E34 -> 2.703209238 | F37: =F28/F34 -> 2.216907228 | G37: =G28/G34 -> 2.516883932 | H37: =H28/H34 -> 2.007899385 | I37: =I28/I34 -> 2.246642457 | J37: =J28/J34 -> 3.301928553 | K37: =K28/K34 -> 2.191281261 | L37: =L28/L34 -> 1.635627329 | M37: =M28/M34 -> 1.53062939 | N37: =N28/N34 -> 1.245644532
A38: Adjusted ROIC | C38: =C29/C35 -> 2.653481367 | D38: =D29/D35 -> 2.348452365 | E38: 2.087495793 | F38: 2.073623755 | G38: 2.273166918 | H38: 1.690412378 | I38: 1.712356288 | J38: 2.160762883 | K38: 1.510122072 | L38: 1.19660944 | M38: 1.146586385 | N38: 0.8361970026
A40: ROE | C40: =C13/'Balance Sheet Formatted'!G36 -> 0.2744315379 | D40: =D13/'Balance Sheet Formatted'!H36 -> 0.2602718078 | E40: =E13/'Balance Sheet Formatted'!I36 -> 0.2932142035 | F40: =F13/'Balance Sheet Formatted'!J36 -> 0.3383410559 | G40: =G13/'Balance Sheet Formatted'!K36 -> 0.3530411979 | H40: =H13/'Balance Sheet Formatted'!L36 -> 0.2997757975 | I40: =I13/'Balance Sheet Formatted'!M36 -> 0.3542004716 | J40: =J13/'Balance Sheet Formatted'!N36 -> 0.4473545306 | K40: =K13/'Balance Sheet Formatted'!O36 -> 0.3562366958 | L40: =L13/'Balance Sheet Formatted'!P36 -> 0.3607018434 | M40: =M13/'Balance Sheet Formatted'!Q36 -> 0.5556011834 | N40: =N13/'Balance Sheet Formatted'!R36 -> 0.6106445053
A44: Earnings per common share:
A45: Earnings per share:
A46: Basic (in dollars per share) | B46: 4.039999962 | C46: 6.940000057 | D46: 9.220000267 | E46: 15.40999985 | F46: 28.04999924 | G46: 44.63999939 | H46: 5.71999979 | I46: 6.489999771 | J46: 9.279999733 | K46: 8.350000381 | L46: 9.270000458 | M46: 12.01000023 | N46: 11.97000027
A47: Diluted (in dollars per share) | B47: 3.930000067 | C47: 6.78000021 | D47: 9.079999924 | E47: 15.14999962 | F47: 27.68000031 | G47: 44.15000153 | H47: 5.679999828 | I47: 6.449999809 | J47: 9.220000267 | K47: 8.31000042 | L47: 9.210000038 | M47: 11.90999985 | N47: 11.89000034
A48: Basic
A49: Basic (in shares) | B49: 0 | C49: 0 | D49: 0 | E49: 0 | F49: 0 | G49: 0 | H49: 0 | I49: 0 | J49: 0 | K49: 5470820 | L49: 5217242 | M49: 4955377 | N49: 4617834
A50: Diluted (in shares) | B50: 0 | C50: 0 | D50: 0 | E50: 0 | F50: 0 | G50: 0 | H50: 0 | I50: 0 | J50: 0 | K50: 5500281 | L50: 5251692 | M50: 5000109 | N50: 4648913
A51: Cash dividends declared per common share | B51: 0 | C51: 0 | D51: 0 | E51: 0 | F51: 0 | G51: 2.650000095 | H51: 1.639999986 | I51: 1.820000052 | J51: 1.980000019 | K51: 2.180000067 | L51: 2.400000095 | M51: 0 | N51: 0
A52: Products
A53: Net sales Products | B53: 0 | C53: 0 | D53: 0 | E53: 0 | F53: 0 | G53: 0 | H53: 0 | I53: 0 | J53: 0 | K53: 0 | L53: 0 | M53: 225847 | N53: 213883
A54: Cost of sales Products | B54: 0 | C54: 0 | D54: 0 | E54: 0 | F54: 0 | G54: 0 | H54: 0 | I54: 0 | J54: 0 | K54: 0 | L54: 0 | M54: 148164 | N54: 144996
A55: Services | B55: 0 | C55: 0 | D55: 0 | E55: 0 | F55: 0 | G55: 0 | H55: 0 | I55: 0 | J55: 0 | K55: 0 | L55: 0 | M55: 0 | N55: 0
A56: Net sales Services | B56: 0 | C56: 0 | D56: 0 | E56: 0 | F56: 0 | G56: 0 | H56: 0 | I56: 0 | J56: 0 | K56: 0 | L56: 0 | M56: 39748 | N56: 46291

Sheet Cash Flow Formatted
A1: Cash and cash equivalents, beginning of the year
A2: Cash, cash equivalents and restricted cash, beginning balances | B2: 2009 | C2: 2008 | D2: 2007 | E2: 2010 | F2: 2011 | G2: 2012 | H2: 2013 | I2: 2014 | J2: 2015 | K2: 2016 | L2: 2017 | M2: 2018 | N2: 2019
A3: Operating activities:
A4: Net income | B4: 8235 | C4: 6119 | D4: 3495 | E4: 14013 | F4: 25922 | G4: 41733 | H4: 37037 | I4: 39510 | J4: 53394 | K4: 45687 | L4: 48351 | M4: 59531 | N4: 55256
A5: Adjustments to reconcile net income to cash generated by operating activities:
A6: Depreciation and amortization | B6: 734 | C6: 496 | D6: 327 | E6: 1027 | F6: 1814 | G6: 3277 | H6: 6757 | I6: 7946 | J6: 11257 | K6: 10505 | L6: 10157 | M6: 10903 | N6: 12547
A7: Share-based compensation expense | B7: 710 | C7: 516 | D7: 242 | E7: 879 | F7: 1168 | G7: 1740 | H7: 2253 | I7: 2863 | J7: 3586 | K7: 4210 | L7: 4840 | M7: 5340 | N7: 6068
A8: Deferred income tax expense | B8: 1040 | C8: 398 | D8: 73 | E8: 1440 | F8: 2868 | G8: 4405 | H8: 1141 | I8: 2347 | J8: 1382 | K8: 4938 | L8: 5966 | M8: -32590 | N8: -340
A9: Accounts receivable, net | B9: -939 | C9: -785 | D9: -385 | E9: -2142 | F9: 143 | G9: -5551 | H9: -2172 | I9: -4232 | J9: 611 | K9: 1095 | L9: -2093 | M9: -5322 | N9: 245
A10: Inventories | B10: 54 | C10: -163 | D10: -76 | E10: -596 | F10: 275 | G10: -15 | H10: -973 | I10: -76 | J10: -238 | K10: 217 | L10: -2723 | M10: 828 | N10: -289
A11: Other current and non-current assets | B11: 0 | C11: 0 | D11: 0 | E11: 0 | F11: -1391 | G11: -3162 | H11: 1080 | I11: 167 | J11: -179 | K11: 1090 | L11: -5318 | M11: -423 | N11: 873
A12: Vendor non-trade receivables | B12: 0 | C12: 0 | D12: 0 | E12: -2718 | F12: -1934 | G12: -1414 | H12: 223 | I12: -2220 | J12: -3735 | K12: -51 | L12: -4254 | M12: -8010 | N12: 2931
A13: Other current assets | B13: 749 | C13: -274 | D13: -1279 | E13: -1514 | F13: 0 | G13: 0 | H13: 0 | I13: 0 | J13: 0 | K13: 0 | L13: 0 | M13: 0 | N13: 0
A14: Accounts payable | B14: 92 | C14: 596 | D14: 1494 | E14: 6307 | F14: 2515 | G14: 4467 | H14: 2340 | I14: 5938 | J14: 5400 | K14: 1791 | L14: 8966 | M14: 9175 | N14: -1923
A15: Deferred revenue | B15: 521 | C15: 718 | D15: 566 | E15: 1217 | F15: 1654 | G15: 2824 | H15: 1459 | I15: 1460 | J15: 1042 | K15: -1554 | L15: -626 | M15: -44 | N15: -625
A16: Other assets | B16: -902 | C16: 289 | D16: 285 | E16: -120 | F16: 0 | G16: 0 | H16: 0 | I16: 0 | J16: 0 | K16: 0 | L16: 0 | M16: 0 | N16: 0
A17: Other current and non-current liabilities | B17: 0 | C17: 0 | D17: 0 | E17: 0 | F17: 4495 | G17: 2552 | H17: 4521 | I17: 6010 | J17: 8746 | K17: -2104 | L17: 1125 | M17: 38490 | N17: -4700
A18: Cash generated by operating activities | B18: 10159 | C18: 9596 | D18: 5470 | E18: 18595 | F18: 37529 | G18: 50856 | H18: 53666 | I18: 59713 | J18: 81266 | K18: 65824 | L18: 64225 | M18: 77434 | N18: 69391
A19: Other liabilities | B19: -161 | C19: 1664 | D19: 716 | E19: 778 | F19: 0 | G19: 0 | H19: 0 | I19: 0 | J19: 0 | K19: 0 | L19: 0 | M19: 0 | N19: 0
A20: Investing Activities:
A21: Payments for acquisition of property, plant and equipment | B21: -1144 | C21: -1091 | D21: -735 | E21: -2005 | F21: -4260 | G21: -8295 | H21: -8165 | I21: -9571 | J21: -11247 | K21: -12734 | L21: -12451 | M21: -13313 | N21: -10495
A22: Loss on disposition of property, plant and equipment | B22: 26 | C22: 22 | D22: 12 | E22: 24 | F22: 0 | G22: 0 | H22: 0 | I22: 0 | J22: 0 | K22: 0 | L22: 0 | M22: 0 | N22: 0
A23: Proceeds from maturities of marketable securities | B23: 19790 | C23: 11804 | D23: 6483 | E23: 24930 | F23: 20437 | G23: 13035 | H23: 20317 | I23: 18810 | J23: 14538 | K23: 21258 | L23: 31775 | M23: 55881 | N23: 40102
A24: Proceeds from sales of marketable securities | B24: 10888 | C24: 4439 | D24: 2941 | E24: 21788 | F24: 49416 | G24: 99770 | H24: 104130 | I24: 189301 | J24: 107447 | K24: 90536 | L24: 94564 | M24: 47838 | N24: 56988
A25: Purchases of marketable securities | B25: -46724 | C25: -22965 | D25: -11719 | E25: -57793 | F25: -102317 | G25: -151232 | H25: -148489 | I25: -217128 | J25: -166402 | K25: -142428 | L25: -159486 | M25: -71356 | N25: -39630
A26: Payments made in connection with business acquisitions, net | B26: 0 | C26: -220 | D26: 0 | E26: -638 | F26: -244 | G26: -350 | H26: -496 | I26: -3765 | J26: -343 | K26: -297 | L26: -329 | M26: -721 | N26: -624
A27: Payments made in connection with business acquisitions, net of cash acquired | B27: 0 | H27: 0 | I27: 0 | J27: 0 | K27: -1388 | L27: 0 | M27: 0 | N27: 0
A28: Payments for acquisition of intangible assets | B28: -69 | C28: -108 | D28: -251 | E28: -116 | F28: -3192 | G28: -1107 | H28: -911 | I28: -242 | J28: -241 | K28: -814 | L28: 0 | M28: 0 | N28: 0
A29: Purchases of other long-term investments | B29: -101 | C29: -38 | D29: -17 | E29: -18 | F29: 0 | G29: 0 | H29: 0 | I29: 0 | J29: 0 | K29: 0 | L29: 0 | M29: 0 | N29: 0
A30: Other | B30: -74 | C30: -10 | D30: 49 | E30: -2 | F30: -259 | G30: -48 | H30: -160 | I30: 16 | J30: -26 | K30: -110 | L30: -166 | M30: -444 | N30: -652
A31: Purchases of non-marketable securities | B31: 0 | C31: 0 | D31: 0 | E31: 0 | F31: 0 | G31: 0 | H31: 0 | I31: 0 | J31: 0 | K31: 0 | L31: -521 | M31: -1871 | N31: -1001
A32: Proceeds from non-marketable securities | B32: 0 | C32: 0 | D32: 0 | E32: 0 | F32: 0 | G32: 0 | H32: 0 | I32: 0 | J32: 0 | K32: 0 | L32: 126 | M32: 353 | N32: 1634
A33: Cash generated by/(used in) investing activities | B33: -17434 | C33: -8189 | D33: -3249 | E33: -13854 | F33: -40419 | G33: -48227 | H33: -33774 | I33: -22579 | J33: -56274 | K33: -45977 | L33: -46446 | M33: 16066 | N33: 45896
A34: Financing activities: | B34: 0 | C34: 0 | D34: 0 | E34: 0 | F34: 0 | G34: 0 | H34: 0 | I34: 0 | J34: 0 | K34: 0 | L34: 0 | M34: 0 | N34: 0
A35: Cash used in investing activities | L35: 0 | M35: 0 | N35: 0
A36: Excess tax benefits from equity awards | B36: 270 | C36: 757 | D36: 377 | E36: 751 | F36: 1133 | G36: 1351 | H36: 701 | I36: 739 | J36: 749 | K36: 407 | L36: 0 | M36: 0 | N36: 0
A37: Financing Activities: | B37: 0 | C37: 0 | D37: 0 | E37: 0 | F37: 0 | G37: 0 | H37: 0 | I37: 0 | J37: 0 | K37: 0 | L37: 0 | M37: 0 | N37: 0
A38: Proceeds from issuance of common stock | B38: 475 | C38: 483 | D38: 365 | E38: 912 | F38: 831 | G38: 665 | H38: 530 | I38: 730 | J38: 543 | K38: 495 | L38: 555 | M38: 669 | N38: 781
A39: Dividends and dividend equivalents paid | B39: 0 | C39: 0 | D39: 0 | E39: 0 | F39: 0 | G39: -2488 | H39: -10564 | I39: -11126 | J39: 0 | K39: 0 | L39: 0 | M39: 0 | N39: 0
A40: Payments for taxes related to net share settlement of equity awards | B40: 0 | C40: 0 | D40: 0 | E40: -406 | F40: -520 | G40: -1226 | H40: -1082 | I40: -1158 | J40: -1499 | K40: -1570 | L40: -1874 | M40: -2527 | N40: -2817
A41: Payments for dividends and dividend equivalents | B41: 0 | C41: 0 | D41: 0 | E41: 0 | F41: 0 | G41: 0 | H41: 0 | I41: 0 | J41: -11561 | K41: -12150 | L41: 12769 | M41: 13712 | N41: 14119
A42: Cash used to net share settle equity awards | B42: -82 | C42: -124 | D42: -3 | E42: 0 | F42: 0 | G42: 0 | H42: 0 | I42: 0 | J42: 0 | K42: 0 | L42: 0 | M42: 0 | N42: 0
A43: Proceeds from issuance of long-term debt, net | B43: 0 | C43: 0 | D43: 0 | E43: 0 | F43: 0 | G43: 0 | H43: 16896 | I43: 11960 | J43: 0 | K43: 0 | L43: 0 | M43: 0 | N43: 0
A44: Repurchases of common stock | B44: 0 | C44: 0 | D44: 0 | E44: 0 | F44: 0 | G44: 0 | H44: -22860 | I44: -45000 | J44: -35253 | K44: -29722 | L44: -32900 | M44: -72738 | N44: -66897
A45: Cash and cash equivalents, end of the year | B45: 5263 | C45: 11875 | D45: 9352 | E45: 11261 | F45: 9815 | G45: 10746 | H45: 14259 | I45: 13844 | J45: 21120 | K45: 20484 | L45: 20289 | M45: 25913 | N45: 0
A46: Proceeds from issuance of commercial paper, net | B46: 663 | C46: 1116 | D46: 739 | E46: 1257 | F46: 0 | G46: 0 | H46: 0 | I46: 6306 | J46: 27114 | K46: 24954 | L46: 28662 | M46: 6969 | N46: 6963
A47: (Decrease)/increase in cash and cash equivalents | B47: -6612 | C47: 2523 | D47: 2960 | E47: 5998 | F47: -1446 | G47: 931 | H47: 3513 | I47: -415 | J47: 0 | K47: 0 | L47: 0 | M47: 0 | N47: 0
A48: Repayments of term debt | B48: 0 | C48: 0 | D48: 0 | E48: 0 | F48: 0 | G48: 0 | H48: 0 | I48: 0 | J48: 0 | K48: -2500 | L48: -3500 | M48: -6500 | N48: -8805
A49: Change in commercial paper, net | B49: 0 | C49: 0 | D49: 0 | E49: 0 | F49: 0 | G49: 0 | H49: 0 | I49: 0 | J49: 2191 | K49: -397 | L49: 3852 | M49: -37 | N49: -5977
A50: Cash used in financing activities | B50: 0 | C50: 0 | D50: 0 | E50: 0 | F50: 1444 | G50: -1698 | H50: -16379 | I50: -37549 | J50: -17716 | K50: -20483 | L50: -17974 | M50: -87876 | N50: -90976
A51: Cash, cash equivalents and restricted cash, ending balances | B51: 0 | C51: 0 | D51: 0 | E51: 0 | F51: 0 | G51: 0 | H51: 0 | I51: 0 | J51: 7276 | K51: -636 | L51: -195 | M51: 5624 | N51: 24311
A52: Supplemental cash flow disclosures: | B52: 0 | C52: 0 | D52: 0 | E52: 0 | F52: 0 | G52: 0 | H52: 0 | I52: 0 | J52: 0 | K52: 0 | L52: 0 | M52: 0 | N52: 50224
A53: Cash paid for income taxes, net | B53: 2997 | C53: 1267 | D53: 863 | E53: 2697 | F53: 3338 | G53: 7682 | H53: 9128 | I53: 10026 | J53: 13252 | K53: 10444 | L53: 11591 | M53: 10417 | N53: 15263
A54: Cash paid for interest | B54: 0 | C54: 0 | D54: 0 | E54: 0 | F54: 0 | G54: 0 | H54: 0 | I54: 339 | J54: 514 | K54: 1316 | L54: 2092 | M54: 3022 | N54: 3423

Sheet Balance Sheet Formatted
D1: Current assets: | E1: Financing | F1: Direct | G1: 2008 | H1: 2009 | I1: 2010 | J1: 2011 | K1: 2012 | L1: 2013 | M1: 2014 | N1: 2015 | O1: 2016 | P1: 2017 | Q1: 2018 | R1: 2019
D2: Cash and cash equivalents | E2: -1 | G2: 11875 | H2: 5263 | I2: 11261 | J2: 9815 | K2: 10746 | L2: 14259 | M2: 13844 | N2: 21120 | O2: 20484 | P2: 20289 | Q2: 25913 | R2: 48844
D3: Short-term marketable securities | E3: -1 | G3: 10236 | H3: 18201 | I3: 14359 | J3: 16137 | K3: 18383 | L3: 26287 | M3: 11233 | N3: 20481 | O3: 46671 | P3: 0 | Q3: 0 | R3: 0
D4: Accounts receivable, net | F4: 1 | G4: 2422 | H4: 3361 | I4: 5510 | J4: 5369 | K4: 10930 | L4: 13102 | M4: 17460 | N4: 16849 | O4: 15754 | P4: 17874 | Q4: 23186 | R4: 22926
D5: Inventories | F5: 1 | G5: 509 | H5: 455 | I5: 1051 | J5: 776 | K5: 791 | L5: 1764 | M5: 2111 | N5: 2349 | O5: 2132 | P5: 4855 | Q5: 3956 | R5: 4106
D6: Deferred tax assets | F6: 1 | G6: 1044 | H6: 1135 | I6: 1636 | J6: 2014 | K6: 2583 | L6: 3453 | M6: 4318 | N6: 0 | O6: 0 | P6: 0 | Q6: 0 | R6: 0
D7: Vendor non-trade receivables | F7: 1 | G7: 0 | H7: 0 | I7: 4414 | J7: 6348 | K7: 7762 | L7: 7539 | M7: 9759 | N7: 13494 | O7: 13545 | P7: 17799 | Q7: 25809 | R7: 22878
D8: Other current assets | F8: 1 | G8: 3920 | H8: 3140 | I8: 3447 | J8: 4529 | K8: 6458 | L8: 6882 | M8: 9806 | N8: 15085 | O8: 8283 | P8: 13936 | Q8: 12087 | R8: 12352
D9: Total current assets | G9: 30006 | H9: 31555 | I9: 41678 | J9: 44988 | K9: 57653 | L9: 73286 | M9: 68531 | N9: 89378 | O9: 106869 | P9: 128645 | Q9: 131339 | R9: 162819
D10: Non-current assets:
D11: Long-term marketable securities | E11: -1 | G11: 2379 | H11: 10528 | I11: 25391 | J11: 55618 | K11: 92122 | L11: 106215 | M11: 130162 | N11: 164065 | O11: 170430 | P11: 53892 | Q11: 40388 | R11: 51713
D12: Property, plant and equipment, net | F12: 1 | G12: 2455 | H12: 2954 | I12: 4768 | J12: 7777 | K12: 15452 | L12: 16597 | M12: 20624 | N12: 22471 | O12: 27010 | P12: 33783 | Q12: 41304 | R12: 37378
D13: Goodwill | F13: 1 | G13: 207 | H13: 206 | I13: 741 | J13: 896 | K13: 1135 | L13: 1577 | M13: 4616 | N13: 5116 | O13: 5414 | P13: 0 | Q13: 0 | R13: 0
D14: Other non-current assets | F14: 1 | G14: 839 | H14: 2011 | I14: 2263 | J14: 3556 | K14: 5478 | L14: 5146 | M14: 3764 | N14: 5422 | O14: 8757 | P14: 18177 | Q14: 22283 | R14: 32978
D15: Acquired intangible assets, net | F15: 1 | G15: 285 | H15: 247 | I15: 342 | J15: 3536 | K15: 4224 | L15: 4179 | M15: 4142 | N15: 3893 | O15: 3206 | P15: 0 | Q15: 0 | R15: 0
D16: Total non-current assets | G16: 0 | H16: 0 | I16: 0 | J16: 0 | K16: 0 | L16: 0 | M16: 0 | N16: 0 | O16: 0 | P16: 246674 | Q16: 234386 | R16: 175697
D17: Total assets | G17: 36171 | H17: 47501 | I17: 75183 | J17: 116371 | K17: 176064 | L17: 207000 | M17: 231839 | N17: 290345 | O17: 321686 | P17: 375319 | Q17: 365725 | R17: 338516
D18: Current liabilities:
D19: Accounts payable | F19: -1 | G19: 5520 | H19: 5601 | I19: 12015 | J19: 14632 | K19: 21175 | L19: 22367 | M19: 30196 | N19: 35490 | O19: 37294 | P19: 44242 | Q19: 55888 | R19: 46236
D20: Accrued expenses | F20: -1 | G20: 4224 | H20: 3852 | I20: 5723 | J20: 9247 | K20: 11414 | L20: 13856 | M20: 18453 | N20: 25181 | O20: 22027 | P20: 30551 | Q20: 32687 | R20: 37720
D21: Deferred revenue | F21: -1 | G21: 1617 | H21: 2053 | I21: 2984 | J21: 4091 | K21: 5953 | L21: 7435 | M21: 8491 | N21: 8940 | O21: 8080 | P21: 7548 | Q21: 7543 | R21: 5522
D22: Commercial paper | E22: 1 | G22: 0 | H22: 0 | I22: 0 | J22: 0 | K22: 0 | L22: 0 | M22: 6308 | N22: 8499 | O22: 8105 | P22: 11977 | Q22: 11964 | R22: 5980
D23: Current portion of long-term debt | E23: 1 | G23: 0 | H23: 0 | I23: 0 | J23: 0 | K23: 0 | L23: 0 | M23: 0 | N23: 2500 | O23: 3500 | P23: 6496 | Q23: 8784 | R23: 10260
D24: Deferred revenue - non-current | E24: 1 | G24: 768 | H24: 853 | I24: 1139 | J24: 1686 | K24: 2648 | L24: 2625 | M24: 3031 | N24: 3624 | O24: 2930 | P24: 0 | Q24: 0 | R24: 0
D25: Other non-current liabilities | E25: 1 | G25: 1745 | H25: 3502 | I25: 5531 | J25: 10100 | K25: 16664 | L25: 20208 | M25: 24826 | N25: 33427 | O25: 36074 | P25: 40415 | Q25: 45180 | R25: 50503
D26: Total current liabilities | G26: 11361 | H26: 11506 | I26: 20722 | J26: 27970 | K26: 38542 | L26: 43658 | M26: 63448 | N26: 80610 | O26: 79006 | P26: 100814 | Q26: 116866 | R26: 105718
D27: Non-current liabilities:
D28: Long-term debt | E28: 1 | G28: 0 | H28: 0 | I28: 0 | J28: 0 | K28: 0 | L28: 16960 | M28: 28987 | N28: 53329 | O28: 75427 | P28: 0 | Q28: 0 | R28: 0
D29: Total liabilities | G29: 13874 | H29: 15861 | I29: 27392 | J29: 39756 | K29: 57854 | L29: 83451 | M29: 120292 | N29: 170990 | O29: 193437 | P29: 241272 | Q29: 258578 | R29: 248028
D30: Total non-current liabilities | G30: 0 | H30: 0 | I30: 0 | J30: 0 | K30: 0 | L30: 0 | M30: 0 | N30: 0 | O30: 0 | P30: 140458 | Q30: 141712 | R30: 142310
D32: Common stock Issued | G32: 7177 | H32: 8210 | I32: 10668 | J32: 13331 | K32: 16422 | L32: 19764 | M32: 23313 | N32: 27416 | O32: 31251 | P32: 35867 | Q32: 40201 | R32: 45174
D33: Shareholders' equity:
D34: Retained earnings | G34: 15129 | H34: 23353 | I34: 37169 | J34: 62841 | K34: 101289 | L34: 104256 | M34: 87152 | N34: 92284 | O34: 96364 | P34: 98330 | Q34: 70400 | R34: 45898
D35: Accumulated other comprehensive income/(loss) | G35: -9 | H35: 77 | I35: -46 | J35: 443 | K35: 499 | L35: -471 | M35: 1082 | N35: -345 | O35: 634 | P35: -150 | Q35: -3454 | R35: -584
D36: Total shareholders’ equity | E36: 1 | G36: 22297 | H36: 31640 | I36: 47791 | J36: 76615 | K36: 118210 | L36: 123549 | M36: 111547 | N36: 119355 | O36: 128249 | P36: 134047 | Q36: 107147 | R36: 90488
D37: Total liabilities and shareholders’ equity | G37: 36171 | H37: 47501 | I37: 75183 | J37: 116371 | K37: 176064 | L37: 207000 | M37: 231839 | N37: 290345 | O37: 321686 | P37: 375319 | Q37: 365725 | R37: 338516
D39: Invested Capital | G39: =SUMPRODUCT(G2:G36,$F$2:$F$36) -> 320 | H39: =SUMPRODUCT(H2:H36,$F$2:$F$36) -> 2003 | I39: 3450 | J39: 6831 | K39: 16271 | L39: 16581 | M39: 19460 | N39: 15068 | O39: 16700 | P39: 24083 | Q39: 32507 | R39: 43140
D40: Invested Capital - Financing | G40: =SUMPRODUCT(G2:G36*$F$2:$F$36) -> 320 | H40: =SUMPRODUCT(H2:H36*$F$2:$F$36) -> 2003 | I40: =SUMPRODUCT(I2:I36*$F$2:$F$36) -> 3450 | J40: =SUMPRODUCT(J2:J36*$F$2:$F$36) -> 6831 | K40: =SUMPRODUCT(K2:K36*$F$2:$F$36) -> 16271 | L40: =SUMPRODUCT(L2:L36*$F$2:$F$36) -> 16581 | M40: =SUMPRODUCT(M2:M36*$F$2:$F$36) -> 19460 | N40: =SUMPRODUCT(N2:N36*$F$2:$F$36) -> 15068 | O40: =SUMPRODUCT(O2:O36*$F$2:$F$36) -> 16700 | P40: =SUMPRODUCT(P2:P36*$F$2:$F$36) -> 24083 | Q40: =SUMPRODUCT(Q2:Q36*$F$2:$F$36) -> 32507 | R40: =SUMPRODUCT(R2:R36*$F$2:$F$36) -> 43140
G43: =G1 -> 2008 | H43: =H1 -> 2009 | I43: 2010 | J43: 2011 | K43: 2012 | L43: 2013 | M43: 2014 | N43: 2015 | O43: 2016 | P43: 2017 | Q43: 2018 | R43: 2019
D44: Total Cash and Investments | G44: =G2+G3+G11 -> 24490 | H44: =H2+H3+H11 -> 33992 | I44: 51011 | J44: 81570 | K44: 121251 | L44: 146761 | M44: 155239 | N44: 205666 | O44: 237585 | P44: 74181 | Q44: 66301 | R44: 100557

Sheet Income Statement
A1: =union(T3:T20,X3:X20,AB3:AB21,AF3:AF21,AJ3:AJ21,AN3:AN22,AR3:AR26) -> Income Statement [Abstract] | B1: Income Statement [Abstract] | C1: 2009 | D1: 2008 | E1: 2007 | F1: 2010 | G1: 2012 | H1: 2011 | I1: 2013 | J1: 2014 | K1: 2015 | L1: 2016 | M1: 2017 | N1: 2018 | O1: 2019 | T1: Statement Of Income (USD $) | X1: CONSOLIDATED STATEMENTS OF OPERATIONS (USD $) | Y1: 12 Months Ended | AB1: CONSOLIDATED STATEMENTS OF OPERATIONS (USD $) | AC1: 12 Months Ended | AF1: CONSOLIDATED STATEMENTS OF OPERATIONS (USD $) | AG1: 12 Months Ended | AJ1: CONSOLIDATED STATEMENTS OF OPERATIONS - USD ($) shares in Thousands, $ in Millions | AK1: 12 Months Ended | AN1: CONSOLIDATED STATEMENTS OF OPERATIONS - USD ($) shares in Thousands, $ in Millions | AO1: 12 Months Ended | AR1: CONSOLIDATED STATEMENTS OF OPERATIONS - USD ($) shares in Thousands, $ in Millions | AS1: 12 Months Ended
A2: Net sales | B2: Net sales | C2: =indmat(B2,T:T,U:U) -> 42905 | D2: =indmat(B2,T:T,V:V) -> 37491 | E2: =indmat(B2,T:T,W:W) -> 24578 | F2: =indmat(B2,X:X,Y:Y) -> 65225 | G2: =indmat(B2,AB:AB,AC:AC) -> 156508 | H2: =indmat(B2,AB:AB,AD:AD) -> 108249 | I2: =indmat(B2,AF:AF,AH:AH) -> 170910 | J2: =indmat(B2,AF:AF,AG:AG) -> 182795 | K2: =indmat(B2,AJ:AJ,AK:AK) -> 233715 | L2: =indmat(B2,AN:AN,AP:AP) -> 215639 | M2: =indmat(B2,AN:AN,AO:AO) -> 229234 | N2: =indmat(B2,AR:AR,AT:AT) -> 265595 | O2: =indmat(B2,AR:AR,AS:AS) -> 260174 | T2: In Millions, except Share data in Thousands | U2: 12 Months Ended Sep. 26, 2009 | V2: 12 Months Ended Sep. 27, 2008 | W2: 12 Months Ended Sep. 29, 2007 | X2: In Millions, except Share data in Thousands, unless otherwise specified | Y2: Sep. 25, 2010 | Z2: Sep. 26, 2009 | AA2: Sep. 27, 2008 | AB2: In Millions, except Share data in Thousands, unless otherwise specified | AC2: Sep. 29, 2012 | AD2: Sep. 24, 2011 | AE2: Sep. 25, 2010 | AF2: In Millions, except Share data in Thousands, unless otherwise specified | AG2: Sep. 27, 2014 | AH2: Sep. 28, 2013 | AI2: Sep. 29, 2012 | AK2: Sep. 26, 2015 | AL2: Sep. 27, 2014 | AM2: Sep. 28, 2013 | AO2: Sep. 30, 2017 | AP2: Sep. 24, 2016 | AQ2: Sep. 26, 2015 | AS2: Sep. 28, 2019 | AT2: Sep. 29, 2018 | AU2: Sep. 30, 2017
A3: Gross margin | B3: Cost of sales | C3: =indmat(B3,T:T,U:U) -> 25683 | D3: =indmat(B3,T:T,V:V) -> 24294 | E3: =indmat(B3,T:T,W:W) -> 16426 | F3: =indmat(B3,X:X,Y:Y) -> 39541 | G3: =indmat(B3,AB:AB,AC:AC) -> 87846 | H3: =indmat(B3,AB:AB,AD:AD) -> 64431 | I3: =indmat(B3,AF:AF,AH:AH) -> 106606 | J3: =indmat(B3,AF:AF,AG:AG) -> 112258 | K3: =indmat(B3,AJ:AJ,AK:AK) -> 140089 | L3: =indmat(B3,AN:AN,AP:AP) -> 131376 | M3: =indmat(B3,AN:AN,AO:AO) -> 141048 | N3: =indmat(B3,AR:AR,AT:AT) -> 163756 | O3: =indmat(B3,AR:AR,AS:AS) -> 161782 | T3: Net sales | U3: 42905 | V3: 37491 | W3: 24578 | X3: Net sales | Y3: 65225 | Z3: 42905 | AA3: 37491 | AB3: Net sales | AC3: 156508 | AD3: 108249 | AE3: 65225 | AF3: Net sales | AG3: 182795 | AH3: 170910 | AI3: 156508 | AJ3: Net sales | AK3: 233715 | AL3: 182795 | AM3: 170910 | AN3: Income Statement [Abstract] | AR3: Net sales | AS3: 260174 | AT3: 265595 | AU3: 229234
A4: Operating expenses: | B4: Gross margin | C4: =indmat(B4,T:T,U:U) -> 17222 | D4: =indmat(B4,T:T,V:V) -> 13197 | E4: =indmat(B4,T:T,W:W) -> 8152 | F4: =indmat(B4,X:X,Y:Y) -> 25684 | G4: =indmat(B4,AB:AB,AC:AC) -> 68662 | H4: =indmat(B4,AB:AB,AD:AD) -> 43818 | I4: =indmat(B4,AF:AF,AH:AH) -> 64304 | J4: =indmat(B4,AF:AF,AG:AG) -> 70537 | K4: =indmat(B4,AJ:AJ,AK:AK) -> 93626 | L4: =indmat(B4,AN:AN,AP:AP) -> 84263 | M4: =indmat(B4,AN:AN,AO:AO) -> 88186 | N4: =indmat(B4,AR:AR,AT:AT) -> 101839 | O4: =indmat(B4,AR:AR,AS:AS) -> 98392 | T4: Cost of sales | U4: 25683 | V4: 24294 | W4: 16426 | X4: Cost of sales | Y4: 39541 | Z4: 25683 | AA4: 24294 | AB4: Cost of sales | AC4: 87846 | AD4: 64431 | AE4: 39541 | AF4: Cost of sales | AG4: 112258 | AH4: 106606 | AI4: 87846 | AJ4: Cost of sales | AK4: 140089 | AL4: 112258 | AM4: 106606 | AN4: Net sales | AO4: 229234 | AP4: 215639 | AQ4: 233715 | AR4: Cost of sales | AS4: 161782 | AT4: 163756 | AU4: 141048
A5: Research and development | B5: Operating expenses: | T5: Gross margin | U5: 17222 | V5: 13197 | W5: 8152 | X5: Gross margin | Y5: 25684 | Z5: 17222 | AA5: 13197 | AB5: Gross margin | AC5: 68662 | AD5: 43818 | AE5: 25684 | AF5: Gross margin | AG5: 70537 | AH5: 64304 | AI5: 68662 | AJ5: Gross margin | AK5: 93626 | AL5: 70537 | AM5: 64304 | AN5: Cost of sales | AO5: 141048 | AP5: 131376 | AQ5: 140089 | AR5: Gross margin | AS5: 98392 | AT5: 101839 | AU5: 88186
A6: Selling, general and administrative | B6: Research and development | C6: =indmat(B6,T:T,U:U) -> 1333 | D6: =indmat(B6,T:T,V:V) -> 1109 | E6: =indmat(B6,T:T,W:W) -> 782 | F6: =indmat(B6,X:X,Y:Y) -> 1782 | G6: =indmat(B6,AB:AB,AC:AC) -> 3381 | H6: =indmat(B6,AB:AB,AD:AD) -> 2429 | I6: =indmat(B6,AF:AF,AH:AH) -> 4475 | J6: =indmat(B6,AF:AF,AG:AG) -> 6041 | K6: =indmat(B6,AJ:AJ,AK:AK) -> 8067 | L6: =indmat(B6,AN:AN,AP:AP) -> 10045 | M6: =indmat(B6,AN:AN,AO:AO) -> 11581 | N6: =indmat(B6,AR:AR,AT:AT) -> 14236 | O6: =indmat(B6,AR:AR,AS:AS) -> 16217 | T6: Operating expenses: | X6: Operating expenses: | AB6: Operating expenses: | AF6: Operating expenses: | AG6: ' | AH6: ' | AI6: ' | AJ6: Operating expenses: | AN6: Gross margin | AO6: 88186 | AP6: 84263 | AQ6: 93626 | AR6: Operating expenses:
A7: Total operating expenses | B7: Selling, general and administrative | C7: =indmat(B7,T:T,U:U) -> 4149 | D7: =indmat(B7,T:T,V:V) -> 3761 | E7: =indmat(B7,T:T,W:W) -> 2963 | F7: =indmat(B7,X:X,Y:Y) -> 5517 | G7: =indmat(B7,AB:AB,AC:AC) -> 10040 | H7: =indmat(B7,AB:AB,AD:AD) -> 7599 | I7: =indmat(B7,AF:AF,AH:AH) -> 10830 | J7: =indmat(B7,AF:AF,AG:AG) -> 11993 | K7: =indmat(B7,AJ:AJ,AK:AK) -> 14329 | L7: =indmat(B7,AN:AN,AP:AP) -> 14194 | M7: =indmat(B7,AN:AN,AO:AO) -> 15261 | N7: =indmat(B7,AR:AR,AT:AT) -> 16705 | O7: =indmat(B7,AR:AR,AS:AS) -> 18245 | T7: Research and development | U7: 1333 | V7: 1109 | W7: 782 | X7: Research and development | Y7: 1782 | Z7: 1333 | AA7: 1109 | AB7: Research and development | AC7: 3381 | AD7: 2429 | AE7: 1782 | AF7: Research and development | AG7: 6041 | AH7: 4475 | AI7: 3381 | AJ7: Research and development | AK7: 8067 | AL7: 6041 | AM7: 4475 | AN7: Operating expenses: | AR7: Research and development | AS7: 16217 | AT7: 14236 | AU7: 11581
A8: Operating income | B8: Total operating expenses | C8: =indmat(B8,T:T,U:U) -> 5482 | D8: =indmat(B8,T:T,V:V) -> 4870 | E8: =indmat(B8,T:T,W:W) -> 3745 | F8: =indmat(B8,X:X,Y:Y) -> 7299 | G8: =indmat(B8,AB:AB,AC:AC) -> 13421 | H8: =indmat(B8,AB:AB,AD:AD) -> 10028 | I8: =indmat(B8,AF:AF,AH:AH) -> 15305 | J8: =indmat(B8,AF:AF,AG:AG) -> 18034 | K8: =indmat(B8,AJ:AJ,AK:AK) -> 22396 | L8: =indmat(B8,AN:AN,AP:AP) -> 24239 | M8: =indmat(B8,AN:AN,AO:AO) -> 26842 | N8: =indmat(B8,AR:AR,AT:AT) -> 30941 | O8: =indmat(B8,AR:AR,AS:AS) -> 34462 | T8: Selling, general and administrative | U8: 4149 | V8: 3761 | W8: 2963 | X8: Selling, general and administrative | Y8: 5517 | Z8: 4149 | AA8: 3761 | AB8: Selling, general and administrative | AC8: 10040 | AD8: 7599 | AE8: 5517 | AF8: Selling, general and administrative | AG8: 11993 | AH8: 10830 | AI8: 10040 | AJ8: Selling, general and administrative | AK8: 14329 | AL8: 11993 | AM8: 10830 | AN8: Research and development | AO8: 11581 | AP8: 10045 | AQ8: 8067 | AR8: Selling, general and administrative | AS8: 18245 | AT8: 16705 | AU8: 15261
A9: Other income and expense | B9: Operating income | C9: =indmat(B9,T:T,U:U) -> 11740 | D9: =indmat(B9,T:T,V:V) -> 8327 | E9: =indmat(B9,T:T,W:W) -> 4407 | F9: =indmat(B9,X:X,Y:Y) -> 18385 | G9: =indmat(B9,AB:AB,AC:AC) -> 55241 | H9: =indmat(B9,AB:AB,AD:AD) -> 33790 | I9: =indmat(B9,AF:AF,AH:AH) -> 48999 | J9: =indmat(B9,AF:AF,AG:AG) -> 52503 | K9: =indmat(B9,AJ:AJ,AK:AK) -> 71230 | L9: =indmat(B9,AN:AN,AP:AP) -> 60024 | M9: =indmat(B9,AN:AN,AO:AO) -> 61344 | N9: =indmat(B9,AR:AR,AT:AT) -> 70898 | O9: =indmat(B9,AR:AR,AS:AS) -> 63930 | T9: Total operating expenses | U9: 5482 | V9: 4870 | W9: 3745 | X9: Total operating expenses | Y9: 7299 | Z9: 5482 | AA9: 4870 | AB9: Total operating expenses | AC9: 13421 | AD9: 10028 | AE9: 7299 | AF9: Total operating expenses | AG9: 18034 | AH9: 15305 | AI9: 13421 | AJ9: Total operating expenses | AK9: 22396 | AL9: 18034 | AM9: 15305 | AN9: Selling, general and administrative | AO9: 15261 | AP9: 14194 | AQ9: 14329 | AR9: Total operating expenses | AS9: 34462 | AT9: 30941 | AU9: 26842
A10: Other income/(expense), net | B10: Other income and expense | C10: =indmat(B10,T:T,U:U) -> 326 | D10: =indmat(B10,T:T,V:V) -> 620 | E10: =indmat(B10,T:T,W:W) -> 599 | F10: =indmat(B10,X:X,Y:Y) -> 155 | G10: =indmat(B10,AB:AB,AC:AC) -> 0 | H10: =indmat(B10,AB:AB,AD:AD) -> 0 | I10: =indmat(B10,AF:AF,AH:AH) -> 0 | J10: =indmat(B10,AF:AF,AG:AG) -> 0 | K10: =indmat(B10,AJ:AJ,AK:AK) -> 0 | L10: =indmat(B10,AN:AN,AP:AP) -> 0 | M10: =indmat(B10,AN:AN,AO:AO) -> 0 | N10: =indmat(B10,AR:AR,AT:AT) -> 0 | O10: =indmat(B10,AR:AR,AS:AS) -> 0 | T10: Operating income | U10: 11740 | V10: 8327 | W10: 4407 | X10: Operating income | Y10: 18385 | Z10: 11740 | AA10: 8327 | AB10: Operating income | AC10: 55241 | AD10: 33790 | AE10: 18385 | AF10: Operating income | AG10: 52503 | AH10: 48999 | AI10: 55241 | AJ10: Operating income | AK10: 71230 | AL10: 52503 | AM10: 48999 | AN10: Total operating expenses | AO10: 26842 | AP10: 24239 | AQ10: 22396 | AR10: Operating income | AS10: 63930 | AT10: 70898 | AU10: 61344
A11: Income before provision for income taxes | B11: Other income/(expense), net | C11: =indmat(B11,T:T,U:U) -> 0 | D11: =indmat(B11,T:T,V:V) -> 0 | E11: =indmat(B11,T:T,W:W) -> 0 | F11: =indmat(B11,X:X,Y:Y) -> 0 | G11: =indmat(B11,AB:AB,AC:AC) -> 522 | H11: =indmat(B11,AB:AB,AD:AD) -> 415 | I11: =indmat(B11,AF:AF,AH:AH) -> 1156 | J11: =indmat(B11,AF:AF,AG:AG) -> 980 | K11: =indmat(B11,AJ:AJ,AK:AK) -> 1285 | L11: =indmat(B11,AN:AN,AP:AP) -> 1348 | M11: =indmat(B11,AN:AN,AO:AO) -> 2745 | N11: =indmat(B11,AR:AR,AT:AT) -> 2005 | O11: =indmat(B11,AR:AR,AS:AS) -> 1807 | T11: Other income and expense | U11: 326 | V11: 620 | W11: 599 | X11: Other income and expense | Y11: 155 | Z11: 326 | AA11: 620 | AB11: Other income/(expense), net | AC11: 522 | AD11: 415 | AE11: 155 | AF11: Other income/(expense), net | AG11: 980 | AH11: 1156 | AI11: 522 | AJ11: Other income/(expense), net | AK11: 1285 | AL11: 980 | AM11: 1156 | AN11: Operating income | AO11: 61344 | AP11: 60024 | AQ11: 71230 | AR11: Other income/(expense), net | AS11: 1807 | AT11: 2005 | AU11: 2745
A12: Net income | B12: Income before provision for income taxes | C12: =indmat(B12,T:T,U:U) -> 12066 | D12: =indmat(B12,T:T,V:V) -> 8947 | E12: =indmat(B12,T:T,W:W) -> 5006 | F12: =indmat(B12,X:X,Y:Y) -> 18540 | G12: =indmat(B12,AB:AB,AC:AC) -> 55763 | H12: =indmat(B12,AB:AB,AD:AD) -> 34205 | I12: =indmat(B12,AF:AF,AH:AH) -> 50155 | J12: =indmat(B12,AF:AF,AG:AG) -> 53483 | K12: =indmat(B12,AJ:AJ,AK:AK) -> 72515 | L12: =indmat(B12,AN:AN,AP:AP) -> 61372 | M12: =indmat(B12,AN:AN,AO:AO) -> 64089 | N12: =indmat(B12,AR:AR,AT:AT) -> 72903 | O12: =indmat(B12,AR:AR,AS:AS) -> 65737 | T12: Income before provision for income taxes | U12: 12066 | V12: 8947 | W12: 5006 | X12: Income before provision for income taxes | Y12: 18540 | Z12: 12066 | AA12: 8947 | AB12: Income before provision for income taxes | AC12: 55763 | AD12: 34205 | AE12: 18540 | AF12: Income before provision for income taxes | AG12: 53483 | AH12: 50155 | AI12: 55763 | AJ12: Income before provision for income taxes | AK12: 72515 | AL12: 53483 | AM12: 50155 | AN12: Other income/(expense), net | AO12: 2745 | AP12: 1348 | AQ12: 1285 | AR12: Income before provision for income taxes | AS12: 65737 | AT12: 72903 | AU12: 64089
A13: Provision for income taxes | B13: Provision for income taxes | C13: =indmat(B13,T:T,U:U) -> 3831 | D13: =indmat(B13,T:T,V:V) -> 2828 | E13: =indmat(B13,T:T,W:W) -> 1511 | F13: =indmat(B13,X:X,Y:Y) -> 4527 | G13: =indmat(B13,AB:AB,AC:AC) -> 14030 | H13: =indmat(B13,AB:AB,AD:AD) -> 8283 | I13: =indmat(B13,AF:AF,AH:AH) -> 13118 | J13: =indmat(B13,AF:AF,AG:AG) -> 13973 | K13: =indmat(B13,AJ:AJ,AK:AK) -> 19121 | L13: =indmat(B13,AN:AN,AP:AP) -> 15685 | M13: =indmat(B13,AN:AN,AO:AO) -> 15738 | N13: =indmat(B13,AR:AR,AT:AT) -> 13372 | O13: =indmat(B13,AR:AR,AS:AS) -> 10481 | T13: Provision for income taxes | U13: 3831 | V13: 2828 | W13: 1511 | X13: Provision for income taxes | Y13: 4527 | Z13: 3831 | AA13: 2828 | AB13: Provision for income taxes | AC13: 14030 | AD13: 8283 | AE13: 4527 | AF13: Provision for income taxes | AG13: 13973 | AH13: 13118 | AI13: 14030 | AJ13: Provision for income taxes | AK13: 19121 | AL13: 13973 | AM13: 13118 | AN13: Income before provision for income taxes | AO13: 64089 | AP13: 61372 | AQ13: 72515 | AR13: Provision for income taxes | AS13: 10481 | AT13: 13372 | AU13: 15738
A14: Earnings per common share: | B14: Net income | C14: =indmat(B14,T:T,U:U) -> 8235 | D14: =indmat(B14,T:T,V:V) -> 6119 | E14: =indmat(B14,T:T,W:W) -> 3495 | F14: =indmat(B14,X:X,Y:Y) -> 14013 | G14: =indmat(B14,AB:AB,AC:AC) -> 41733 | H14: =indmat(B14,AB:AB,AD:AD) -> 25922 | I14: =indmat(B14,AF:AF,AH:AH) -> 37037 | J14: =indmat(B14,AF:AF,AG:AG) -> 39510 | K14: =indmat(B14,AJ:AJ,AK:AK) -> 53394 | L14: =indmat(B14,AN:AN,AP:AP) -> 45687 | M14: =indmat(B14,AN:AN,AO:AO) -> 48351 | N14: =indmat(B14,AR:AR,AT:AT) -> 59531 | O14: =indmat(B14,AR:AR,AS:AS) -> 55256 | T14: Net income | U14: 8235 | V14: 6119 | W14: 3495 | X14: Net income | Y14: 14013 | Z14: 8235 | AA14: 6119 | AB14: Net income | AC14: 41733 | AD14: 25922 | AE14: 14013 | AF14: Net income | AG14: 39510 | AH14: 37037 | AI14: 41733 | AJ14: Net income | AK14: 53394 | AL14: 39510 | AM14: 37037 | AN14: Provision for income taxes | AO14: 15738 | AP14: 15685 | AQ14: 19121 | AR14: Net income | AS14: 55256 | AT14: 59531 | AU14: 48351
A15: Earnings per share: | B15: Earnings per common share: | T15: Earnings per common share: | X15: Earnings per common share: | AB15: Earnings per share: | AF15: Earnings per share: | AG15: ' | AH15: ' | AI15: ' | AJ15: Earnings per share: | AN15: Net income | AO15: 48351 | AP15: 45687 | AQ15: 53394 | AR15: Earnings per share:
A16: Basic (in dollars per share) | B16: Earnings per share: | T16: Basic | U16: 9.22 | V16: 6.94 | W16: 4.04 | X16: Basic | Y16: 15.41 | Z16: 9.22 | AA16: 6.94 | AB16: Basic | AC16: 44.64 | AD16: 28.05 | AE16: 15.41 | AF16: Basic | AG16: 6.49 | AH16: 5.72 | AI16: 6.38 | AJ16: Basic | AK16: 9.28 | AL16: 6.49 | AM16: 5.72 | AN16: Earnings per share: | AR16: Basic (in dollars per share) | AS16: 11.97 | AT16: 12.01 | AU16: 9.27
A17: Diluted (in dollars per share) | B17: Basic (in dollars per share) | C17: =indmat(B17,T:T,U:U) -> 0 | D17: =indmat(B17,T:T,V:V) -> 0 | E17: =indmat(B17,T:T,W:W) -> 0 | F17: =indmat(B17,X:X,Y:Y) -> 0 | G17: =indmat(B17,AB:AB,AC:AC) -> 0 | H17: =indmat(B17,AB:AB,AD:AD) -> 0 | I17: =indmat(B17,AF:AF,AH:AH) -> 0 | J17: =indmat(B17,AF:AF,AG:AG) -> 0 | K17: =indmat(B17,AJ:AJ,AK:AK) -> 0 | L17: =indmat(B17,AN:AN,AP:AP) -> 8.350000381 | M17: =indmat(B17,AN:AN,AO:AO) -> 9.270000458 | N17: =indmat(B17,AR:AR,AT:AT) -> 12.01000023 | O17: =indmat(B17,AR:AR,AS:AS) -> 11.97000027 | T17: Diluted | U17: 9.08 | V17: 6.78 | W17: 3.93 | X17: Diluted | Y17: 15.15 | Z17: 9.08 | AA17: 6.78 | AB17: Diluted | AC17: 44.15 | AD17: 27.68 | AE17: 15.15 | AF17: Diluted | AG17: 6.45 | AH17: 5.68 | AI17: 6.31 | AJ17: Diluted | AK17: 9.22 | AL17: 6.45 | AM17: 5.68 | AN17: Basic (in dollars per share) | AO17: 9.27 | AP17: 8.35 | AQ17: 9.28 | AR17: Diluted (in dollars per share) | AS17: 11.89 | AT17: 11.91 | AU17: 9.21
A18: Basic | B18: Diluted (in dollars per share) | C18: =indmat(B18,T:T,U:U) -> 0 | D18: =indmat(B18,T:T,V:V) -> 0 | E18: =indmat(B18,T:T,W:W) -> 0 | F18: =indmat(B18,X:X,Y:Y) -> 0 | G18: =indmat(B18,AB:AB,AC:AC) -> 0 | H18: =indmat(B18,AB:AB,AD:AD) -> 0 | I18: =indmat(B18,AF:AF,AH:AH) -> 0 | J18: =indmat(B18,AF:AF,AG:AG) -> 0 | K18: =indmat(B18,AJ:AJ,AK:AK) -> 0 | L18: =indmat(B18,AN:AN,AP:AP) -> 8.31000042 | M18: =indmat(B18,AN:AN,AO:AO) -> 9.210000038 | N18: =indmat(B18,AR:AR,AT:AT) -> 11.90999985 | O18: =indmat(B18,AR:AR,AS:AS) -> 11.89000034 | T18: Shares used in computing earnings per share: | X18: Shares used in computing earnings per share: | AB18: Shares used in computing earnings per share: | AF18: Shares used in computing earnings per share: | AG18: ' | AH18: ' | AI18: ' | AJ18: Shares used in computing earnings per share: | AN18: Diluted (in dollars per share) | AO18: 9.21 | AP18: 8.31 | AQ18: 9.22 | AR18: Shares used in computing earnings per share:
A19: Basic (in shares) | B19: Basic | C19: =indmat(B19,T:T,U:U) -> 9.220000267 | D19: =indmat(B19,T:T,V:V) -> 6.940000057 | E19: =indmat(B19,T:T,W:W) -> 4.039999962 | F19: =indmat(B19,X:X,Y:Y) -> 15.40999985 | G19: =indmat(B19,AB:AB,AC:AC) -> 44.63999939 | H19: =indmat(B19,AB:AB,AD:AD) -> 28.04999924 | I19: =indmat(B19,AF:AF,AH:AH) -> 5.71999979 | J19: =indmat(B19,AF:AF,AG:AG) -> 6.489999771 | K19: =indmat(B19,AJ:AJ,AK:AK) -> 9.279999733 | L19: =indmat(B19,AN:AN,AP:AP) -> 0 | M19: =indmat(B19,AN:AN,AO:AO) -> 0 | N19: =indmat(B19,AR:AR,AT:AT) -> 0 | O19: =indmat(B19,AR:AR,AS:AS) -> 0 | T19: Basic | U19: 893016 | V19: 881592 | W19: 864595 | X19: Basic | Y19: 909461 | Z19: 893016 | AA19: 881592 | AB19: Basic | AC19: 934818 | AD19: 924258 | AE19: 909461 | AF19: Basic | AG19: 6085572 | AH19: 6477320 | AI19: 6543726 | AJ19: Basic | AK19: 5753421 | AL19: 6085572 | AM19: 6477320 | AN19: Shares used in computing earnings per share: | AR19: Basic (in shares) | AS19: 4617834 | AT19: 4955377 | AU19: 5217242
A20: Shares used in computing earnings per share: | B20: Basic (in shares) | C20: =indmat(B20,T:T,U:U) -> 0 | D20: =indmat(B20,T:T,V:V) -> 0 | E20: =indmat(B20,T:T,W:W) -> 0 | F20: =indmat(B20,X:X,Y:Y) -> 0 | G20: =indmat(B20,AB:AB,AC:AC) -> 0 | H20: =indmat(B20,AB:AB,AD:AD) -> 0 | I20: =indmat(B20,AF:AF,AH:AH) -> 0 | J20: =indmat(B20,AF:AF,AG:AG) -> 0 | K20: =indmat(B20,AJ:AJ,AK:AK) -> 0 | L20: =indmat(B20,AN:AN,AP:AP) -> 5470820 | M20: =indmat(B20,AN:AN,AO:AO) -> 5217242 | N20: =indmat(B20,AR:AR,AT:AT) -> 4955377 | O20: =indmat(B20,AR:AR,AS:AS) -> 4617834 | T20: Diluted | U20: 907005 | V20: 902139 | W20: 889292 | X20: Diluted | Y20: 924712 | Z20: 907005 | AA20: 902139 | AB20: Diluted | AC20: 945355 | AD20: 936645 | AE20: 924712 | AF20: Diluted | AG20: 6122663 | AH20: 6521634 | AI20: 6617483 | AJ20: Diluted | AK20: 5793069 | AL20: 6122663 | AM20: 6521634 | AN20: Basic (in shares) | AO20: 5217242 | AP20: 5470820 | AQ20: 5753421 | AR20: Diluted (in shares) | AS20: 4648913 | AT20: 5000109 | AU20: 5251692
A21: Diluted | B21: Shares used in computing earnings per share: | AB21: Cash dividends declared per common share | AC21: 2.65 | AD21: 0 | AE21: 0 | AF21: Cash dividends declared per common share | AG21: 1.82 | AH21: 1.64 | AI21: 0.38 | AJ21: Cash dividends declared per share | AK21: 1.98 | AL21: 1.82 | AM21: 1.64 | AN21: Diluted (in shares) | AO21: 5251692 | AP21: 5500281 | AQ21: 5793069 | AR21: Products
A22: Diluted (in shares) | B22: Diluted | C22: =indmat(B22,T:T,U:U) -> 9.079999924 | D22: =indmat(B22,T:T,V:V) -> 6.78000021 | E22: =indmat(B22,T:T,W:W) -> 3.930000067 | F22: =indmat(B22,X:X,Y:Y) -> 15.14999962 | G22: =indmat(B22,AB:AB,AC:AC) -> 44.15000153 | H22: =indmat(B22,AB:AB,AD:AD) -> 27.68000031 | I22: =indmat(B22,AF:AF,AH:AH) -> 5.679999828 | J22: =indmat(B22,AF:AF,AG:AG) -> 6.449999809 | K22: =indmat(B22,AJ:AJ,AK:AK) -> 9.220000267 | L22: =indmat(B22,AN:AN,AP:AP) -> 0 | M22: =indmat(B22,AN:AN,AO:AO) -> 0 | N22: =indmat(B22,AR:AR,AT:AT) -> 0 | O22: =indmat(B22,AR:AR,AS:AS) -> 0 | AN22: Cash dividends declared per share (in dollars per share) | AO22: 2.4 | AP22: 2.18 | AQ22: 1.98 | AR22: Net sales Products | AS22: 213883 | AT22: 225847 | AU22: 196534
A23: Cash dividends declared per common share | B23: Diluted (in shares) | C23: =indmat(B23,T:T,U:U) -> 0 | D23: =indmat(B23,T:T,V:V) -> 0 | E23: =indmat(B23,T:T,W:W) -> 0 | F23: =indmat(B23,X:X,Y:Y) -> 0 | G23: =indmat(B23,AB:AB,AC:AC) -> 0 | H23: =indmat(B23,AB:AB,AD:AD) -> 0 | I23: =indmat(B23,AF:AF,AH:AH) -> 0 | J23: =indmat(B23,AF:AF,AG:AG) -> 0 | K23: =indmat(B23,AJ:AJ,AK:AK) -> 0 | L23: =indmat(B23,AN:AN,AP:AP) -> 5500281 | M23: =indmat(B23,AN:AN,AO:AO) -> 5251692 | N23: =indmat(B23,AR:AR,AT:AT) -> 5000109 | O23: =indmat(B23,AR:AR,AS:AS) -> 4648913 | AR23: Cost of sales Products | AS23: 144996 | AT23: 148164 | AU23: 126337
A24: Cash dividends declared per share | B24: Cash dividends declared per common share | C24: =indmat(B24,T:T,U:U) -> 0 | D24: =indmat(B24,T:T,V:V) -> 0 | E24: =indmat(B24,T:T,W:W) -> 0 | F24: =indmat(B24,X:X,Y:Y) -> 0 | G24: =indmat(B24,AB:AB,AC:AC) -> 2.650000095 | H24: =indmat(B24,AB:AB,AD:AD) -> 0 | I24: =indmat(B24,AF:AF,AH:AH) -> 1.639999986 | J24: =indmat(B24,AF:AF,AG:AG) -> 1.820000052 | K24: =indmat(B24,AJ:AJ,AK:AK) -> 0 | L24: =indmat(B24,AN:AN,AP:AP) -> 0 | M24: =indmat(B24,AN:AN,AO:AO) -> 0 | N24: =indmat(B24,AR:AR,AT:AT) -> 0 | O24: =indmat(B24,AR:AR,AS:AS) -> 0 | AR24: Services
A25: Products | B25: Cash dividends declared per share (in dollars per share) | C25: =indmat(B25,T:T,U:U) -> 0 | D25: =indmat(B25,T:T,V:V) -> 0 | E25: =indmat(B25,T:T,W:W) -> 0 | F25: =indmat(B25,X:X,Y:Y) -> 0 | G25: =indmat(B25,AB:AB,AC:AC) -> 0 | H25: =indmat(B25,AB:AB,AD:AD) -> 0 | I25: =indmat(B25,AF:AF,AH:AH) -> 0 | J25: =indmat(B25,AF:AF,AG:AG) -> 0 | K25: =indmat(B25,AJ:AJ,AK:AK) -> 0 | L25: =indmat(B25,AN:AN,AP:AP) -> 2.180000067 | M25: =indmat(B25,AN:AN,AO:AO) -> 2.400000095 | N25: =indmat(B25,AR:AR,AT:AT) -> 0 | O25: =indmat(B25,AR:AR,AS:AS) -> 0 | AR25: Net sales Services | AS25: 46291 | AT25: 39748 | AU25: 32700
A26: Cash dividends declared per share (in dollars per share) | B26: Cash dividends declared per share | C26: =indmat(B26,T:T,U:U) -> 0 | D26: =indmat(B26,T:T,V:V) -> 0 | E26: =indmat(B26,T:T,W:W) -> 0 | F26: =indmat(B26,X:X,Y:Y) -> 0 | G26: =indmat(B26,AB:AB,AC:AC) -> 0 | H26: =indmat(B26,AB:AB,AD:AD) -> 0 | I26: =indmat(B26,AF:AF,AH:AH) -> 0 | J26: =indmat(B26,AF:AF,AG:AG) -> 0 | K26: =indmat(B26,AJ:AJ,AK:AK) -> 1.980000019 | L26: =indmat(B26,AN:AN,AP:AP) -> 0 | M26: =indmat(B26,AN:AN,AO:AO) -> 0 | N26: =indmat(B26,AR:AR,AT:AT) -> 0 | O26: =indmat(B26,AR:AR,AS:AS) -> 0 | AR26: Cost of sales | AS26: 16786 | AT26: 15592 | AU26: 14711
A27: Net sales Products | B27: Products | C27: =indmat(B27,T:T,U:U) -> 0 | D27: =indmat(B27,T:T,V:V) -> 0 | E27: =indmat(B27,T:T,W:W) -> 0 | F27: =indmat(B27,X:X,Y:Y) -> 0 | G27: =indmat(B27,AB:AB,AC:AC) -> 0 | H27: =indmat(B27,AB:AB,AD:AD) -> 0 | I27: =indmat(B27,AF:AF,AH:AH) -> 0 | J27: =indmat(B27,AF:AF,AG:AG) -> 0 | K27: =indmat(B27,AJ:AJ,AK:AK) -> 0 | L27: =indmat(B27,AN:AN,AP:AP) -> 0 | M27: =indmat(B27,AN:AN,AO:AO) -> 0 | N27: =indmat(B27,AR:AR,AT:AT) -> 0 | O27: =indmat(B27,AR:AR,AS:AS) -> 0
A28: Cost of sales Products | B28: Net sales Products | C28: =indmat(B28,T:T,U:U) -> 0 | D28: =indmat(B28,T:T,V:V) -> 0 | E28: =indmat(B28,T:T,W:W) -> 0 | F28: =indmat(B28,X:X,Y:Y) -> 0 | G28: =indmat(B28,AB:AB,AC:AC) -> 0 | H28: =indmat(B28,AB:AB,AD:AD) -> 0 | I28: =indmat(B28,AF:AF,AH:AH) -> 0 | J28: =indmat(B28,AF:AF,AG:AG) -> 0 | K28: =indmat(B28,AJ:AJ,AK:AK) -> 0 | L28: =indmat(B28,AN:AN,AP:AP) -> 0 | M28: =indmat(B28,AN:AN,AO:AO) -> 0 | N28: =indmat(B28,AR:AR,AT:AT) -> 225847 | O28: =indmat(B28,AR:AR,AS:AS) -> 213883
A29: Services | B29: Cost of sales Products | C29: =indmat(B29,T:T,U:U) -> 0 | D29: =indmat(B29,T:T,V:V) -> 0 | E29: =indmat(B29,T:T,W:W) -> 0 | F29: =indmat(B29,X:X,Y:Y) -> 0 | G29: =indmat(B29,AB:AB,AC:AC) -> 0 | H29: =indmat(B29,AB:AB,AD:AD) -> 0 | I29: =indmat(B29,AF:AF,AH:AH) -> 0 | J29: =indmat(B29,AF:AF,AG:AG) -> 0 | K29: =indmat(B29,AJ:AJ,AK:AK) -> 0 | L29: =indmat(B29,AN:AN,AP:AP) -> 0 | M29: =indmat(B29,AN:AN,AO:AO) -> 0 | N29: =indmat(B29,AR:AR,AT:AT) -> 148164 | O29: =indmat(B29,AR:AR,AS:AS) -> 144996
A30: Net sales Services | B30: Services | C30: =indmat(B30,T:T,U:U) -> 0 | D30: =indmat(B30,T:T,V:V) -> 0 | E30: =indmat(B30,T:T,W:W) -> 0 | F30: =indmat(B30,X:X,Y:Y) -> 0 | G30: =indmat(B30,AB:AB,AC:AC) -> 0 | H30: =indmat(B30,AB:AB,AD:AD) -> 0 | I30: =indmat(B30,AF:AF,AH:AH) -> 0 | J30: =indmat(B30,AF:AF,AG:AG) -> 0 | K30: =indmat(B30,AJ:AJ,AK:AK) -> 0 | L30: =indmat(B30,AN:AN,AP:AP) -> 0 | M30: =indmat(B30,AN:AN,AO:AO) -> 0 | N30: =indmat(B30,AR:AR,AT:AT) -> 0 | O30: =indmat(B30,AR:AR,AS:AS) -> 0
A31: Cost of sales | B31: Net sales Services | C31: =indmat(B31,T:T,U:U) -> 0 | D31: =indmat(B31,T:T,V:V) -> 0 | E31: =indmat(B31,T:T,W:W) -> 0 | F31: =indmat(B31,X:X,Y:Y) -> 0 | G31: =indmat(B31,AB:AB,AC:AC) -> 0 | H31: =indmat(B31,AB:AB,AD:AD) -> 0 | I31: =indmat(B31,AF:AF,AH:AH) -> 0 | J31: =indmat(B31,AF:AF,AG:AG) -> 0 | K31: =indmat(B31,AJ:AJ,AK:AK) -> 0 | L31: =indmat(B31,AN:AN,AP:AP) -> 0 | M31: =indmat(B31,AN:AN,AO:AO) -> 0 | N31: =indmat(B31,AR:AR,AT:AT) -> 39748 | O31: =indmat(B31,AR:AR,AS:AS) -> 46291
A32: 0 | B32: Cost of sales | C32: =indmat(B32,T:T,U:U) -> 25683 | D32: =indmat(B32,T:T,V:V) -> 24294 | E32: =indmat(B32,T:T,W:W) -> 16426 | F32: =indmat(B32,X:X,Y:Y) -> 39541 | G32: =indmat(B32,AB:AB,AC:AC) -> 87846 | H32: =indmat(B32,AB:AB,AD:AD) -> 64431 | I32: =indmat(B32,AF:AF,AH:AH) -> 106606 | J32: =indmat(B32,AF:AF,AG:AG) -> 112258 | K32: =indmat(B32,AJ:AJ,AK:AK) -> 140089 | L32: =indmat(B32,AN:AN,AP:AP) -> 131376 | M32: =indmat(B32,AN:AN,AO:AO) -> 141048 | N32: =indmat(B32,AR:AR,AT:AT) -> 163756 | O32: =indmat(B32,AR:AR,AS:AS) -> 161782
A33: 0
A34: 0
A35: 0
A36: 0
A37: 0
A38: 0
A39: 0
A40: 0
A41: 0
A42: 0
A43: 0
A44: 0
A45: 0
A46: 0
A47: 0
A48: 0
A49: 0
A50: 0
A51: 0
A52: 0
A53: 0
A54: 0
A55: 0

Sheet Cash Flow
A1: =union(T2:T38,X3:X39,AB3:AB37,AF3:AF41,AJ4:AJ44,AN4:AN44,AR4:AR45) -> Cash and cash equivalents, beginning of the year | B1: Cash and cash equivalents, beginning of the year | T1: Statement Of Cash Flows Indirect (USD $) | X1: CONSOLIDATED STATEMENTS OF CASH FLOWS (USD $) | Y1: 12 Months Ended | AB1: CONSOLIDATED STATEMENTS OF CASH FLOWS (USD $) | AC1: 12 Months Ended | AF1: CONSOLIDATED STATEMENTS OF CASH FLOWS (USD $) | AG1: 12 Months Ended | AJ1: CONSOLIDATED STATEMENTS OF CASH FLOWS - USD ($) $ in Millions | AK1: 12 Months Ended | AN1: CONSOLIDATED STATEMENTS OF CASH FLOWS - USD ($) $ in Millions | AO1: 12 Months Ended | AR1: CONSOLIDATED STATEMENTS OF CASH FLOWS - USD ($) $ in Millions | AS1: 12 Months Ended
A2: Cash, cash equivalents and restricted cash, beginning balances | B2: Cash, cash equivalents and restricted cash, beginning balances | C2: 2009 | D2: 2008 | E2: 2007 | F2: 2010 | G2: 2011 | H2: 2012 | I2: 2013 | J2: 2014 | K2: 2015 | L2: 2016 | M2: 2017 | N2: 2018 | O2: 2019 | T2: In Millions | U2: 12 Months Ended Sep. 26, 2009 | V2: 12 Months Ended Sep. 27, 2008 | W2: 12 Months Ended Sep. 29, 2007 | X2: In Millions | Y2: Sep. 25, 2010 | Z2: Sep. 26, 2009 | AA2: Sep. 27, 2008 | AB2: In Millions, unless otherwise specified | AC2: Sep. 29, 2012 | AD2: Sep. 24, 2011 | AE2: Sep. 25, 2010 | AF2: In Millions, unless otherwise specified | AG2: Sep. 27, 2014 | AH2: Sep. 28, 2013 | AI2: Sep. 29, 2012 | AK2: Sep. 24, 2016 | AL2: Sep. 26, 2015 | AM2: Sep. 27, 2014 | AO2: Sep. 29, 2018 | AP2: Sep. 30, 2017 | AQ2: Sep. 24, 2016 | AS2: Sep. 28, 2019 | AT2: Sep. 29, 2018 | AU2: Sep. 30, 2017
A3: In Millions | B3: Operating activities: | T3: Cash and cash equivalents, beginning of the year | U3: 11875 | V3: 9352 | W3: 6392 | X3: Cash and cash equivalents, beginning of the year | Y3: $ 5,263 | Z3: $ 11,875 | AA3: $ 9,352 | AB3: Cash and cash equivalents, beginning of the year | AC3: 9815 | AD3: 11261 | AE3: 5263 | AF3: Cash and cash equivalents, beginning of the year | AG3: 14259 | AH3: 10746 | AI3: 9815 | AJ3: Statement of Cash Flows [Abstract] | AN3: Statement of Cash Flows [Abstract] | AR3: Statement of Cash Flows [Abstract]
A4: Operating activities: | B4: Net income | C4: =indmat(B4,T:T,U:U) -> 8235 | D4: =indmat(B4,T:T,V:V) -> 6119 | E4: =indmat(B4,T:T,W:W) -> 3495 | F4: =indmat(B4,X:X,Y:Y) -> 14013 | G4: =indmat(B4,AB:AB,AD:AD) -> 25922 | H4: =indmat(B4,AB:AB,AC:AC) -> 41733 | I4: =indmat(B4,AF:AF,AH:AH) -> 37037 | J4: =indmat(B4,AF:AF,AG:AG) -> 39510 | K4: =indmat(B4,AJ:AJ,AL:AL) -> 53394 | L4: =indmat(B4,AJ:AJ,AK:AK) -> 45687 | M4: =indmat(B4,AN:AN,AP:AP) -> 48351 | N4: =indmat(B4,AN:AN,AO:AO) -> 59531 | O4: =indmat(B4,AR:AR,AS:AS) -> 55256 | T4: Operating Activities: | X4: Operating activities: | AB4: Operating activities: | AF4: Operating activities: | AJ4: Cash and cash equivalents, beginning of the year | AK4: 21120 | AL4: 13844 | AM4: 14259 | AN4: Cash and cash equivalents, beginning of the year | AO4: 20289 | AP4: 20484 | AQ4: 21120 | AR4: Cash, cash equivalents and restricted cash, beginning balances | AS4: 25913 | AT4: 20289 | AU4: 20484
A5: Net income | B5: Operating Activities: | C5: =indmat(B5,T:T,U:U) -> 0 | D5: =indmat(B5,T:T,V:V) -> 0 | E5: =indmat(B5,T:T,W:W) -> 0 | F5: =indmat(B5,X:X,Y:Y) -> 0 | G5: =indmat(B5,AB:AB,AD:AD) -> 0 | H5: =indmat(B5,AB:AB,AC:AC) -> 0 | I5: =indmat(B5,AF:AF,AH:AH) -> 0 | J5: =indmat(B5,AF:AF,AG:AG) -> 0 | K5: =indmat(B5,AJ:AJ,AL:AL) -> 0 | L5: =indmat(B5,AJ:AJ,AK:AK) -> 0 | M5: =indmat(B5,AN:AN,AP:AP) -> 0 | N5: =indmat(B5,AN:AN,AO:AO) -> 0 | O5: =indmat(B5,AR:AR,AS:AS) -> 0 | T5: Net income | U5: 8235 | V5: 6119 | W5: 3495 | X5: Net income | Y5: 14013 | Z5: 8235 | AA5: 6119 | AB5: Net income | AC5: 41733 | AD5: 25922 | AE5: 14013 | AF5: Net income | AG5: 39510 | AH5: 37037 | AI5: 41733 | AJ5: Operating activities: | AN5: Operating activities: | AR5: Operating activities:
A6: Operating Activities: | B6: Adjustments to reconcile net income to cash generated by operating activities: | C6: =indmat(B6,T:T,U:U) -> 0 | D6: =indmat(B6,T:T,V:V) -> 0 | E6: =indmat(B6,T:T,W:W) -> 0 | F6: =indmat(B6,X:X,Y:Y) -> 0 | G6: =indmat(B6,AB:AB,AD:AD) -> 0 | H6: =indmat(B6,AB:AB,AC:AC) -> 0 | I6: =indmat(B6,AF:AF,AH:AH) -> 0 | J6: =indmat(B6,AF:AF,AG:AG) -> 0 | K6: =indmat(B6,AJ:AJ,AL:AL) -> 0 | L6: =indmat(B6,AJ:AJ,AK:AK) -> 0 | M6: =indmat(B6,AN:AN,AP:AP) -> 0 | N6: =indmat(B6,AN:AN,AO:AO) -> 0 | O6: =indmat(B6,AR:AR,AS:AS) -> 0 | T6: Adjustments to reconcile net income to cash generated by operating activities: | X6: Adjustments to reconcile net income to cash generated by operating activities: | AB6: Adjustments to reconcile net income to cash generated by operating activities: | AF6: Adjustments to reconcile net income to cash generated by operating activities: | AJ6: Net income | AK6: 45687 | AL6: 53394 | AM6: 39510 | AN6: Net income | AO6: 59531 | AP6: 48351 | AQ6: 45687 | AR6: Net income | AS6: 55256 | AT6: 59531 | AU6: 48351
A7: Adjustments to reconcile net income to cash generated by operating activities: | B7: Depreciation and amortization | C7: =indmat(B7,T:T,U:U) -> 0 | D7: =indmat(B7,T:T,V:V) -> 0 | E7: =indmat(B7,T:T,W:W) -> 0 | F7: =indmat(B7,X:X,Y:Y) -> 0 | G7: =indmat(B7,AB:AB,AD:AD) -> 1814 | H7: =indmat(B7,AB:AB,AC:AC) -> 3277 | I7: =indmat(B7,AF:AF,AH:AH) -> 6757 | J7: =indmat(B7,AF:AF,AG:AG) -> 7946 | K7: =indmat(B7,AJ:AJ,AL:AL) -> 11257 | L7: =indmat(B7,AJ:AJ,AK:AK) -> 10505 | M7: =indmat(B7,AN:AN,AP:AP) -> 10157 | N7: =indmat(B7,AN:AN,AO:AO) -> 10903 | O7: =indmat(B7,AR:AR,AS:AS) -> 12547 | T7: Depreciation, amortization and accretion | U7: 734 | V7: 496 | W7: 327 | X7: Depreciation, amortization and accretion | Y7: 1027 | Z7: 734 | AA7: 496 | AB7: Depreciation and amortization | AC7: 3277 | AD7: 1814 | AE7: 1027 | AF7: Depreciation and amortization | AG7: 7946 | AH7: 6757 | AI7: 3277 | AJ7: Adjustments to reconcile net income to cash generated by operating activities: | AN7: Adjustments to reconcile net income to cash generated by operating activities: | AR7: Adjustments to reconcile net income to cash generated by operating activities:
A8: Depreciation and amortization | B8: Depreciation, amortization and accretion | C8: =indmat(B8,T:T,U:U) -> 734 | D8: =indmat(B8,T:T,V:V) -> 496 | E8: =indmat(B8,T:T,W:W) -> 327 | F8: =indmat(B8,X:X,Y:Y) -> 1027 | G8: =indmat(B8,AB:AB,AD:AD) -> 0 | H8: =indmat(B8,AB:AB,AC:AC) -> 0 | I8: =indmat(B8,AF:AF,AH:AH) -> 0 | J8: =indmat(B8,AF:AF,AG:AG) -> 0 | K8: =indmat(B8,AJ:AJ,AL:AL) -> 0 | L8: =indmat(B8,AJ:AJ,AK:AK) -> 0 | M8: =indmat(B8,AN:AN,AP:AP) -> 0 | N8: =indmat(B8,AN:AN,AO:AO) -> 0 | O8: =indmat(B8,AR:AR,AS:AS) -> 0 | T8: Stock-based compensation expense | U8: 710 | V8: 516 | W8: 242 | X8: Stock-based compensation expense | Y8: 879 | Z8: 710 | AA8: 516 | AB8: Share-based compensation expense | AC8: 1740 | AD8: 1168 | AE8: 879 | AF8: Share-based compensation expense | AG8: 2863 | AH8: 2253 | AI8: 1740 | AJ8: Depreciation and amortization | AK8: 10505 | AL8: 11257 | AM8: 7946 | AN8: Depreciation and amortization | AO8: 10903 | AP8: 10157 | AQ8: 10505 | AR8: Depreciation and amortization | AS8: 12547 | AT8: 10903 | AU8: 10157
A9: Depreciation, amortization and accretion | B9: Share-based compensation expense | C9: =indmat(B9,T:T,U:U) -> 0 | D9: =indmat(B9,T:T,V:V) -> 0 | E9: =indmat(B9,T:T,W:W) -> 0 | F9: =indmat(B9,X:X,Y:Y) -> 0 | G9: =indmat(B9,AB:AB,AD:AD) -> 1168 | H9: =indmat(B9,AB:AB,AC:AC) -> 1740 | I9: =indmat(B9,AF:AF,AH:AH) -> 2253 | J9: =indmat(B9,AF:AF,AG:AG) -> 2863 | K9: =indmat(B9,AJ:AJ,AL:AL) -> 3586 | L9: =indmat(B9,AJ:AJ,AK:AK) -> 4210 | M9: =indmat(B9,AN:AN,AP:AP) -> 4840 | N9: =indmat(B9,AN:AN,AO:AO) -> 5340 | O9: =indmat(B9,AR:AR,AS:AS) -> 6068 | T9: Deferred income tax expense | U9: 1040 | V9: 398 | W9: 73 | X9: Deferred income tax expense | Y9: 1440 | Z9: 1040 | AA9: 398 | AB9: Deferred income tax expense | AC9: 4405 | AD9: 2868 | AE9: 1440 | AF9: Deferred income tax expense | AG9: 2347 | AH9: 1141 | AI9: 4405 | AJ9: Share-based compensation expense | AK9: 4210 | AL9: 3586 | AM9: 2863 | AN9: Share-based compensation expense | AO9: 5340 | AP9: 4840 | AQ9: 4210 | AR9: Share-based compensation expense | AS9: 6068 | AT9: 5340 | AU9: 4840
A10: Share-based compensation expense | B10: Stock-based compensation expense | C10: =indmat(B10,T:T,U:U) -> 710 | D10: =indmat(B10,T:T,V:V) -> 516 | E10: =indmat(B10,T:T,W:W) -> 242 | F10: =indmat(B10,X:X,Y:Y) -> 879 | G10: =indmat(B10,AB:AB,AD:AD) -> 0 | H10: =indmat(B10,AB:AB,AC:AC) -> 0 | I10: =indmat(B10,AF:AF,AH:AH) -> 0 | J10: =indmat(B10,AF:AF,AG:AG) -> 0 | K10: =indmat(B10,AJ:AJ,AL:AL) -> 0 | L10: =indmat(B10,AJ:AJ,AK:AK) -> 0 | M10: =indmat(B10,AN:AN,AP:AP) -> 0 | N10: =indmat(B10,AN:AN,AO:AO) -> 0 | O10: =indmat(B10,AR:AR,AS:AS) -> 0 | T10: Loss on disposition of property, plant and equipment | U10: 26 | V10: 22 | W10: 12 | X10: Loss on disposition of property, plant and equipment | Y10: 24 | Z10: 26 | AA10: 22 | AB10: Changes in operating assets and liabilities: | AF10: Changes in operating assets and liabilities: | AJ10: Deferred income tax expense | AK10: 4938 | AL10: 1382 | AM10: 2347 | AN10: Deferred income tax expense/(benefit) | AO10: -32590 | AP10: 5966 | AQ10: 4938 | AR10: Deferred income tax expense/(benefit) | AS10: -340 | AT10: -32590 | AU10: 5966
A11: Stock-based compensation expense | B11: Deferred income tax expense | C11: =indmat(B11,T:T,U:U) -> 1040 | D11: =indmat(B11,T:T,V:V) -> 398 | E11: =indmat(B11,T:T,W:W) -> 73 | F11: =indmat(B11,X:X,Y:Y) -> 1440 | G11: =indmat(B11,AB:AB,AD:AD) -> 2868 | H11: =indmat(B11,AB:AB,AC:AC) -> 4405 | I11: =indmat(B11,AF:AF,AH:AH) -> 1141 | J11: =indmat(B11,AF:AF,AG:AG) -> 2347 | K11: =indmat(B11,AJ:AJ,AL:AL) -> 1382 | L11: =indmat(B11,AJ:AJ,AK:AK) -> 4938 | M11: =indmat(B11,AN:AN,AP:AP) -> 0 | N11: =indmat(B11,AN:AN,AO:AO) -> 0 | O11: =indmat(B11,AR:AR,AS:AS) -> 0 | T11: Changes in operating assets and liabilities: | X11: Changes in operating assets and liabilities: | AB11: Accounts receivable, net | AC11: -5551 | AD11: 143 | AE11: -2142 | AF11: Accounts receivable, net | AG11: -4232 | AH11: -2172 | AI11: -5551 | AJ11: Changes in operating assets and liabilities: | AN11: Other | AO11: -444 | AP11: -166 | AQ11: 486 | AR11: Other | AS11: -652 | AT11: -444 | AU11: -166
A12: Deferred income tax expense | B12: Deferred income tax expense/(benefit) | C12: =indmat(B12,T:T,U:U) -> 0 | D12: =indmat(B12,T:T,V:V) -> 0 | E12: =indmat(B12,T:T,W:W) -> 0 | F12: =indmat(B12,X:X,Y:Y) -> 0 | G12: =indmat(B12,AB:AB,AD:AD) -> 0 | H12: =indmat(B12,AB:AB,AC:AC) -> 0 | I12: =indmat(B12,AF:AF,AH:AH) -> 0 | J12: =indmat(B12,AF:AF,AG:AG) -> 0 | K12: =indmat(B12,AJ:AJ,AL:AL) -> 0 | L12: =indmat(B12,AJ:AJ,AK:AK) -> 0 | M12: =indmat(B12,AN:AN,AP:AP) -> 5966 | N12: =indmat(B12,AN:AN,AO:AO) -> -32590 | O12: =indmat(B12,AR:AR,AS:AS) -> -340 | T12: Accounts receivable, net | U12: -939 | V12: -785 | W12: -385 | X12: Accounts receivable, net | Y12: -2142 | Z12: -939 | AA12: -785 | AB12: Inventories | AC12: -15 | AD12: 275 | AE12: -596 | AF12: Inventories | AG12: -76 | AH12: -973 | AI12: -15 | AJ12: Accounts receivable, net | AK12: 1095 | AL12: 611 | AM12: -4232 | AN12: Changes in operating assets and liabilities: | AR12: Changes in operating assets and liabilities:
A13: Deferred income tax expense/(benefit) | B13: Loss on disposition of property, plant and equipment | C13: =indmat(B13,T:T,U:U) -> 26 | D13: =indmat(B13,T:T,V:V) -> 22 | E13: =indmat(B13,T:T,W:W) -> 12 | F13: =indmat(B13,X:X,Y:Y) -> 24 | G13: =indmat(B13,AB:AB,AD:AD) -> 0 | H13: =indmat(B13,AB:AB,AC:AC) -> 0 | I13: =indmat(B13,AF:AF,AH:AH) -> 0 | J13: =indmat(B13,AF:AF,AG:AG) -> 0 | K13: =indmat(B13,AJ:AJ,AL:AL) -> 0 | L13: =indmat(B13,AJ:AJ,AK:AK) -> 0 | M13: =indmat(B13,AN:AN,AP:AP) -> 0 | N13: =indmat(B13,AN:AN,AO:AO) -> 0 | O13: =indmat(B13,AR:AR,AS:AS) -> 0 | T13: Inventories | U13: 54 | V13: -163 | W13: -76 | X13: Inventories | Y13: -596 | Z13: 54 | AA13: -163 | AB13: Vendor non-trade receivables | AC13: -1414 | AD13: -1934 | AE13: -2718 | AF13: Vendor non-trade receivables | AG13: -2220 | AH13: 223 | AI13: -1414 | AJ13: Inventories | AK13: 217 | AL13: -238 | AM13: -76 | AN13: Accounts receivable, net | AO13: -5322 | AP13: -2093 | AQ13: 527 | AR13: Accounts receivable, net | AS13: 245 | AT13: -5322 | AU13: -2093
A14: Loss on disposition of property, plant and equipment | B14: Accounts receivable, net | C14: =indmat(B14,T:T,U:U) -> -939 | D14: =indmat(B14,T:T,V:V) -> -785 | E14: =indmat(B14,T:T,W:W) -> -385 | F14: =indmat(B14,X:X,Y:Y) -> -2142 | G14: =indmat(B14,AB:AB,AD:AD) -> 143 | H14: =indmat(B14,AB:AB,AC:AC) -> -5551 | I14: =indmat(B14,AF:AF,AH:AH) -> -2172 | J14: =indmat(B14,AF:AF,AG:AG) -> -4232 | K14: =indmat(B14,AJ:AJ,AL:AL) -> 611 | L14: =indmat(B14,AJ:AJ,AK:AK) -> 1095 | M14: =indmat(B14,AN:AN,AP:AP) -> -2093 | N14: =indmat(B14,AN:AN,AO:AO) -> -5322 | O14: =indmat(B14,AR:AR,AS:AS) -> 245 | T14: Other current assets | U14: 749 | V14: -274 | W14: -1279 | X14: Vendor non-trade receivables | Y14: -2718 | Z14: 586 | AA14: 110 | AB14: Other current and non-current assets | AC14: -3162 | AD14: -1391 | AE14: -1610 | AF14: Other current and non-current assets | AG14: 167 | AH14: 1080 | AI14: -3162 | AJ14: Vendor non-trade receivables | AK14: -51 | AL14: -3735 | AM14: -2220 | AN14: Inventories | AO14: 828 | AP14: -2723 | AQ14: 217 | AR14: Inventories | AS14: -289 | AT14: 828 | AU14: -2723
A15: Accounts receivable, net | B15: Changes in operating assets and liabilities: | C15: =indmat(B15,T:T,U:U) -> 0 | D15: =indmat(B15,T:T,V:V) -> 0 | E15: =indmat(B15,T:T,W:W) -> 0 | F15: =indmat(B15,X:X,Y:Y) -> 0 | G15: =indmat(B15,AB:AB,AD:AD) -> 0 | H15: =indmat(B15,AB:AB,AC:AC) -> 0 | I15: =indmat(B15,AF:AF,AH:AH) -> 0 | J15: =indmat(B15,AF:AF,AG:AG) -> 0 | K15: =indmat(B15,AJ:AJ,AL:AL) -> 0 | L15: =indmat(B15,AJ:AJ,AK:AK) -> 0 | M15: =indmat(B15,AN:AN,AP:AP) -> 0 | N15: =indmat(B15,AN:AN,AO:AO) -> 0 | O15: =indmat(B15,AR:AR,AS:AS) -> 0 | T15: Other assets | U15: -902 | V15: 289 | W15: 285 | X15: Other current assets | Y15: -1514 | Z15: 163 | AA15: -384 | AB15: Accounts payable | AC15: 4467 | AD15: 2515 | AE15: 6307 | AF15: Accounts payable | AG15: 5938 | AH15: 2340 | AI15: 4467 | AJ15: Other current and non-current assets | AK15: 1090 | AL15: -179 | AM15: 167 | AN15: Vendor non-trade receivables | AO15: -8010 | AP15: -4254 | AQ15: -51 | AR15: Vendor non-trade receivables | AS15: 2931 | AT15: -8010 | AU15: -4254
A16: Changes in operating assets and liabilities: | B16: Inventories | C16: =indmat(B16,T:T,U:U) -> 54 | D16: =indmat(B16,T:T,V:V) -> -163 | E16: =indmat(B16,T:T,W:W) -> -76 | F16: =indmat(B16,X:X,Y:Y) -> -596 | G16: =indmat(B16,AB:AB,AD:AD) -> 275 | H16: =indmat(B16,AB:AB,AC:AC) -> -15 | I16: =indmat(B16,AF:AF,AH:AH) -> -973 | J16: =indmat(B16,AF:AF,AG:AG) -> -76 | K16: =indmat(B16,AJ:AJ,AL:AL) -> -238 | L16: =indmat(B16,AJ:AJ,AK:AK) -> 217 | M16: =indmat(B16,AN:AN,AP:AP) -> -2723 | N16: =indmat(B16,AN:AN,AO:AO) -> 828 | O16: =indmat(B16,AR:AR,AS:AS) -> -289 | T16: Accounts payable | U16: 92 | V16: 596 | W16: 1494 | X16: Other assets | Y16: -120 | Z16: -902 | AA16: 289 | AB16: Deferred revenue | AC16: 2824 | AD16: 1654 | AE16: 1217 | AF16: Deferred revenue | AG16: 1460 | AH16: 1459 | AI16: 2824 | AJ16: Accounts payable | AK16: 1791 | AL16: 5400 | AM16: 5938 | AN16: Other current and non-current assets | AO16: -423 | AP16: -5318 | AQ16: 1055 | AR16: Other current and non-current assets | AS16: 873 | AT16: -423 | AU16: -5318
A17: Inventories | B17: Other current and non-current assets | C17: =indmat(B17,T:T,U:U) -> 0 | D17: =indmat(B17,T:T,V:V) -> 0 | E17: =indmat(B17,T:T,W:W) -> 0 | F17: =indmat(B17,X:X,Y:Y) -> 0 | G17: =indmat(B17,AB:AB,AD:AD) -> -1391 | H17: =indmat(B17,AB:AB,AC:AC) -> -3162 | I17: =indmat(B17,AF:AF,AH:AH) -> 1080 | J17: =indmat(B17,AF:AF,AG:AG) -> 167 | K17: =indmat(B17,AJ:AJ,AL:AL) -> -179 | L17: =indmat(B17,AJ:AJ,AK:AK) -> 1090 | M17: =indmat(B17,AN:AN,AP:AP) -> -5318 | N17: =indmat(B17,AN:AN,AO:AO) -> -423 | O17: =indmat(B17,AR:AR,AS:AS) -> 873 | T17: Deferred revenue | U17: 521 | V17: 718 | W17: 566 | X17: Accounts payable | Y17: 6307 | Z17: 92 | AA17: 596 | AB17: Other current and non-current liabilities | AC17: 2552 | AD17: 4495 | AE17: 778 | AF17: Other current and non-current liabilities | AG17: 6010 | AH17: 4521 | AI17: 2552 | AJ17: Deferred revenue | AK17: -1554 | AL17: 1042 | AM17: 1460 | AN17: Accounts payable | AO17: 9175 | AP17: 8966 | AQ17: 2117 | AR17: Accounts payable | AS17: -1923 | AT17: 9175 | AU17: 8966
A18: Other current and non-current assets | B18: Vendor non-trade receivables | C18: =indmat(B18,T:T,U:U) -> 0 | D18: =indmat(B18,T:T,V:V) -> 0 | E18: =indmat(B18,T:T,W:W) -> 0 | F18: =indmat(B18,X:X,Y:Y) -> -2718 | G18: =indmat(B18,AB:AB,AD:AD) -> -1934 | H18: =indmat(B18,AB:AB,AC:AC) -> -1414 | I18: =indmat(B18,AF:AF,AH:AH) -> 223 | J18: =indmat(B18,AF:AF,AG:AG) -> -2220 | K18: =indmat(B18,AJ:AJ,AL:AL) -> -3735 | L18: =indmat(B18,AJ:AJ,AK:AK) -> -51 | M18: =indmat(B18,AN:AN,AP:AP) -> -4254 | N18: =indmat(B18,AN:AN,AO:AO) -> -8010 | O18: =indmat(B18,AR:AR,AS:AS) -> 2931 | T18: Other liabilities | U18: -161 | V18: 1664 | W18: 716 | X18: Deferred revenue | Y18: 1217 | Z18: 521 | AA18: 718 | AB18: Cash generated by operating activities | AC18: 50856 | AD18: 37529 | AE18: 18595 | AF18: Cash generated by operating activities | AG18: 59713 | AH18: 53666 | AI18: 50856 | AJ18: Other current and non-current liabilities | AK18: -2104 | AL18: 8746 | AM18: 6010 | AN18: Deferred revenue | AO18: -44 | AP18: -626 | AQ18: -1554 | AR18: Deferred revenue | AS18: -625 | AT18: -3 | AU18: -593
A19: Vendor non-trade receivables | B19: Other current assets | C19: =indmat(B19,T:T,U:U) -> 749 | D19: =indmat(B19,T:T,V:V) -> -274 | E19: =indmat(B19,T:T,W:W) -> -1279 | F19: =indmat(B19,X:X,Y:Y) -> -1514 | G19: =indmat(B19,AB:AB,AD:AD) -> 0 | H19: =indmat(B19,AB:AB,AC:AC) -> 0 | I19: =indmat(B19,AF:AF,AH:AH) -> 0 | J19: =indmat(B19,AF:AF,AG:AG) -> 0 | K19: =indmat(B19,AJ:AJ,AL:AL) -> 0 | L19: =indmat(B19,AJ:AJ,AK:AK) -> 0 | M19: =indmat(B19,AN:AN,AP:AP) -> 0 | N19: =indmat(B19,AN:AN,AO:AO) -> 0 | O19: =indmat(B19,AR:AR,AS:AS) -> 0 | T19: Cash generated by operating activities | U19: 10159 | V19: 9596 | W19: 5470 | X19: Other liabilities | Y19: 778 | Z19: -161 | AA19: 1664 | AB19: Investing activities: | AF19: Investing activities: | AJ19: Cash generated by operating activities | AK19: 65824 | AL19: 81266 | AM19: 59713 | AN19: Other current and non-current liabilities | AO19: 38490 | AP19: 1125 | AQ19: -1906 | AR19: Other current and non-current liabilities | AS19: -4700 | AT19: 38449 | AU19: 1092
A20: Other current assets | B20: Accounts payable | C20: =indmat(B20,T:T,U:U) -> 92 | D20: =indmat(B20,T:T,V:V) -> 596 | E20: =indmat(B20,T:T,W:W) -> 1494 | F20: =indmat(B20,X:X,Y:Y) -> 6307 | G20: =indmat(B20,AB:AB,AD:AD) -> 2515 | H20: =indmat(B20,AB:AB,AC:AC) -> 4467 | I20: =indmat(B20,AF:AF,AH:AH) -> 2340 | J20: =indmat(B20,AF:AF,AG:AG) -> 5938 | K20: =indmat(B20,AJ:AJ,AL:AL) -> 5400 | L20: =indmat(B20,AJ:AJ,AK:AK) -> 1791 | M20: =indmat(B20,AN:AN,AP:AP) -> 8966 | N20: =indmat(B20,AN:AN,AO:AO) -> 9175 | O20: =indmat(B20,AR:AR,AS:AS) -> -1923 | T20: Investing Activities: | X20: Cash generated by operating activities | Y20: 18595 | Z20: 10159 | AA20: 9596 | AB20: Purchases of marketable securities | AC20: -151232 | AD20: -102317 | AE20: -57793 | AF20: Purchases of marketable securities | AG20: -217128 | AH20: -148489 | AI20: -151232 | AJ20: Investing activities: | AN20: Cash generated by operating activities | AO20: 77434 | AP20: 64225 | AQ20: 66231 | AR20: Cash generated by operating activities | AS20: 69391 | AT20: 77434 | AU20: 64225
A21: Accounts payable | B21: Deferred revenue | C21: =indmat(B21,T:T,U:U) -> 521 | D21: =indmat(B21,T:T,V:V) -> 718 | E21: =indmat(B21,T:T,W:W) -> 566 | F21: =indmat(B21,X:X,Y:Y) -> 1217 | G21: =indmat(B21,AB:AB,AD:AD) -> 1654 | H21: =indmat(B21,AB:AB,AC:AC) -> 2824 | I21: =indmat(B21,AF:AF,AH:AH) -> 1459 | J21: =indmat(B21,AF:AF,AG:AG) -> 1460 | K21: =indmat(B21,AJ:AJ,AL:AL) -> 1042 | L21: =indmat(B21,AJ:AJ,AK:AK) -> -1554 | M21: =indmat(B21,AN:AN,AP:AP) -> -626 | N21: =indmat(B21,AN:AN,AO:AO) -> -44 | O21: =indmat(B21,AR:AR,AS:AS) -> -625 | T21: Purchases of marketable securities | U21: -46724 | V21: -22965 | W21: -11719 | X21: Investing activities: | AB21: Proceeds from maturities of marketable securities | AC21: 13035 | AD21: 20437 | AE21: 24930 | AF21: Proceeds from maturities of marketable securities | AG21: 18810 | AH21: 20317 | AI21: 13035 | AJ21: Purchases of marketable securities | AK21: -142428 | AL21: -166402 | AM21: -217128 | AN21: Investing activities: | AR21: Investing activities:
A22: Deferred revenue | B22: Other assets | C22: =indmat(B22,T:T,U:U) -> -902 | D22: =indmat(B22,T:T,V:V) -> 289 | E22: =indmat(B22,T:T,W:W) -> 285 | F22: =indmat(B22,X:X,Y:Y) -> -120 | G22: =indmat(B22,AB:AB,AD:AD) -> 0 | H22: =indmat(B22,AB:AB,AC:AC) -> 0 | I22: =indmat(B22,AF:AF,AH:AH) -> 0 | J22: =indmat(B22,AF:AF,AG:AG) -> 0 | K22: =indmat(B22,AJ:AJ,AL:AL) -> 0 | L22: =indmat(B22,AJ:AJ,AK:AK) -> 0 | M22: =indmat(B22,AN:AN,AP:AP) -> 0 | N22: =indmat(B22,AN:AN,AO:AO) -> 0 | O22: =indmat(B22,AR:AR,AS:AS) -> 0 | T22: Proceeds from maturities of marketable securities | U22: 19790 | V22: 11804 | W22: 6483 | X22: Purchases of marketable securities | Y22: -57793 | Z22: -46724 | AA22: -22965 | AB22: Proceeds from sales of marketable securities | AC22: 99770 | AD22: 49416 | AE22: 21788 | AF22: Proceeds from sales of marketable securities | AG22: 189301 | AH22: 104130 | AI22: 99770 | AJ22: Proceeds from maturities of marketable securities | AK22: 21258 | AL22: 14538 | AM22: 18810 | AN22: Purchases of marketable securities | AO22: -71356 | AP22: -159486 | AQ22: -142428 | AR22: Purchases of marketable securities | AS22: -39630 | AT22: -71356 | AU22: -159486
A23: Other assets | B23: Other current and non-current liabilities | C23: =indmat(B23,T:T,U:U) -> 0 | D23: =indmat(B23,T:T,V:V) -> 0 | E23: =indmat(B23,T:T,W:W) -> 0 | F23: =indmat(B23,X:X,Y:Y) -> 0 | G23: =indmat(B23,AB:AB,AD:AD) -> 4495 | H23: =indmat(B23,AB:AB,AC:AC) -> 2552 | I23: =indmat(B23,AF:AF,AH:AH) -> 4521 | J23: =indmat(B23,AF:AF,AG:AG) -> 6010 | K23: =indmat(B23,AJ:AJ,AL:AL) -> 8746 | L23: =indmat(B23,AJ:AJ,AK:AK) -> -2104 | M23: =indmat(B23,AN:AN,AP:AP) -> 1125 | N23: =indmat(B23,AN:AN,AO:AO) -> 38490 | O23: =indmat(B23,AR:AR,AS:AS) -> -4700 | T23: Proceeds from sales of marketable securities | U23: 10888 | V23: 4439 | W23: 2941 | X23: Proceeds from maturities of marketable securities | Y23: 24930 | Z23: 19790 | AA23: 11804 | AB23: Payments made in connection with business acquisitions, net of cash acquired | AC23: -350 | AD23: -244 | AE23: -638 | AF23: Payments made in connection with business acquisitions, net | AG23: -3765 | AH23: -496 | AI23: -350 | AJ23: Proceeds from sales of marketable securities | AK23: 90536 | AL23: 107447 | AM23: 189301 | AN23: Proceeds from maturities of marketable securities | AO23: 55881 | AP23: 31775 | AQ23: 21258 | AR23: Proceeds from maturities of marketable securities | AS23: 40102 | AT23: 55881 | AU23: 31775
A24: Other current and non-current liabilities | B24: Cash generated by operating activities | C24: =indmat(B24,T:T,U:U) -> 10159 | D24: =indmat(B24,T:T,V:V) -> 9596 | E24: =indmat(B24,T:T,W:W) -> 5470 | F24: =indmat(B24,X:X,Y:Y) -> 18595 | G24: =indmat(B24,AB:AB,AD:AD) -> 37529 | H24: =indmat(B24,AB:AB,AC:AC) -> 50856 | I24: =indmat(B24,AF:AF,AH:AH) -> 53666 | J24: =indmat(B24,AF:AF,AG:AG) -> 59713 | K24: =indmat(B24,AJ:AJ,AL:AL) -> 81266 | L24: =indmat(B24,AJ:AJ,AK:AK) -> 65824 | M24: =indmat(B24,AN:AN,AP:AP) -> 64225 | N24: =indmat(B24,AN:AN,AO:AO) -> 77434 | O24: =indmat(B24,AR:AR,AS:AS) -> 69391 | T24: Purchases of other long-term investments | U24: -101 | V24: -38 | W24: -17 | X24: Proceeds from sales of marketable securities | Y24: 21788 | Z24: 10888 | AA24: 4439 | AB24: Payments for acquisition of property, plant and equipment | AC24: -8295 | AD24: -4260 | AE24: -2005 | AF24: Payments for acquisition of property, plant and equipment | AG24: -9571 | AH24: -8165 | AI24: -8295 | AJ24: Payments made in connection with business acquisitions, net | AK24: -297 | AL24: -343 | AM24: -3765 | AN24: Proceeds from sales of marketable securities | AO24: 47838 | AP24: 94564 | AQ24: 90536 | AR24: Proceeds from sales of marketable securities | AS24: 56988 | AT24: 47838 | AU24: 94564
A25: Cash generated by operating activities | B25: Other liabilities | C25: =indmat(B25,T:T,U:U) -> -161 | D25: =indmat(B25,T:T,V:V) -> 1664 | E25: =indmat(B25,T:T,W:W) -> 716 | F25: =indmat(B25,X:X,Y:Y) -> 778 | G25: =indmat(B25,AB:AB,AD:AD) -> 0 | H25: =indmat(B25,AB:AB,AC:AC) -> 0 | I25: =indmat(B25,AF:AF,AH:AH) -> 0 | J25: =indmat(B25,AF:AF,AG:AG) -> 0 | K25: =indmat(B25,AJ:AJ,AL:AL) -> 0 | L25: =indmat(B25,AJ:AJ,AK:AK) -> 0 | M25: =indmat(B25,AN:AN,AP:AP) -> 0 | N25: =indmat(B25,AN:AN,AO:AO) -> 0 | O25: =indmat(B25,AR:AR,AS:AS) -> 0 | T25: Payments made in connection with business acquisitions, net of cash acquired | U25: 0 | V25: -220 | W25: 0 | X25: Purchases of other long-term investments | Y25: -18 | Z25: -101 | AA25: -38 | AB25: Payments for acquisition of intangible assets | AC25: -1107 | AD25: -3192 | AE25: -116 | AF25: Payments for acquisition of intangible assets | AG25: -242 | AH25: -911 | AI25: -1107 | AJ25: Payments for acquisition of property, plant and equipment | AK25: -12734 | AL25: -11247 | AM25: -9571 | AN25: Payments for acquisition of property, plant and equipment | AO25: -13313 | AP25: -12451 | AQ25: -12734 | AR25: Payments for acquisition of property, plant and equipment | AS25: -10495 | AT25: -13313 | AU25: -12451
A26: Other liabilities | B26: Investing Activities: | C26: =indmat(B26,T:T,U:U) -> 0 | D26: =indmat(B26,T:T,V:V) -> 0 | E26: =indmat(B26,T:T,W:W) -> 0 | F26: =indmat(B26,X:X,Y:Y) -> 0 | G26: =indmat(B26,AB:AB,AD:AD) -> 0 | H26: =indmat(B26,AB:AB,AC:AC) -> 0 | I26: =indmat(B26,AF:AF,AH:AH) -> 0 | J26: =indmat(B26,AF:AF,AG:AG) -> 0 | K26: =indmat(B26,AJ:AJ,AL:AL) -> 0 | L26: =indmat(B26,AJ:AJ,AK:AK) -> 0 | M26: =indmat(B26,AN:AN,AP:AP) -> 0 | N26: =indmat(B26,AN:AN,AO:AO) -> 0 | O26: =indmat(B26,AR:AR,AS:AS) -> 0 | T26: Payment for acquisition of property, plant and equipment | U26: -1144 | V26: -1091 | W26: -735 | X26: Payments made in connection with business acquisitions, net of cash acquired | Y26: -638 | Z26: 0 | AA26: -220 | AB26: Other | AC26: -48 | AD26: -259 | AE26: -20 | AF26: Other | AG26: 16 | AH26: -160 | AI26: -48 | AJ26: Payments for acquisition of intangible assets | AK26: -814 | AL26: -241 | AM26: -242 | AN26: Payments made in connection with business acquisitions, net | AO26: -721 | AP26: -329 | AQ26: -297 | AR26: Payments made in connection with business acquisitions, net | AS26: -624 | AT26: -721 | AU26: -329
A27: Investing Activities: | B27: Investing activities: | C27: =indmat(B27,T:T,U:U) -> 0 | D27: =indmat(B27,T:T,V:V) -> 0 | E27: =indmat(B27,T:T,W:W) -> 0 | F27: =indmat(B27,X:X,Y:Y) -> 0 | G27: =indmat(B27,AB:AB,AD:AD) -> 0 | H27: =indmat(B27,AB:AB,AC:AC) -> 0 | I27: =indmat(B27,AF:AF,AH:AH) -> 0 | J27: =indmat(B27,AF:AF,AG:AG) -> 0 | K27: =indmat(B27,AJ:AJ,AL:AL) -> 0 | L27: =indmat(B27,AJ:AJ,AK:AK) -> 0 | M27: =indmat(B27,AN:AN,AP:AP) -> 0 | N27: =indmat(B27,AN:AN,AO:AO) -> 0 | O27: =indmat(B27,AR:AR,AS:AS) -> 0 | T27: Payment for acquisition of intangible assets | U27: -69 | V27: -108 | W27: -251 | X27: Payments for acquisition of property, plant and equipment | Y27: -2005 | Z27: -1144 | AA27: -1091 | AB27: Cash used in investing activities | AC27: -48227 | AD27: -40419 | AE27: -13854 | AF27: Cash used in investing activities | AG27: -22579 | AH27: -33774 | AI27: -48227 | AJ27: Payments for strategic investments | AK27: -1388 | AL27: 0 | AM27: -10 | AN27: Purchases of non-marketable securities | AO27: -1871 | AP27: -521 | AQ27: -1388 | AR27: Purchases of non-marketable securities | AS27: -1001 | AT27: -1871 | AU27: -521
A28: Investing activities: | B28: Proceeds from maturities of marketable securities | C28: =indmat(B28,T:T,U:U) -> 19790 | D28: =indmat(B28,T:T,V:V) -> 11804 | E28: =indmat(B28,T:T,W:W) -> 6483 | F28: =indmat(B28,X:X,Y:Y) -> 24930 | G28: =indmat(B28,AB:AB,AD:AD) -> 20437 | H28: =indmat(B28,AB:AB,AC:AC) -> 13035 | I28: =indmat(B28,AF:AF,AH:AH) -> 20317 | J28: =indmat(B28,AF:AF,AG:AG) -> 18810 | K28: =indmat(B28,AJ:AJ,AL:AL) -> 14538 | L28: =indmat(B28,AJ:AJ,AK:AK) -> 21258 | M28: =indmat(B28,AN:AN,AP:AP) -> 31775 | N28: =indmat(B28,AN:AN,AO:AO) -> 55881 | O28: =indmat(B28,AR:AR,AS:AS) -> 40102 | T28: Other | U28: -74 | V28: -10 | W28: 49 | X28: Payments for acquisition of intangible assets | Y28: -116 | Z28: -69 | AA28: -108 | AB28: Financing activities: | AF28: Financing activities: | AJ28: Other | AK28: -110 | AL28: -26 | AM28: 26 | AN28: Proceeds from non-marketable securities | AO28: 353 | AP28: 126 | AQ28: 0 | AR28: Proceeds from non-marketable securities | AS28: 1634 | AT28: 353 | AU28: 126
A29: Proceeds from maturities of marketable securities | B29: Proceeds from sales of marketable securities | C29: =indmat(B29,T:T,U:U) -> 10888 | D29: =indmat(B29,T:T,V:V) -> 4439 | E29: =indmat(B29,T:T,W:W) -> 2941 | F29: =indmat(B29,X:X,Y:Y) -> 21788 | G29: =indmat(B29,AB:AB,AD:AD) -> 49416 | H29: =indmat(B29,AB:AB,AC:AC) -> 99770 | I29: =indmat(B29,AF:AF,AH:AH) -> 104130 | J29: =indmat(B29,AF:AF,AG:AG) -> 189301 | K29: =indmat(B29,AJ:AJ,AL:AL) -> 107447 | L29: =indmat(B29,AJ:AJ,AK:AK) -> 90536 | M29: =indmat(B29,AN:AN,AP:AP) -> 94564 | N29: =indmat(B29,AN:AN,AO:AO) -> 47838 | O29: =indmat(B29,AR:AR,AS:AS) -> 56988 | T29: Cash used in investing activities | U29: -17434 | V29: -8189 | W29: -3249 | X29: Other | Y29: -2 | Z29: -74 | AA29: -10 | AB29: Proceeds from issuance of common stock | AC29: 665 | AD29: 831 | AE29: 912 | AF29: Proceeds from issuance of common stock | AG29: 730 | AH29: 530 | AI29: 665 | AJ29: Cash used in investing activities | AK29: -45977 | AL29: -56274 | AM29: -22579 | AN29: Other | AO29: -745 | AP29: -124 | AQ29: -924 | AR29: Other | AS29: -1078 | AT29: -745 | AU29: -124
A30: Proceeds from sales of marketable securities | B30: Purchases of marketable securities | C30: =indmat(B30,T:T,U:U) -> -46724 | D30: =indmat(B30,T:T,V:V) -> -22965 | E30: =indmat(B30,T:T,W:W) -> -11719 | F30: =indmat(B30,X:X,Y:Y) -> -57793 | G30: =indmat(B30,AB:AB,AD:AD) -> -102317 | H30: =indmat(B30,AB:AB,AC:AC) -> -151232 | I30: =indmat(B30,AF:AF,AH:AH) -> -148489 | J30: =indmat(B30,AF:AF,AG:AG) -> -217128 | K30: =indmat(B30,AJ:AJ,AL:AL) -> -166402 | L30: =indmat(B30,AJ:AJ,AK:AK) -> -142428 | M30: =indmat(B30,AN:AN,AP:AP) -> -159486 | N30: =indmat(B30,AN:AN,AO:AO) -> -71356 | O30: =indmat(B30,AR:AR,AS:AS) -> -39630 | T30: Financing Activities: | X30: Cash used in investing activities | Y30: -13854 | Z30: -17434 | AA30: -8189 | AB30: Excess tax benefits from equity awards | AC30: 1351 | AD30: 1133 | AE30: 751 | AF30: Excess tax benefits from equity awards | AG30: 739 | AH30: 701 | AI30: 1351 | AJ30: Financing activities: | AN30: Cash generated by/(used in) investing activities | AO30: 16066 | AP30: -46446 | AQ30: -45977 | AR30: Cash generated by/(used in) investing activities | AS30: 45896 | AT30: 16066 | AU30: -46446
A31: Purchases of marketable securities | B31: Payments made in connection with business acquisitions, net | C31: =indmat(B31,T:T,U:U) -> 0 | D31: =indmat(B31,T:T,V:V) -> 0 | E31: =indmat(B31,T:T,W:W) -> 0 | F31: =indmat(B31,X:X,Y:Y) -> 0 | G31: =indmat(B31,AB:AB,AD:AD) -> 0 | H31: =indmat(B31,AB:AB,AC:AC) -> 0 | I31: =indmat(B31,AF:AF,AH:AH) -> -496 | J31: =indmat(B31,AF:AF,AG:AG) -> -3765 | K31: =indmat(B31,AJ:AJ,AL:AL) -> -343 | L31: =indmat(B31,AJ:AJ,AK:AK) -> -297 | M31: =indmat(B31,AN:AN,AP:AP) -> -329 | N31: =indmat(B31,AN:AN,AO:AO) -> -721 | O31: =indmat(B31,AR:AR,AS:AS) -> -624 | T31: Proceeds from issuance of common stock | U31: 475 | V31: 483 | W31: 365 | X31: Financing activities: | AB31: Dividends and dividend equivalent rights paid | AC31: -2488 | AD31: 0 | AE31: 0 | AF31: Taxes paid related to net share settlement of equity awards | AG31: -1158 | AH31: -1082 | AI31: -1226 | AJ31: Proceeds from issuance of common stock | AK31: 495 | AL31: 543 | AM31: 730 | AN31: Financing activities: | AR31: Financing activities:
A32: Payments made in connection with business acquisitions, net | B32: Payments for acquisition of property, plant and equipment | C32: =indmat(B32,T:T,U:U) -> 0 | D32: =indmat(B32,T:T,V:V) -> 0 | E32: =indmat(B32,T:T,W:W) -> 0 | F32: =indmat(B32,X:X,Y:Y) -> -2005 | G32: =indmat(B32,AB:AB,AD:AD) -> -4260 | H32: =indmat(B32,AB:AB,AC:AC) -> -8295 | I32: =indmat(B32,AF:AF,AH:AH) -> -8165 | J32: =indmat(B32,AF:AF,AG:AG) -> -9571 | K32: =indmat(B32,AJ:AJ,AL:AL) -> -11247 | L32: =indmat(B32,AJ:AJ,AK:AK) -> -12734 | M32: =indmat(B32,AN:AN,AP:AP) -> -12451 | N32: =indmat(B32,AN:AN,AO:AO) -> -13313 | O32: =indmat(B32,AR:AR,AS:AS) -> -10495 | T32: Excess tax benefits from stock-based compensation | U32: 270 | V32: 757 | W32: 377 | X32: Proceeds from issuance of common stock | Y32: 912 | Z32: 475 | AA32: 483 | AB32: Taxes paid related to net share settlement of equity awards | AC32: -1226 | AD32: -520 | AE32: -406 | AF32: Dividends and dividend equivalents paid | AG32: -11126 | AH32: -10564 | AI32: -2488 | AJ32: Excess tax benefits from equity awards | AK32: 407 | AL32: 749 | AM32: 739 | AN32: Proceeds from issuance of common stock | AO32: 669 | AP32: 555 | AQ32: 495 | AR32: Proceeds from issuance of common stock | AS32: 781 | AT32: 669 | AU32: 555
A33: Payments for acquisition of property, plant and equipment | B33: Payments for acquisition of intangible assets | C33: =indmat(B33,T:T,U:U) -> 0 | D33: =indmat(B33,T:T,V:V) -> 0 | E33: =indmat(B33,T:T,W:W) -> 0 | F33: =indmat(B33,X:X,Y:Y) -> -116 | G33: =indmat(B33,AB:AB,AD:AD) -> -3192 | H33: =indmat(B33,AB:AB,AC:AC) -> -1107 | I33: =indmat(B33,AF:AF,AH:AH) -> -911 | J33: =indmat(B33,AF:AF,AG:AG) -> -242 | K33: =indmat(B33,AJ:AJ,AL:AL) -> -241 | L33: =indmat(B33,AJ:AJ,AK:AK) -> -814 | M33: =indmat(B33,AN:AN,AP:AP) -> 0 | N33: =indmat(B33,AN:AN,AO:AO) -> 0 | O33: =indmat(B33,AR:AR,AS:AS) -> 0 | T33: Cash used to net share settle equity awards | U33: -82 | V33: -124 | W33: -3 | X33: Excess tax benefits from stock-based compensation | Y33: 751 | Z33: 270 | AA33: 757 | AB33: Cash (used in)/generated by financing activities | AC33: -1698 | AD33: 1444 | AE33: 1257 | AF33: Repurchase of common stock | AG33: -45000 | AH33: -22860 | AI33: 0 | AJ33: Payments for taxes related to net share settlement of equity awards | AK33: -1570 | AL33: -1499 | AM33: -1158 | AN33: Payments for taxes related to net share settlement of equity awards | AO33: -2527 | AP33: -1874 | AQ33: -1570 | AR33: Payments for taxes related to net share settlement of equity awards | AS33: -2817 | AT33: -2527 | AU33: -1874
A34: Payments for acquisition of intangible assets | B34: Purchases of other long-term investments | C34: =indmat(B34,T:T,U:U) -> -101 | D34: =indmat(B34,T:T,V:V) -> -38 | E34: =indmat(B34,T:T,W:W) -> -17 | F34: =indmat(B34,X:X,Y:Y) -> -18 | G34: =indmat(B34,AB:AB,AD:AD) -> 0 | H34: =indmat(B34,AB:AB,AC:AC) -> 0 | I34: =indmat(B34,AF:AF,AH:AH) -> 0 | J34: =indmat(B34,AF:AF,AG:AG) -> 0 | K34: =indmat(B34,AJ:AJ,AL:AL) -> 0 | L34: =indmat(B34,AJ:AJ,AK:AK) -> 0 | M34: =indmat(B34,AN:AN,AP:AP) -> 0 | N34: =indmat(B34,AN:AN,AO:AO) -> 0 | O34: =indmat(B34,AR:AR,AS:AS) -> 0 | T34: Cash generated by financing activities | U34: 663 | V34: 1116 | W34: 739 | X34: Taxes paid related to net share settlement of equity awards | Y34: -406 | Z34: -82 | AA34: -124 | AB34: Increase/(decrease) in cash and cash equivalents | AC34: 931 | AD34: -1446 | AE34: 5998 | AF34: Proceeds from issuance of long-term debt, net | AG34: 11960 | AH34: 16896 | AI34: 0 | AJ34: Payments for dividends and dividend equivalents | AK34: -12150 | AL34: -11561 | AM34: -11126 | AN34: Payments for dividends and dividend equivalents | AO34: 13712 | AP34: 12769 | AQ34: 12150 | AR34: Payments for dividends and dividend equivalents | AS34: 14119 | AT34: 13712 | AU34: 12769
A35: Purchases of other long-term investments | B35: Other | C35: =indmat(B35,T:T,U:U) -> -74 | D35: =indmat(B35,T:T,V:V) -> -10 | E35: =indmat(B35,T:T,W:W) -> 49 | F35: =indmat(B35,X:X,Y:Y) -> -2 | G35: =indmat(B35,AB:AB,AD:AD) -> -259 | H35: =indmat(B35,AB:AB,AC:AC) -> -48 | I35: =indmat(B35,AF:AF,AH:AH) -> -160 | J35: =indmat(B35,AF:AF,AG:AG) -> 16 | K35: =indmat(B35,AJ:AJ,AL:AL) -> -26 | L35: =indmat(B35,AJ:AJ,AK:AK) -> -110 | M35: =indmat(B35,AN:AN,AP:AP) -> -166 | N35: =indmat(B35,AN:AN,AO:AO) -> -444 | O35: =indmat(B35,AR:AR,AS:AS) -> -652 | T35: (Decrease)/increase in cash and cash equivalents | U35: -6612 | V35: 2523 | W35: 2960 | X35: Cash generated by financing activities | Y35: 1257 | Z35: 663 | AA35: 1116 | AB35: Cash and cash equivalents, end of the year | AC35: 10746 | AD35: 9815 | AE35: 11261 | AF35: Proceeds from issuance of commercial paper, net | AG35: 6306 | AH35: 0 | AI35: 0 | AJ35: Repurchases of common stock | AK35: -29722 | AL35: -35253 | AM35: -45000 | AN35: Repurchases of common stock | AO35: -72738 | AP35: -32900 | AQ35: -29722 | AR35: Repurchases of common stock | AS35: -66897 | AT35: -72738 | AU35: -32900
A36: Other | B36: Payments for strategic investments | C36: =indmat(B36,T:T,U:U) -> 0 | D36: =indmat(B36,T:T,V:V) -> 0 | E36: =indmat(B36,T:T,W:W) -> 0 | F36: =indmat(B36,X:X,Y:Y) -> 0 | G36: =indmat(B36,AB:AB,AD:AD) -> 0 | H36: =indmat(B36,AB:AB,AC:AC) -> 0 | I36: =indmat(B36,AF:AF,AH:AH) -> 0 | J36: =indmat(B36,AF:AF,AG:AG) -> 0 | K36: =indmat(B36,AJ:AJ,AL:AL) -> 0 | L36: =indmat(B36,AJ:AJ,AK:AK) -> -1388 | M36: =indmat(B36,AN:AN,AP:AP) -> 0 | N36: =indmat(B36,AN:AN,AO:AO) -> 0 | O36: =indmat(B36,AR:AR,AS:AS) -> 0 | T36: Cash and cash equivalents, end of the year | U36: 5263 | V36: 11875 | W36: 9352 | X36: Increase/(decrease) in cash and cash equivalents | Y36: 5998 | Z36: -6612 | AA36: 2523 | AB36: Supplemental cash flow disclosure: | AF36: Cash used in financing activities | AG36: -37549 | AH36: -16379 | AI36: -1698 | AJ36: Proceeds from issuance of term debt, net | AK36: 24954 | AL36: 27114 | AM36: 11960 | AN36: Proceeds from issuance of term debt, net | AO36: 6969 | AP36: 28662 | AQ36: 24954 | AR36: Proceeds from issuance of term debt, net | AS36: 6963 | AT36: 6969 | AU36: 28662
A37: Payments for strategic investments | B37: Payments made in connection with business acquisitions, net of cash acquired | C37: =indmat(B37,T:T,U:U) -> 0 | D37: =indmat(B37,T:T,V:V) -> -220 | E37: =indmat(B37,T:T,W:W) -> 0 | F37: =indmat(B37,X:X,Y:Y) -> -638 | G37: =indmat(B37,AB:AB,AD:AD) -> -244 | H37: =indmat(B37,AB:AB,AC:AC) -> -350 | I37: =indmat(B37,AF:AF,AH:AH) -> 0 | J37: =indmat(B37,AF:AF,AG:AG) -> 0 | K37: =indmat(B37,AJ:AJ,AL:AL) -> 0 | L37: =indmat(B37,AJ:AJ,AK:AK) -> 0 | M37: =indmat(B37,AN:AN,AP:AP) -> 0 | N37: =indmat(B37,AN:AN,AO:AO) -> 0 | O37: =indmat(B37,AR:AR,AS:AS) -> 0 | T37: Supplemental cash flow disclosures: | X37: Cash and cash equivalents, end of the year | Y37: 11261 | Z37: 5263 | AA37: 11875 | AB37: Cash paid for income taxes, net | AC37: 7682 | AD37: 3338 | AE37: 2697 | AF37: Increase/(decrease) in cash and cash equivalents | AG37: -415 | AH37: 3513 | AI37: 931 | AJ37: Repayments of term debt | AK37: -2500 | AL37: 0 | AM37: 0 | AN37: Repayments of term debt | AO37: -6500 | AP37: -3500 | AQ37: -2500 | AR37: Repayments of term debt | AS37: -8805 | AT37: -6500 | AU37: -3500
A38: Payments made in connection with business acquisitions, net of cash acquired | B38: Purchases of non-marketable securities | C38: =indmat(B38,T:T,U:U) -> 0 | D38: =indmat(B38,T:T,V:V) -> 0 | E38: =indmat(B38,T:T,W:W) -> 0 | F38: =indmat(B38,X:X,Y:Y) -> 0 | G38: =indmat(B38,AB:AB,AD:AD) -> 0 | H38: =indmat(B38,AB:AB,AC:AC) -> 0 | I38: =indmat(B38,AF:AF,AH:AH) -> 0 | J38: =indmat(B38,AF:AF,AG:AG) -> 0 | K38: =indmat(B38,AJ:AJ,AL:AL) -> 0 | L38: =indmat(B38,AJ:AJ,AK:AK) -> 0 | M38: =indmat(B38,AN:AN,AP:AP) -> -521 | N38: =indmat(B38,AN:AN,AO:AO) -> -1871 | O38: =indmat(B38,AR:AR,AS:AS) -> -1001 | T38: Cash paid for income taxes, net | U38: 2997 | V38: 1267 | W38: 863 | X38: Supplemental cash flow disclosure: | AF38: Cash and cash equivalents, end of the year | AG38: 13844 | AH38: 14259 | AI38: 10746 | AJ38: Change in commercial paper, net | AK38: -397 | AL38: 2191 | AM38: 6306 | AN38: Change in commercial paper, net | AO38: -37 | AP38: 3852 | AQ38: -397 | AR38: Proceeds from/(Repayments of) commercial paper, net | AS38: -5977 | AT38: -37 | AU38: 3852
A39: Purchases of non-marketable securities | B39: Payment for acquisition of property, plant and equipment | C39: =indmat(B39,T:T,U:U) -> -1144 | D39: =indmat(B39,T:T,V:V) -> -1091 | E39: =indmat(B39,T:T,W:W) -> -735 | F39: =indmat(B39,X:X,Y:Y) -> 0 | G39: =indmat(B39,AB:AB,AD:AD) -> 0 | H39: =indmat(B39,AB:AB,AC:AC) -> 0 | I39: =indmat(B39,AF:AF,AH:AH) -> 0 | J39: =indmat(B39,AF:AF,AG:AG) -> 0 | K39: =indmat(B39,AJ:AJ,AL:AL) -> 0 | L39: =indmat(B39,AJ:AJ,AK:AK) -> 0 | M39: =indmat(B39,AN:AN,AP:AP) -> 0 | N39: =indmat(B39,AN:AN,AO:AO) -> 0 | O39: =indmat(B39,AR:AR,AS:AS) -> 0 | X39: Cash paid for income taxes, net | Y39: $ 2,697 | Z39: $ 2,997 | AA39: $ 1,267 | AF39: Supplemental cash flow disclosure: | AJ39: Cash used in financing activities | AK39: -20483 | AL39: -17716 | AM39: -37549 | AN39: Cash used in financing activities | AO39: -87876 | AP39: -17974 | AQ39: -20890 | AR39: Other | AS39: -105 | AT39: 0 | AU39: 0
A40: Payment for acquisition of property, plant and equipment | B40: Proceeds from non-marketable securities | C40: =indmat(B40,T:T,U:U) -> 0 | D40: =indmat(B40,T:T,V:V) -> 0 | E40: =indmat(B40,T:T,W:W) -> 0 | F40: =indmat(B40,X:X,Y:Y) -> 0 | G40: =indmat(B40,AB:AB,AD:AD) -> 0 | H40: =indmat(B40,AB:AB,AC:AC) -> 0 | I40: =indmat(B40,AF:AF,AH:AH) -> 0 | J40: =indmat(B40,AF:AF,AG:AG) -> 0 | K40: =indmat(B40,AJ:AJ,AL:AL) -> 0 | L40: =indmat(B40,AJ:AJ,AK:AK) -> 0 | M40: =indmat(B40,AN:AN,AP:AP) -> 126 | N40: =indmat(B40,AN:AN,AO:AO) -> 353 | O40: =indmat(B40,AR:AR,AS:AS) -> 1634 | AF40: Cash paid for income taxes, net | AG40: 10026 | AH40: 9128 | AI40: 7682 | AJ40: Increase/(Decrease) in cash and cash equivalents | AK40: -636 | AL40: 7276 | AM40: -415 | AN40: Increase/(Decrease) in cash and cash equivalents | AO40: 5624 | AP40: -195 | AQ40: -636 | AR40: Cash used in financing activities | AS40: -90976 | AT40: -87876 | AU40: -17974
A41: Proceeds from non-marketable securities | B41: Payment for acquisition of intangible assets | C41: =indmat(B41,T:T,U:U) -> -69 | D41: =indmat(B41,T:T,V:V) -> -108 | E41: =indmat(B41,T:T,W:W) -> -251 | F41: =indmat(B41,X:X,Y:Y) -> 0 | G41: =indmat(B41,AB:AB,AD:AD) -> 0 | H41: =indmat(B41,AB:AB,AC:AC) -> 0 | I41: =indmat(B41,AF:AF,AH:AH) -> 0 | J41: =indmat(B41,AF:AF,AG:AG) -> 0 | K41: =indmat(B41,AJ:AJ,AL:AL) -> 0 | L41: =indmat(B41,AJ:AJ,AK:AK) -> 0 | M41: =indmat(B41,AN:AN,AP:AP) -> 0 | N41: =indmat(B41,AN:AN,AO:AO) -> 0 | O41: =indmat(B41,AR:AR,AS:AS) -> 0 | AF41: Cash paid for interest | AG41: 339 | AH41: 0 | AI41: 0 | AJ41: Cash and cash equivalents, end of the year | AK41: 20484 | AL41: 21120 | AM41: 13844 | AN41: Cash and cash equivalents, end of the year | AO41: 25913 | AP41: 20289 | AQ41: 20484 | AR41: Increase/(Decrease) in cash, cash equivalents and restricted cash | AS41: 24311 | AT41: 5624 | AU41: -195
A42: Payment for acquisition of intangible assets | B42: Cash generated by/(used in) investing activities | C42: =indmat(B42,T:T,U:U) -> 0 | D42: =indmat(B42,T:T,V:V) -> 0 | E42: =indmat(B42,T:T,W:W) -> 0 | F42: =indmat(B42,X:X,Y:Y) -> 0 | G42: =indmat(B42,AB:AB,AD:AD) -> 0 | H42: =indmat(B42,AB:AB,AC:AC) -> 0 | I42: =indmat(B42,AF:AF,AH:AH) -> 0 | J42: =indmat(B42,AF:AF,AG:AG) -> 0 | K42: =indmat(B42,AJ:AJ,AL:AL) -> 0 | L42: =indmat(B42,AJ:AJ,AK:AK) -> 0 | M42: =indmat(B42,AN:AN,AP:AP) -> -46446 | N42: =indmat(B42,AN:AN,AO:AO) -> 16066 | O42: =indmat(B42,AR:AR,AS:AS) -> 45896 | AJ42: Supplemental cash flow disclosure: | AN42: Supplemental cash flow disclosure: | AR42: Cash, cash equivalents and restricted cash, ending balances | AS42: 50224 | AT42: 25913 | AU42: 20289
A43: Cash generated by/(used in) investing activities | B43: Financing activities: | C43: =indmat(B43,T:T,U:U) -> 0 | D43: =indmat(B43,T:T,V:V) -> 0 | E43: =indmat(B43,T:T,W:W) -> 0 | F43: =indmat(B43,X:X,Y:Y) -> 0 | G43: =indmat(B43,AB:AB,AD:AD) -> 0 | H43: =indmat(B43,AB:AB,AC:AC) -> 0 | I43: =indmat(B43,AF:AF,AH:AH) -> 0 | J43: =indmat(B43,AF:AF,AG:AG) -> 0 | K43: =indmat(B43,AJ:AJ,AL:AL) -> 0 | L43: =indmat(B43,AJ:AJ,AK:AK) -> 0 | M43: =indmat(B43,AN:AN,AP:AP) -> 0 | N43: =indmat(B43,AN:AN,AO:AO) -> 0 | O43: =indmat(B43,AR:AR,AS:AS) -> 0 | AJ43: Cash paid for income taxes, net | AK43: 10444 | AL43: 13252 | AM43: 10026 | AN43: Cash paid for income taxes, net | AO43: 10417 | AP43: 11591 | AQ43: 10444 | AR43: Supplemental cash flow disclosure:
A44: Financing activities: | B44: Cash used in investing activities | C44: =indmat(B44,T:T,U:U) -> -17434 | D44: =indmat(B44,T:T,V:V) -> -8189 | E44: =indmat(B44,T:T,W:W) -> -3249 | F44: =indmat(B44,X:X,Y:Y) -> -13854 | G44: =indmat(B44,AB:AB,AD:AD) -> -40419 | H44: =indmat(B44,AB:AB,AC:AC) -> -48227 | I44: =indmat(B44,AF:AF,AH:AH) -> -33774 | J44: =indmat(B44,AF:AF,AG:AG) -> -22579 | K44: =indmat(B44,AJ:AJ,AL:AL) -> -56274 | L44: =indmat(B44,AJ:AJ,AK:AK) -> -45977 | M44: =indmat(B44,AN:AN,AP:AP) -> 0 | N44: =indmat(B44,AN:AN,AO:AO) -> 0 | O44: =indmat(B44,AR:AR,AS:AS) -> 0 | AJ44: Cash paid for interest | AK44: 1316 | AL44: 514 | AM44: 339 | AN44: Cash paid for interest | AO44: 3022 | AP44: 2092 | AQ44: 1316 | AR44: Cash paid for income taxes, net | AS44: 15263 | AT44: 10417 | AU44: 11591
A45: Cash used in investing activities | B45: Excess tax benefits from equity awards | C45: =indmat(B45,T:T,U:U) -> 0 | D45: =indmat(B45,T:T,V:V) -> 0 | E45: =indmat(B45,T:T,W:W) -> 0 | F45: =indmat(B45,X:X,Y:Y) -> 0 | G45: =indmat(B45,AB:AB,AD:AD) -> 1133 | H45: =indmat(B45,AB:AB,AC:AC) -> 1351 | I45: =indmat(B45,AF:AF,AH:AH) -> 701 | J45: =indmat(B45,AF:AF,AG:AG) -> 739 | K45: =indmat(B45,AJ:AJ,AL:AL) -> 749 | L45: =indmat(B45,AJ:AJ,AK:AK) -> 407 | M45: =indmat(B45,AN:AN,AP:AP) -> 0 | N45: =indmat(B45,AN:AN,AO:AO) -> 0 | O45: =indmat(B45,AR:AR,AS:AS) -> 0 | AR45: Cash paid for interest | AS45: 3423 | AT45: 3022 | AU45: 2092
A46: Excess tax benefits from equity awards | B46: Dividends and dividend equivalent rights paid | C46: =indmat(B46,T:T,U:U) -> 0 | D46: =indmat(B46,T:T,V:V) -> 0 | E46: =indmat(B46,T:T,W:W) -> 0 | F46: =indmat(B46,X:X,Y:Y) -> 0 | G46: =indmat(B46,AB:AB,AD:AD) -> 0 | H46: =indmat(B46,AB:AB,AC:AC) -> -2488 | I46: =indmat(B46,AF:AF,AH:AH) -> 0 | J46: =indmat(B46,AF:AF,AG:AG) -> 0 | K46: =indmat(B46,AJ:AJ,AL:AL) -> 0 | L46: =indmat(B46,AJ:AJ,AK:AK) -> 0 | M46: =indmat(B46,AN:AN,AP:AP) -> 0 | N46: =indmat(B46,AN:AN,AO:AO) -> 0 | O46: =indmat(B46,AR:AR,AS:AS) -> 0
A47: Dividends and dividend equivalent rights paid | B47: Financing Activities: | C47: =indmat(B47,T:T,U:U) -> 0 | D47: =indmat(B47,T:T,V:V) -> 0 | E47: =indmat(B47,T:T,W:W) -> 0 | F47: =indmat(B47,X:X,Y:Y) -> 0 | G47: =indmat(B47,AB:AB,AD:AD) -> 0 | H47: =indmat(B47,AB:AB,AC:AC) -> 0 | I47: =indmat(B47,AF:AF,AH:AH) -> 0 | J47: =indmat(B47,AF:AF,AG:AG) -> 0 | K47: =indmat(B47,AJ:AJ,AL:AL) -> 0 | L47: =indmat(B47,AJ:AJ,AK:AK) -> 0 | M47: =indmat(B47,AN:AN,AP:AP) -> 0 | N47: =indmat(B47,AN:AN,AO:AO) -> 0 | O47: =indmat(B47,AR:AR,AS:AS) -> 0
A48: Financing Activities: | B48: Proceeds from issuance of common stock | C48: =indmat(B48,T:T,U:U) -> 475 | D48: =indmat(B48,T:T,V:V) -> 483 | E48: =indmat(B48,T:T,W:W) -> 365 | F48: =indmat(B48,X:X,Y:Y) -> 912 | G48: =indmat(B48,AB:AB,AD:AD) -> 831 | H48: =indmat(B48,AB:AB,AC:AC) -> 665 | I48: =indmat(B48,AF:AF,AH:AH) -> 530 | J48: =indmat(B48,AF:AF,AG:AG) -> 730 | K48: =indmat(B48,AJ:AJ,AL:AL) -> 543 | L48: =indmat(B48,AJ:AJ,AK:AK) -> 495 | M48: =indmat(B48,AN:AN,AP:AP) -> 555 | N48: =indmat(B48,AN:AN,AO:AO) -> 669 | O48: =indmat(B48,AR:AR,AS:AS) -> 781
A49: Proceeds from issuance of common stock | B49: Dividends and dividend equivalents paid | C49: =indmat(B49,T:T,U:U) -> 0 | D49: =indmat(B49,T:T,V:V) -> 0 | E49: =indmat(B49,T:T,W:W) -> 0 | F49: =indmat(B49,X:X,Y:Y) -> 0 | G49: =indmat(B49,AB:AB,AD:AD) -> 0 | H49: =indmat(B49,AB:AB,AC:AC) -> 0 | I49: =indmat(B49,AF:AF,AH:AH) -> -10564 | J49: =indmat(B49,AF:AF,AG:AG) -> -11126 | K49: =indmat(B49,AJ:AJ,AL:AL) -> 0 | L49: =indmat(B49,AJ:AJ,AK:AK) -> 0 | M49: =indmat(B49,AN:AN,AP:AP) -> 0 | N49: =indmat(B49,AN:AN,AO:AO) -> 0 | O49: =indmat(B49,AR:AR,AS:AS) -> 0
A50: Dividends and dividend equivalents paid | B50: Payments for taxes related to net share settlement of equity awards | C50: =indmat(B50,T:T,U:U) -> 0 | D50: =indmat(B50,T:T,V:V) -> 0 | E50: =indmat(B50,T:T,W:W) -> 0 | F50: =indmat(B50,X:X,Y:Y) -> 0 | G50: =indmat(B50,AB:AB,AD:AD) -> 0 | H50: =indmat(B50,AB:AB,AC:AC) -> 0 | I50: =indmat(B50,AF:AF,AH:AH) -> 0 | J50: =indmat(B50,AF:AF,AG:AG) -> 0 | K50: =indmat(B50,AJ:AJ,AL:AL) -> -1499 | L50: =indmat(B50,AJ:AJ,AK:AK) -> -1570 | M50: =indmat(B50,AN:AN,AP:AP) -> -1874 | N50: =indmat(B50,AN:AN,AO:AO) -> -2527 | O50: =indmat(B50,AR:AR,AS:AS) -> -2817
A51: Payments for taxes related to net share settlement of equity awards | B51: Taxes paid related to net share settlement of equity awards | C51: =indmat(B51,T:T,U:U) -> 0 | D51: =indmat(B51,T:T,V:V) -> 0 | E51: =indmat(B51,T:T,W:W) -> 0 | F51: =indmat(B51,X:X,Y:Y) -> -406 | G51: =indmat(B51,AB:AB,AD:AD) -> -520 | H51: =indmat(B51,AB:AB,AC:AC) -> -1226 | I51: =indmat(B51,AF:AF,AH:AH) -> -1082 | J51: =indmat(B51,AF:AF,AG:AG) -> -1158 | K51: =indmat(B51,AJ:AJ,AL:AL) -> 0 | L51: =indmat(B51,AJ:AJ,AK:AK) -> 0 | M51: =indmat(B51,AN:AN,AP:AP) -> 0 | N51: =indmat(B51,AN:AN,AO:AO) -> 0 | O51: =indmat(B51,AR:AR,AS:AS) -> 0
A52: Taxes paid related to net share settlement of equity awards | B52: Cash (used in)/generated by financing activities | C52: =indmat(B52,T:T,U:U) -> 0 | D52: =indmat(B52,T:T,V:V) -> 0 | E52: =indmat(B52,T:T,W:W) -> 0 | F52: =indmat(B52,X:X,Y:Y) -> 0 | G52: =indmat(B52,AB:AB,AD:AD) -> 1444 | H52: =indmat(B52,AB:AB,AC:AC) -> -1698 | I52: =indmat(B52,AF:AF,AH:AH) -> 0 | J52: =indmat(B52,AF:AF,AG:AG) -> 0 | K52: =indmat(B52,AJ:AJ,AL:AL) -> 0 | L52: =indmat(B52,AJ:AJ,AK:AK) -> 0 | M52: =indmat(B52,AN:AN,AP:AP) -> 0 | N52: =indmat(B52,AN:AN,AO:AO) -> 0 | O52: =indmat(B52,AR:AR,AS:AS) -> 0
A53: Cash (used in)/generated by financing activities | B53: Excess tax benefits from stock-based compensation | C53: =indmat(B53,T:T,U:U) -> 270 | D53: =indmat(B53,T:T,V:V) -> 757 | E53: =indmat(B53,T:T,W:W) -> 377 | F53: =indmat(B53,X:X,Y:Y) -> 751 | G53: =indmat(B53,AB:AB,AD:AD) -> 0 | H53: =indmat(B53,AB:AB,AC:AC) -> 0 | I53: =indmat(B53,AF:AF,AH:AH) -> 0 | J53: =indmat(B53,AF:AF,AG:AG) -> 0 | K53: =indmat(B53,AJ:AJ,AL:AL) -> 0 | L53: =indmat(B53,AJ:AJ,AK:AK) -> 0 | M53: =indmat(B53,AN:AN,AP:AP) -> 0 | N53: =indmat(B53,AN:AN,AO:AO) -> 0 | O53: =indmat(B53,AR:AR,AS:AS) -> 0
A54: Excess tax benefits from stock-based compensation | B54: Payments for dividends and dividend equivalents | C54: =indmat(B54,T:T,U:U) -> 0 | D54: =indmat(B54,T:T,V:V) -> 0 | E54: =indmat(B54,T:T,W:W) -> 0 | F54: =indmat(B54,X:X,Y:Y) -> 0 | G54: =indmat(B54,AB:AB,AD:AD) -> 0 | H54: =indmat(B54,AB:AB,AC:AC) -> 0 | I54: =indmat(B54,AF:AF,AH:AH) -> 0 | J54: =indmat(B54,AF:AF,AG:AG) -> 0 | K54: =indmat(B54,AJ:AJ,AL:AL) -> -11561 | L54: =indmat(B54,AJ:AJ,AK:AK) -> -12150 | M54: =indmat(B54,AN:AN,AP:AP) -> 12769 | N54: =indmat(B54,AN:AN,AO:AO) -> 13712 | O54: =indmat(B54,AR:AR,AS:AS) -> 14119
A55: Payments for dividends and dividend equivalents | B55: Repurchase of common stock | C55: =indmat(B55,T:T,U:U) -> 0 | D55: =indmat(B55,T:T,V:V) -> 0 | E55: =indmat(B55,T:T,W:W) -> 0 | F55: =indmat(B55,X:X,Y:Y) -> 0 | G55: =indmat(B55,AB:AB,AD:AD) -> 0 | H55: =indmat(B55,AB:AB,AC:AC) -> 0 | I55: =indmat(B55,AF:AF,AH:AH) -> -22860 | J55: =indmat(B55,AF:AF,AG:AG) -> -45000 | K55: =indmat(B55,AJ:AJ,AL:AL) -> 0 | L55: =indmat(B55,AJ:AJ,AK:AK) -> 0 | M55: =indmat(B55,AN:AN,AP:AP) -> 0 | N55: =indmat(B55,AN:AN,AO:AO) -> 0 | O55: =indmat(B55,AR:AR,AS:AS) -> 0
A56: Repurchase of common stock | B56: Cash used to net share settle equity awards | C56: =indmat(B56,T:T,U:U) -> -82 | D56: =indmat(B56,T:T,V:V) -> -124 | E56: =indmat(B56,T:T,W:W) -> -3 | F56: =indmat(B56,X:X,Y:Y) -> 0 | G56: =indmat(B56,AB:AB,AD:AD) -> 0 | H56: =indmat(B56,AB:AB,AC:AC) -> 0 | I56: =indmat(B56,AF:AF,AH:AH) -> 0 | J56: =indmat(B56,AF:AF,AG:AG) -> 0 | K56: =indmat(B56,AJ:AJ,AL:AL) -> 0 | L56: =indmat(B56,AJ:AJ,AK:AK) -> 0 | M56: =indmat(B56,AN:AN,AP:AP) -> 0 | N56: =indmat(B56,AN:AN,AO:AO) -> 0 | O56: =indmat(B56,AR:AR,AS:AS) -> 0
A57: Cash used to net share settle equity awards | B57: Proceeds from issuance of long-term debt, net | C57: =indmat(B57,T:T,U:U) -> 0 | D57: =indmat(B57,T:T,V:V) -> 0 | E57: =indmat(B57,T:T,W:W) -> 0 | F57: =indmat(B57,X:X,Y:Y) -> 0 | G57: =indmat(B57,AB:AB,AD:AD) -> 0 | H57: =indmat(B57,AB:AB,AC:AC) -> 0 | I57: =indmat(B57,AF:AF,AH:AH) -> 16896 | J57: =indmat(B57,AF:AF,AG:AG) -> 11960 | K57: =indmat(B57,AJ:AJ,AL:AL) -> 0 | L57: =indmat(B57,AJ:AJ,AK:AK) -> 0 | M57: =indmat(B57,AN:AN,AP:AP) -> 0 | N57: =indmat(B57,AN:AN,AO:AO) -> 0 | O57: =indmat(B57,AR:AR,AS:AS) -> 0
A58: Proceeds from issuance of long-term debt, net | B58: Repurchases of common stock | C58: =indmat(B58,T:T,U:U) -> 0 | D58: =indmat(B58,T:T,V:V) -> 0 | E58: =indmat(B58,T:T,W:W) -> 0 | F58: =indmat(B58,X:X,Y:Y) -> 0 | G58: =indmat(B58,AB:AB,AD:AD) -> 0 | H58: =indmat(B58,AB:AB,AC:AC) -> 0 | I58: =indmat(B58,AF:AF,AH:AH) -> 0 | J58: =indmat(B58,AF:AF,AG:AG) -> 0 | K58: =indmat(B58,AJ:AJ,AL:AL) -> -35253 | L58: =indmat(B58,AJ:AJ,AK:AK) -> -29722 | M58: =indmat(B58,AN:AN,AP:AP) -> -32900 | N58: =indmat(B58,AN:AN,AO:AO) -> -72738 | O58: =indmat(B58,AR:AR,AS:AS) -> -66897
A59: Repurchases of common stock | B59: Cash and cash equivalents, end of the year | C59: =indmat(B59,T:T,U:U) -> 5263 | D59: =indmat(B59,T:T,V:V) -> 11875 | E59: =indmat(B59,T:T,W:W) -> 9352 | F59: =indmat(B59,X:X,Y:Y) -> 11261 | G59: =indmat(B59,AB:AB,AD:AD) -> 9815 | H59: =indmat(B59,AB:AB,AC:AC) -> 10746 | I59: =indmat(B59,AF:AF,AH:AH) -> 14259 | J59: =indmat(B59,AF:AF,AG:AG) -> 13844 | K59: =indmat(B59,AJ:AJ,AL:AL) -> 21120 | L59: =indmat(B59,AJ:AJ,AK:AK) -> 20484 | M59: =indmat(B59,AN:AN,AP:AP) -> 20289 | N59: =indmat(B59,AN:AN,AO:AO) -> 25913 | O59: =indmat(B59,AR:AR,AS:AS) -> 0
A60: Cash and cash equivalents, end of the year | B60: Cash generated by financing activities | C60: =indmat(B60,T:T,U:U) -> 663 | D60: =indmat(B60,T:T,V:V) -> 1116 | E60: =indmat(B60,T:T,W:W) -> 739 | F60: =indmat(B60,X:X,Y:Y) -> 1257 | G60: =indmat(B60,AB:AB,AD:AD) -> 0 | H60: =indmat(B60,AB:AB,AC:AC) -> 0 | I60: =indmat(B60,AF:AF,AH:AH) -> 0 | J60: =indmat(B60,AF:AF,AG:AG) -> 0 | K60: =indmat(B60,AJ:AJ,AL:AL) -> 0 | L60: =indmat(B60,AJ:AJ,AK:AK) -> 0 | M60: =indmat(B60,AN:AN,AP:AP) -> 0 | N60: =indmat(B60,AN:AN,AO:AO) -> 0 | O60: =indmat(B60,AR:AR,AS:AS) -> 0
A61: Cash generated by financing activities | B61: Proceeds from issuance of commercial paper, net | C61: =indmat(B61,T:T,U:U) -> 0 | D61: =indmat(B61,T:T,V:V) -> 0 | E61: =indmat(B61,T:T,W:W) -> 0 | F61: =indmat(B61,X:X,Y:Y) -> 0 | G61: =indmat(B61,AB:AB,AD:AD) -> 0 | H61: =indmat(B61,AB:AB,AC:AC) -> 0 | I61: =indmat(B61,AF:AF,AH:AH) -> 0 | J61: =indmat(B61,AF:AF,AG:AG) -> 6306 | K61: =indmat(B61,AJ:AJ,AL:AL) -> 0 | L61: =indmat(B61,AJ:AJ,AK:AK) -> 0 | M61: =indmat(B61,AN:AN,AP:AP) -> 0 | N61: =indmat(B61,AN:AN,AO:AO) -> 0 | O61: =indmat(B61,AR:AR,AS:AS) -> 0
A62: Proceeds from issuance of commercial paper, net | B62: Proceeds from issuance of term debt, net | C62: =indmat(B62,T:T,U:U) -> 0 | D62: =indmat(B62,T:T,V:V) -> 0 | E62: =indmat(B62,T:T,W:W) -> 0 | F62: =indmat(B62,X:X,Y:Y) -> 0 | G62: =indmat(B62,AB:AB,AD:AD) -> 0 | H62: =indmat(B62,AB:AB,AC:AC) -> 0 | I62: =indmat(B62,AF:AF,AH:AH) -> 0 | J62: =indmat(B62,AF:AF,AG:AG) -> 0 | K62: =indmat(B62,AJ:AJ,AL:AL) -> 27114 | L62: =indmat(B62,AJ:AJ,AK:AK) -> 24954 | M62: =indmat(B62,AN:AN,AP:AP) -> 28662 | N62: =indmat(B62,AN:AN,AO:AO) -> 6969 | O62: =indmat(B62,AR:AR,AS:AS) -> 6963
A63: Proceeds from issuance of term debt, net | B63: (Decrease)/increase in cash and cash equivalents | C63: =indmat(B63,T:T,U:U) -> -6612 | D63: =indmat(B63,T:T,V:V) -> 2523 | E63: =indmat(B63,T:T,W:W) -> 2960 | F63: =indmat(B63,X:X,Y:Y) -> 0 | G63: =indmat(B63,AB:AB,AD:AD) -> 0 | H63: =indmat(B63,AB:AB,AC:AC) -> 0 | I63: =indmat(B63,AF:AF,AH:AH) -> 0 | J63: =indmat(B63,AF:AF,AG:AG) -> 0 | K63: =indmat(B63,AJ:AJ,AL:AL) -> 0 | L63: =indmat(B63,AJ:AJ,AK:AK) -> 0 | M63: =indmat(B63,AN:AN,AP:AP) -> 0 | N63: =indmat(B63,AN:AN,AO:AO) -> 0 | O63: =indmat(B63,AR:AR,AS:AS) -> 0
A64: (Decrease)/increase in cash and cash equivalents | B64: Repayments of term debt | C64: =indmat(B64,T:T,U:U) -> 0 | D64: =indmat(B64,T:T,V:V) -> 0 | E64: =indmat(B64,T:T,W:W) -> 0 | F64: =indmat(B64,X:X,Y:Y) -> 0 | G64: =indmat(B64,AB:AB,AD:AD) -> 0 | H64: =indmat(B64,AB:AB,AC:AC) -> 0 | I64: =indmat(B64,AF:AF,AH:AH) -> 0 | J64: =indmat(B64,AF:AF,AG:AG) -> 0 | K64: =indmat(B64,AJ:AJ,AL:AL) -> 0 | L64: =indmat(B64,AJ:AJ,AK:AK) -> -2500 | M64: =indmat(B64,AN:AN,AP:AP) -> -3500 | N64: =indmat(B64,AN:AN,AO:AO) -> -6500 | O64: =indmat(B64,AR:AR,AS:AS) -> -8805
A65: Repayments of term debt | B65: Supplemental cash flow disclosure: | C65: =indmat(B65,T:T,U:U) -> 0 | D65: =indmat(B65,T:T,V:V) -> 0 | E65: =indmat(B65,T:T,W:W) -> 0 | F65: =indmat(B65,X:X,Y:Y) -> 0 | G65: =indmat(B65,AB:AB,AD:AD) -> 0 | H65: =indmat(B65,AB:AB,AC:AC) -> 0 | I65: =indmat(B65,AF:AF,AH:AH) -> 0 | J65: =indmat(B65,AF:AF,AG:AG) -> 0 | K65: =indmat(B65,AJ:AJ,AL:AL) -> 0 | L65: =indmat(B65,AJ:AJ,AK:AK) -> 0 | M65: =indmat(B65,AN:AN,AP:AP) -> 0 | N65: =indmat(B65,AN:AN,AO:AO) -> 0 | O65: =indmat(B65,AR:AR,AS:AS) -> 0
A66: Supplemental cash flow disclosure: | B66: Change in commercial paper, net | C66: =indmat(B66,T:T,U:U) -> 0 | D66: =indmat(B66,T:T,V:V) -> 0 | E66: =indmat(B66,T:T,W:W) -> 0 | F66: =indmat(B66,X:X,Y:Y) -> 0 | G66: =indmat(B66,AB:AB,AD:AD) -> 0 | H66: =indmat(B66,AB:AB,AC:AC) -> 0 | I66: =indmat(B66,AF:AF,AH:AH) -> 0 | J66: =indmat(B66,AF:AF,AG:AG) -> 0 | K66: =indmat(B66,AJ:AJ,AL:AL) -> 2191 | L66: =indmat(B66,AJ:AJ,AK:AK) -> -397 | M66: =indmat(B66,AN:AN,AP:AP) -> 3852 | N66: =indmat(B66,AN:AN,AO:AO) -> -37 | O66: =indmat(B66,AR:AR,AS:AS) -> 0
A67: Change in commercial paper, net | B67: Increase/(decrease) in cash and cash equivalents | C67: =indmat(B67,T:T,U:U) -> 0 | D67: =indmat(B67,T:T,V:V) -> 0 | E67: =indmat(B67,T:T,W:W) -> 0 | F67: =indmat(B67,X:X,Y:Y) -> 5998 | G67: =indmat(B67,AB:AB,AD:AD) -> -1446 | H67: =indmat(B67,AB:AB,AC:AC) -> 931 | I67: =indmat(B67,AF:AF,AH:AH) -> 3513 | J67: =indmat(B67,AF:AF,AG:AG) -> -415 | K67: =indmat(B67,AJ:AJ,AL:AL) -> 0 | L67: =indmat(B67,AJ:AJ,AK:AK) -> 0 | M67: =indmat(B67,AN:AN,AP:AP) -> 0 | N67: =indmat(B67,AN:AN,AO:AO) -> 0 | O67: =indmat(B67,AR:AR,AS:AS) -> 0
A68: Increase/(decrease) in cash and cash equivalents | B68: Proceeds from/(Repayments of) commercial paper, net | C68: =indmat(B68,T:T,U:U) -> 0 | D68: =indmat(B68,T:T,V:V) -> 0 | E68: =indmat(B68,T:T,W:W) -> 0 | F68: =indmat(B68,X:X,Y:Y) -> 0 | G68: =indmat(B68,AB:AB,AD:AD) -> 0 | H68: =indmat(B68,AB:AB,AC:AC) -> 0 | I68: =indmat(B68,AF:AF,AH:AH) -> 0 | J68: =indmat(B68,AF:AF,AG:AG) -> 0 | K68: =indmat(B68,AJ:AJ,AL:AL) -> 0 | L68: =indmat(B68,AJ:AJ,AK:AK) -> 0 | M68: =indmat(B68,AN:AN,AP:AP) -> 0 | N68: =indmat(B68,AN:AN,AO:AO) -> 0 | O68: =indmat(B68,AR:AR,AS:AS) -> -5977
A69: Proceeds from/(Repayments of) commercial paper, net | B69: Cash used in financing activities | C69: =indmat(B69,T:T,U:U) -> 0 | D69: =indmat(B69,T:T,V:V) -> 0 | E69: =indmat(B69,T:T,W:W) -> 0 | F69: =indmat(B69,X:X,Y:Y) -> 0 | G69: =indmat(B69,AB:AB,AD:AD) -> 0 | H69: =indmat(B69,AB:AB,AC:AC) -> 0 | I69: =indmat(B69,AF:AF,AH:AH) -> -16379 | J69: =indmat(B69,AF:AF,AG:AG) -> -37549 | K69: =indmat(B69,AJ:AJ,AL:AL) -> -17716 | L69: =indmat(B69,AJ:AJ,AK:AK) -> -20483 | M69: =indmat(B69,AN:AN,AP:AP) -> -17974 | N69: =indmat(B69,AN:AN,AO:AO) -> -87876 | O69: =indmat(B69,AR:AR,AS:AS) -> -90976
A70: Cash used in financing activities | B70: Supplemental cash flow disclosures: | C70: =indmat(B70,T:T,U:U) -> 0 | D70: =indmat(B70,T:T,V:V) -> 0 | E70: =indmat(B70,T:T,W:W) -> 0 | F70: =indmat(B70,X:X,Y:Y) -> 0 | G70: =indmat(B70,AB:AB,AD:AD) -> 0 | H70: =indmat(B70,AB:AB,AC:AC) -> 0 | I70: =indmat(B70,AF:AF,AH:AH) -> 0 | J70: =indmat(B70,AF:AF,AG:AG) -> 0 | K70: =indmat(B70,AJ:AJ,AL:AL) -> 0 | L70: =indmat(B70,AJ:AJ,AK:AK) -> 0 | M70: =indmat(B70,AN:AN,AP:AP) -> 0 | N70: =indmat(B70,AN:AN,AO:AO) -> 0 | O70: =indmat(B70,AR:AR,AS:AS) -> 0
A71: Supplemental cash flow disclosures: | B71: Increase/(Decrease) in cash and cash equivalents | C71: =indmat(B71,T:T,U:U) -> 0 | D71: =indmat(B71,T:T,V:V) -> 0 | E71: =indmat(B71,T:T,W:W) -> 0 | F71: =indmat(B71,X:X,Y:Y) -> 0 | G71: =indmat(B71,AB:AB,AD:AD) -> 0 | H71: =indmat(B71,AB:AB,AC:AC) -> 0 | I71: =indmat(B71,AF:AF,AH:AH) -> 0 | J71: =indmat(B71,AF:AF,AG:AG) -> 0 | K71: =indmat(B71,AJ:AJ,AL:AL) -> 7276 | L71: =indmat(B71,AJ:AJ,AK:AK) -> -636 | M71: =indmat(B71,AN:AN,AP:AP) -> -195 | N71: =indmat(B71,AN:AN,AO:AO) -> 5624 | O71: =indmat(B71,AR:AR,AS:AS) -> 0
A72: Increase/(Decrease) in cash and cash equivalents | B72: Increase/(Decrease) in cash, cash equivalents and restricted cash | C72: =indmat(B72,T:T,U:U) -> 0 | D72: =indmat(B72,T:T,V:V) -> 0 | E72: =indmat(B72,T:T,W:W) -> 0 | F72: =indmat(B72,X:X,Y:Y) -> 0 | G72: =indmat(B72,AB:AB,AD:AD) -> 0 | H72: =indmat(B72,AB:AB,AC:AC) -> 0 | I72: =indmat(B72,AF:AF,AH:AH) -> 0 | J72: =indmat(B72,AF:AF,AG:AG) -> 0 | K72: =indmat(B72,AJ:AJ,AL:AL) -> 0 | L72: =indmat(B72,AJ:AJ,AK:AK) -> 0 | M72: =indmat(B72,AN:AN,AP:AP) -> 0 | N72: =indmat(B72,AN:AN,AO:AO) -> 0 | O72: =indmat(B72,AR:AR,AS:AS) -> 24311
A73: Increase/(Decrease) in cash, cash equivalents and restricted cash | B73: Cash, cash equivalents and restricted cash, ending balances | C73: =indmat(B73,T:T,U:U) -> 0 | D73: =indmat(B73,T:T,V:V) -> 0 | E73: =indmat(B73,T:T,W:W) -> 0 | F73: =indmat(B73,X:X,Y:Y) -> 0 | G73: =indmat(B73,AB:AB,AD:AD) -> 0 | H73: =indmat(B73,AB:AB,AC:AC) -> 0 | I73: =indmat(B73,AF:AF,AH:AH) -> 0 | J73: =indmat(B73,AF:AF,AG:AG) -> 0 | K73: =indmat(B73,AJ:AJ,AL:AL) -> 0 | L73: =indmat(B73,AJ:AJ,AK:AK) -> 0 | M73: =indmat(B73,AN:AN,AP:AP) -> 0 | N73: =indmat(B73,AN:AN,AO:AO) -> 0 | O73: =indmat(B73,AR:AR,AS:AS) -> 50224
A74: Cash, cash equivalents and restricted cash, ending balances | B74: Cash paid for income taxes, net | C74: =indmat(B74,T:T,U:U) -> 2997 | D74: =indmat(B74,T:T,V:V) -> 1267 | E74: =indmat(B74,T:T,W:W) -> 863 | F74: =indmat(B74,X:X,Y:Y) -> 2697 | G74: =indmat(B74,AB:AB,AD:AD) -> 3338 | H74: =indmat(B74,AB:AB,AC:AC) -> 7682 | I74: =indmat(B74,AF:AF,AH:AH) -> 9128 | J74: =indmat(B74,AF:AF,AG:AG) -> 10026 | K74: =indmat(B74,AJ:AJ,AL:AL) -> 13252 | L74: =indmat(B74,AJ:AJ,AK:AK) -> 10444 | M74: =indmat(B74,AN:AN,AP:AP) -> 11591 | N74: =indmat(B74,AN:AN,AO:AO) -> 10417 | O74: =indmat(B74,AR:AR,AS:AS) -> 15263
A75: Cash paid for income taxes, net | B75: Cash paid for interest | C75: =indmat(B75,T:T,U:U) -> 0 | D75: =indmat(B75,T:T,V:V) -> 0 | E75: =indmat(B75,T:T,W:W) -> 0 | F75: =indmat(B75,X:X,Y:Y) -> 0 | G75: =indmat(B75,AB:AB,AD:AD) -> 0 | H75: =indmat(B75,AB:AB,AC:AC) -> 0 | I75: =indmat(B75,AF:AF,AH:AH) -> 0 | J75: =indmat(B75,AF:AF,AG:AG) -> 339 | K75: =indmat(B75,AJ:AJ,AL:AL) -> 514 | L75: =indmat(B75,AJ:AJ,AK:AK) -> 1316 | M75: =indmat(B75,AN:AN,AP:AP) -> 2092 | N75: =indmat(B75,AN:AN,AO:AO) -> 3022 | O75: =indmat(B75,AR:AR,AS:AS) -> 3423
A76: Cash paid for interest
A77: 0
A78: 0
A79: 0
A80: 0
A81: 0
A82: 0
A83: 0
A84: 0
A85: 0
A86: 0
A87: 0
A88: 0
A89: 0
A90: 0
A91: 0
A92: 0
A93: 0
A94: 0
A95: 0
A96: 0
A97: 0
A98: 0
A99: 0
A100: 0
A101: 0
A102: 0
A103: 0
A104: 0
A105: 0
A106: 0
A107: 0
A108: 0
A109: 0
A110: 0
A111: 0
A112: 0
A113: 0
A114: 0
A115: 0
A116: 0
A117: 0
A118: 0
A119: 0
A120: 0
A121: 0
A122: 0
A123: 0
A124: 0
A125: 0
A126: 0
A127: 0
A128: 0
A129: 0
A130: 0
A131: 0
A132: 0
A133: 0
A134: 0
A135: 0
A136: 0
A137: 0
A138: 0
A139: 0
A140: 0
A141: 0
A142: 0
A143: 0
A144: 0
A145: 0
A146: 0
A147: 0
A148: 0
A149: 0
A150: 0
A151: 0
A152: 0
A153: 0
A154: 0
A155: 0
A156: 0
A157: 0
A158: 0
A159: 0
A160: 0
A161: 0
A162: 0
A163: 0
A164: 0
A165: 0
A166: 0
A167: 0
A168: 0
A169: 0
A170: 0
A171: 0
A172: 0
A173: 0
A174: 0
A175: 0
A176: 0
A177: 0
A178: 0
A179: 0
A180: 0
A181: 0
A182: 0
A183: 0
A184: 0
A185: 0
A186: 0
A187: 0
A188: 0 | C188: =indmat(B188,T:T,U:U) -> 0 | D188: =indmat(B188,T:T,V:V) -> 0 | E188: =indmat(B188,T:T,W:W) -> 0 | F188: =indmat(B188,X:X,Y:Y) -> 0 | G188: =indmat(B188,AB:AB,AD:AD) -> 0 | H188: =indmat(B188,AB:AB,AC:AC) -> 0 | I188: =indmat(B188,AF:AF,AH:AH) -> 0 | J188: =indmat(B188,AF:AF,AG:AG) -> 0 | K188: =indmat(B188,AJ:AJ,AL:AL) ->  | L188: =indmat(B188,AJ:AJ,AK:AK) ->  | M188: =indmat(B188,AN:AN,AP:AP) ->  | N188: =indmat(B188,AN:AN,AO:AO) ->  | O188: =indmat(B188,AR:AR,AS:AS) -> 

Sheet Balance Sheet
A1: =union(R3:R30,U3:U32,X3:X32,AA3:AA34,AD2:AD33,AG2:AG35,AJ2:AJ34) -> Current assets: | B1: Current assets: | C1: 2009 | D1: 2008 | E1: 2010 | F1: 2011 | G1: 2012 | H1: 2013 | I1: 2014 | J1: 2015 | K1: 2016 | L1: 2017 | M1: 2018 | N1: 2019 | R1: Statement Of Financial Position Classified (USD $) | U1: CONSOLIDATED BALANCE SHEETS (USD $) | V1: 12 Months Ended | X1: CONSOLIDATED BALANCE SHEETS (USD $) | Y1: Sep. 29, 2012 | Z1: Sep. 24, 2011 | AA1: CONSOLIDATED BALANCE SHEETS (USD $) | AB1: Sep. 27, 2014 | AC1: Sep. 28, 2013 | AD1: CONSOLIDATED BALANCE SHEETS - USD ($) $ in Millions | AE1: Sep. 24, 2016 | AF1: Sep. 26, 2015 | AG1: CONSOLIDATED BALANCE SHEETS - USD ($) $ in Millions | AH1: Sep. 29, 2018 | AI1: Sep. 30, 2017 | AJ1: CONSOLIDATED BALANCE SHEETS - USD ($) $ in Millions | AK1: Sep. 28, 2019 | AL1: Sep. 29, 2018
A2: Cash and cash equivalents | B2: Cash and cash equivalents | C2: =indmat(B2,R:R,S:S) -> 5263 | D2: =indmat(B2,R:R,T:T) -> 11875 | E2: =indmat(B2,U:U,V:V) -> 11261 | F2: =indmat(B2,X:X,Z:Z) -> 9815 | G2: =indmat(B2,X:X,Y:Y) -> 10746 | H2: =indmat(B2,AA:AA,AC:AC) -> 14259 | I2: =indmat(B2,AA:AA,AB:AB) -> 13844 | J2: =indmat(B2,AD:AD,AF:AF) -> 21120 | K2: =indmat(B2,AD:AD,AE:AE) -> 20484 | L2: =indmat(B2,AG:AG,AI:AI) -> 20289 | M2: =indmat(B2,AG:AG,AH:AH) -> 25913 | N2: =indmat(B2,AJ:AJ,AK:AK) -> 48844 | R2: In Millions | S2: Sep. 26, 2009 | T2: Sep. 27, 2008 | U2: In Millions | V2: Sep. 25, 2010 | W2: Sep. 26, 2009 | X2: In Millions, unless otherwise specified | AA2: In Millions, unless otherwise specified | AD2: Current assets: | AG2: Current assets: | AJ2: Current assets:
A3: Short-term marketable securities | B3: Short-term marketable securities | C3: =indmat(B3,R:R,S:S) -> 18201 | D3: =indmat(B3,R:R,T:T) -> 10236 | E3: =indmat(B3,U:U,V:V) -> 14359 | F3: =indmat(B3,X:X,Z:Z) -> 16137 | G3: =indmat(B3,X:X,Y:Y) -> 18383 | H3: =indmat(B3,AA:AA,AC:AC) -> 26287 | I3: =indmat(B3,AA:AA,AB:AB) -> 11233 | J3: =indmat(B3,AD:AD,AF:AF) -> 20481 | K3: =indmat(B3,AD:AD,AE:AE) -> 46671 | L3: =indmat(B3,AG:AG,AI:AI) -> 0 | M3: =indmat(B3,AG:AG,AH:AH) -> 0 | N3: =indmat(B3,AJ:AJ,AK:AK) -> 0 | R3: Current assets: | U3: Current assets: | X3: Current assets: | AA3: Current assets: | AB3: ' | AC3: ' | AD3: Cash and cash equivalents | AE3: 20484 | AF3: 21120 | AG3: Cash and cash equivalents | AH3: 25913 | AI3: 20289 | AJ3: Cash and cash equivalents | AK3: 48844 | AL3: 25913
A4: Accounts receivable, less allowances of $52 and $47, respectively | B4: Accounts receivable, less allowances of $52 and $47, respectively | C4: =indmat(B4,R:R,S:S) -> 3361 | D4: =indmat(B4,R:R,T:T) -> 2422 | E4: =indmat(B4,U:U,V:V) -> 0 | F4: =indmat(B4,X:X,Z:Z) -> 0 | G4: =indmat(B4,X:X,Y:Y) -> 0 | H4: =indmat(B4,AA:AA,AC:AC) -> 0 | I4: =indmat(B4,AA:AA,AB:AB) -> 0 | J4: =indmat(B4,AD:AD,AF:AF) -> 0 | K4: =indmat(B4,AD:AD,AE:AE) -> 0 | L4: =indmat(B4,AG:AG,AI:AI) -> 0 | M4: =indmat(B4,AG:AG,AH:AH) -> 0 | N4: =indmat(B4,AJ:AJ,AK:AK) -> 0 | R4: Cash and cash equivalents | S4: 5263 | T4: 11875 | U4: Cash and cash equivalents | V4: 11261 | W4: 5263 | X4: Cash and cash equivalents | Y4: 10746 | Z4: 9815 | AA4: Cash and cash equivalents | AB4: 13844 | AC4: 14259 | AD4: Short-term marketable securities | AE4: 46671 | AF4: 20481 | AG4: Marketable securities | AH4: 40388 | AI4: 53892 | AJ4: Marketable securities | AK4: 51713 | AL4: 40388
A5: Accounts receivable, less allowances of $53 and $63, respectively | B5: Accounts receivable, less allowances of $53 and $63, respectively | C5: =indmat(B5,R:R,S:S) -> 0 | D5: =indmat(B5,R:R,T:T) -> 0 | E5: =indmat(B5,U:U,V:V) -> 0 | F5: =indmat(B5,X:X,Z:Z) -> 0 | G5: =indmat(B5,X:X,Y:Y) -> 0 | H5: =indmat(B5,AA:AA,AC:AC) -> 0 | I5: =indmat(B5,AA:AA,AB:AB) -> 0 | J5: =indmat(B5,AD:AD,AF:AF) -> 16849 | K5: =indmat(B5,AD:AD,AE:AE) -> 15754 | L5: =indmat(B5,AG:AG,AI:AI) -> 0 | M5: =indmat(B5,AG:AG,AH:AH) -> 0 | N5: =indmat(B5,AJ:AJ,AK:AK) -> 0 | R5: Short-term marketable securities | S5: 18201 | T5: 10236 | U5: Short-term marketable securities | V5: 14359 | W5: 18201 | X5: Short-term marketable securities | Y5: 18383 | Z5: 16137 | AA5: Short-term marketable securities | AB5: 11233 | AC5: 26287 | AD5: Accounts receivable, less allowances of $53 and $63, respectively | AE5: 15754 | AF5: 16849 | AG5: Accounts receivable, net | AH5: 23186 | AI5: 17874 | AJ5: Accounts receivable, net | AK5: 22926 | AL5: 23186
A6: Accounts receivable, less allowances of $86 and $99, respectively | B6: Accounts receivable, less allowances of $86 and $99, respectively | C6: =indmat(B6,R:R,S:S) -> 0 | D6: =indmat(B6,R:R,T:T) -> 0 | E6: =indmat(B6,U:U,V:V) -> 0 | F6: =indmat(B6,X:X,Z:Z) -> 0 | G6: =indmat(B6,X:X,Y:Y) -> 0 | H6: =indmat(B6,AA:AA,AC:AC) -> 13102 | I6: =indmat(B6,AA:AA,AB:AB) -> 17460 | J6: =indmat(B6,AD:AD,AF:AF) -> 0 | K6: =indmat(B6,AD:AD,AE:AE) -> 0 | L6: =indmat(B6,AG:AG,AI:AI) -> 0 | M6: =indmat(B6,AG:AG,AH:AH) -> 0 | N6: =indmat(B6,AJ:AJ,AK:AK) -> 0 | R6: Accounts receivable, less allowances of $52 and $47, respectively | S6: 3361 | T6: 2422 | U6: Accounts receivable, less allowances of $55 and $52, respectively | V6: 5510 | W6: 3361 | X6: Accounts receivable, less allowances of $98 and $53, respectively | Y6: 10930 | Z6: 5369 | AA6: Accounts receivable, less allowances of $86 and $99, respectively | AB6: 17460 | AC6: 13102 | AD6: Inventories | AE6: 2132 | AF6: 2349 | AG6: Inventories | AH6: 3956 | AI6: 4855 | AJ6: Inventories | AK6: 4106 | AL6: 3956
A7: Accounts receivable, less allowances of $98 and $53, respectively | B7: Accounts receivable, less allowances of $98 and $53, respectively | C7: =indmat(B7,R:R,S:S) -> 0 | D7: =indmat(B7,R:R,T:T) -> 0 | E7: =indmat(B7,U:U,V:V) -> 0 | F7: =indmat(B7,X:X,Z:Z) -> 5369 | G7: =indmat(B7,X:X,Y:Y) -> 10930 | H7: =indmat(B7,AA:AA,AC:AC) -> 0 | I7: =indmat(B7,AA:AA,AB:AB) -> 0 | J7: =indmat(B7,AD:AD,AF:AF) -> 0 | K7: =indmat(B7,AD:AD,AE:AE) -> 0 | L7: =indmat(B7,AG:AG,AI:AI) -> 0 | M7: =indmat(B7,AG:AG,AH:AH) -> 0 | N7: =indmat(B7,AJ:AJ,AK:AK) -> 0 | R7: Inventories | S7: 455 | T7: 509 | U7: Inventories | V7: 1051 | W7: 455 | X7: Inventories | Y7: 791 | Z7: 776 | AA7: Inventories | AB7: 2111 | AC7: 1764 | AD7: Vendor non-trade receivables | AE7: 13545 | AF7: 13494 | AG7: Vendor non-trade receivables | AH7: 25809 | AI7: 17799 | AJ7: Vendor non-trade receivables | AK7: 22878 | AL7: 25809
A8: Accounts receivable, less allowances of $55 and $52, respectively | B8: Accounts receivable, less allowances of $55 and $52, respectively | C8: =indmat(B8,R:R,S:S) -> 0 | D8: =indmat(B8,R:R,T:T) -> 0 | E8: =indmat(B8,U:U,V:V) -> 5510 | F8: =indmat(B8,X:X,Z:Z) -> 0 | G8: =indmat(B8,X:X,Y:Y) -> 0 | H8: =indmat(B8,AA:AA,AC:AC) -> 0 | I8: =indmat(B8,AA:AA,AB:AB) -> 0 | J8: =indmat(B8,AD:AD,AF:AF) -> 0 | K8: =indmat(B8,AD:AD,AE:AE) -> 0 | L8: =indmat(B8,AG:AG,AI:AI) -> 0 | M8: =indmat(B8,AG:AG,AH:AH) -> 0 | N8: =indmat(B8,AJ:AJ,AK:AK) -> 0 | R8: Deferred tax assets | S8: 1135 | T8: 1044 | U8: Deferred tax assets | V8: 1636 | W8: 1135 | X8: Deferred tax assets | Y8: 2583 | Z8: 2014 | AA8: Deferred tax assets | AB8: 4318 | AC8: 3453 | AD8: Other current assets | AE8: 8283 | AF8: 15085 | AG8: Other current assets | AH8: 12087 | AI8: 13936 | AJ8: Other current assets | AK8: 12352 | AL8: 12087
A9: Accounts receivable, net | B9: Accounts receivable, net | C9: =indmat(B9,R:R,S:S) -> 0 | D9: =indmat(B9,R:R,T:T) -> 0 | E9: =indmat(B9,U:U,V:V) -> 0 | F9: =indmat(B9,X:X,Z:Z) -> 0 | G9: =indmat(B9,X:X,Y:Y) -> 0 | H9: =indmat(B9,AA:AA,AC:AC) -> 0 | I9: =indmat(B9,AA:AA,AB:AB) -> 0 | J9: =indmat(B9,AD:AD,AF:AF) -> 0 | K9: =indmat(B9,AD:AD,AE:AE) -> 0 | L9: =indmat(B9,AG:AG,AI:AI) -> 17874 | M9: =indmat(B9,AG:AG,AH:AH) -> 23186 | N9: =indmat(B9,AJ:AJ,AK:AK) -> 22926 | R9: Other current assets | S9: 3140 | T9: 3920 | U9: Vendor non-trade receivables | V9: 4414 | W9: 1696 | X9: Vendor non-trade receivables | Y9: 7762 | Z9: 6348 | AA9: Vendor non-trade receivables | AB9: 9759 | AC9: 7539 | AD9: Total current assets | AE9: 106869 | AF9: 89378 | AG9: Total current assets | AH9: 131339 | AI9: 128645 | AJ9: Total current assets | AK9: 162819 | AL9: 131339
A10: Inventories | B10: Inventories | C10: =indmat(B10,R:R,S:S) -> 455 | D10: =indmat(B10,R:R,T:T) -> 509 | E10: =indmat(B10,U:U,V:V) -> 1051 | F10: =indmat(B10,X:X,Z:Z) -> 776 | G10: =indmat(B10,X:X,Y:Y) -> 791 | H10: =indmat(B10,AA:AA,AC:AC) -> 1764 | I10: =indmat(B10,AA:AA,AB:AB) -> 2111 | J10: =indmat(B10,AD:AD,AF:AF) -> 2349 | K10: =indmat(B10,AD:AD,AE:AE) -> 2132 | L10: =indmat(B10,AG:AG,AI:AI) -> 4855 | M10: =indmat(B10,AG:AG,AH:AH) -> 3956 | N10: =indmat(B10,AJ:AJ,AK:AK) -> 4106 | R10: Total current assets | S10: 31555 | T10: 30006 | U10: Other current assets | V10: 3447 | W10: 1444 | X10: Other current assets | Y10: 6458 | Z10: 4529 | AA10: Other current assets | AB10: 9806 | AC10: 6882 | AD10: Long-term marketable securities | AE10: 170430 | AF10: 164065 | AG10: Non-current assets: | AJ10: Non-current assets:
A11: Deferred tax assets | B11: Deferred tax assets | C11: =indmat(B11,R:R,S:S) -> 1135 | D11: =indmat(B11,R:R,T:T) -> 1044 | E11: =indmat(B11,U:U,V:V) -> 1636 | F11: =indmat(B11,X:X,Z:Z) -> 2014 | G11: =indmat(B11,X:X,Y:Y) -> 2583 | H11: =indmat(B11,AA:AA,AC:AC) -> 3453 | I11: =indmat(B11,AA:AA,AB:AB) -> 4318 | J11: =indmat(B11,AD:AD,AF:AF) -> 0 | K11: =indmat(B11,AD:AD,AE:AE) -> 0 | L11: =indmat(B11,AG:AG,AI:AI) -> 0 | M11: =indmat(B11,AG:AG,AH:AH) -> 0 | N11: =indmat(B11,AJ:AJ,AK:AK) -> 0 | R11: Long-term marketable securities | S11: 10528 | T11: 2379 | U11: Total current assets | V11: 41678 | W11: 31555 | X11: Total current assets | Y11: 57653 | Z11: 44988 | AA11: Total current assets | AB11: 68531 | AC11: 73286 | AD11: Property, plant and equipment, net | AE11: 27010 | AF11: 22471 | AG11: Marketable securities | AH11: 170799 | AI11: 194714 | AJ11: Marketable securities | AK11: 105341 | AL11: 170799
A12: Vendor non-trade receivables | B12: Vendor non-trade receivables | C12: =indmat(B12,R:R,S:S) -> 0 | D12: =indmat(B12,R:R,T:T) -> 0 | E12: =indmat(B12,U:U,V:V) -> 4414 | F12: =indmat(B12,X:X,Z:Z) -> 6348 | G12: =indmat(B12,X:X,Y:Y) -> 7762 | H12: =indmat(B12,AA:AA,AC:AC) -> 7539 | I12: =indmat(B12,AA:AA,AB:AB) -> 9759 | J12: =indmat(B12,AD:AD,AF:AF) -> 13494 | K12: =indmat(B12,AD:AD,AE:AE) -> 13545 | L12: =indmat(B12,AG:AG,AI:AI) -> 17799 | M12: =indmat(B12,AG:AG,AH:AH) -> 25809 | N12: =indmat(B12,AJ:AJ,AK:AK) -> 22878 | R12: Property, plant and equipment, net | S12: 2954 | T12: 2455 | U12: Long-term marketable securities | V12: 25391 | W12: 10528 | X12: Long-term marketable securities | Y12: 92122 | Z12: 55618 | AA12: Long-term marketable securities | AB12: 130162 | AC12: 106215 | AD12: Goodwill | AE12: 5414 | AF12: 5116 | AG12: Property, plant and equipment, net | AH12: 41304 | AI12: 33783 | AJ12: Property, plant and equipment, net | AK12: 37378 | AL12: 41304
A13: Other current assets | B13: Other current assets | C13: =indmat(B13,R:R,S:S) -> 3140 | D13: =indmat(B13,R:R,T:T) -> 3920 | E13: =indmat(B13,U:U,V:V) -> 3447 | F13: =indmat(B13,X:X,Z:Z) -> 4529 | G13: =indmat(B13,X:X,Y:Y) -> 6458 | H13: =indmat(B13,AA:AA,AC:AC) -> 6882 | I13: =indmat(B13,AA:AA,AB:AB) -> 9806 | J13: =indmat(B13,AD:AD,AF:AF) -> 15085 | K13: =indmat(B13,AD:AD,AE:AE) -> 8283 | L13: =indmat(B13,AG:AG,AI:AI) -> 13936 | M13: =indmat(B13,AG:AG,AH:AH) -> 12087 | N13: =indmat(B13,AJ:AJ,AK:AK) -> 12352 | R13: Goodwill | S13: 206 | T13: 207 | U13: Property, plant and equipment, net | V13: 4768 | W13: 2954 | X13: Property, plant and equipment, net | Y13: 15452 | Z13: 7777 | AA13: Property, plant and equipment, net | AB13: 20624 | AC13: 16597 | AD13: Acquired intangible assets, net | AE13: 3206 | AF13: 3893 | AG13: Other non-current assets | AH13: 22283 | AI13: 18177 | AJ13: Other non-current assets | AK13: 32978 | AL13: 22283
A14: Non-current assets: | B14: Non-current assets: | C14: =indmat(B14,R:R,S:S) -> 0 | D14: =indmat(B14,R:R,T:T) -> 0 | E14: =indmat(B14,U:U,V:V) -> 0 | F14: =indmat(B14,X:X,Z:Z) -> 0 | G14: =indmat(B14,X:X,Y:Y) -> 0 | H14: =indmat(B14,AA:AA,AC:AC) -> 0 | I14: =indmat(B14,AA:AA,AB:AB) -> 0 | J14: =indmat(B14,AD:AD,AF:AF) -> 0 | K14: =indmat(B14,AD:AD,AE:AE) -> 0 | L14: =indmat(B14,AG:AG,AI:AI) -> 0 | M14: =indmat(B14,AG:AG,AH:AH) -> 0 | N14: =indmat(B14,AJ:AJ,AK:AK) -> 0 | R14: Acquired intangible assets, net | S14: 247 | T14: 285 | U14: Goodwill | V14: 741 | W14: 206 | X14: Goodwill | Y14: 1135 | Z14: 896 | AA14: Goodwill | AB14: 4616 | AC14: 1577 | AD14: Other non-current assets | AE14: 8757 | AF14: 5422 | AG14: Total non-current assets | AH14: 234386 | AI14: 246674 | AJ14: Total non-current assets | AK14: 175697 | AL14: 234386
A15: Total current assets | B15: Total current assets | C15: =indmat(B15,R:R,S:S) -> 31555 | D15: =indmat(B15,R:R,T:T) -> 30006 | E15: =indmat(B15,U:U,V:V) -> 41678 | F15: =indmat(B15,X:X,Z:Z) -> 44988 | G15: =indmat(B15,X:X,Y:Y) -> 57653 | H15: =indmat(B15,AA:AA,AC:AC) -> 73286 | I15: =indmat(B15,AA:AA,AB:AB) -> 68531 | J15: =indmat(B15,AD:AD,AF:AF) -> 89378 | K15: =indmat(B15,AD:AD,AE:AE) -> 106869 | L15: =indmat(B15,AG:AG,AI:AI) -> 128645 | M15: =indmat(B15,AG:AG,AH:AH) -> 131339 | N15: =indmat(B15,AJ:AJ,AK:AK) -> 162819 | R15: Other assets | S15: 2011 | T15: 839 | U15: Acquired intangible assets, net | V15: 342 | W15: 247 | X15: Acquired intangible assets, net | Y15: 4224 | Z15: 3536 | AA15: Acquired intangible assets, net | AB15: 4142 | AC15: 4179 | AD15: Total assets | AE15: 321686 | AF15: 290345 | AG15: Total assets | AH15: 365725 | AI15: 375319 | AJ15: Total assets | AK15: 338516 | AL15: 365725
A16: Long-term marketable securities | B16: Long-term marketable securities | C16: =indmat(B16,R:R,S:S) -> 10528 | D16: =indmat(B16,R:R,T:T) -> 2379 | E16: =indmat(B16,U:U,V:V) -> 25391 | F16: =indmat(B16,X:X,Z:Z) -> 55618 | G16: =indmat(B16,X:X,Y:Y) -> 92122 | H16: =indmat(B16,AA:AA,AC:AC) -> 106215 | I16: =indmat(B16,AA:AA,AB:AB) -> 130162 | J16: =indmat(B16,AD:AD,AF:AF) -> 164065 | K16: =indmat(B16,AD:AD,AE:AE) -> 170430 | L16: =indmat(B16,AG:AG,AI:AI) -> 0 | M16: =indmat(B16,AG:AG,AH:AH) -> 0 | N16: =indmat(B16,AJ:AJ,AK:AK) -> 0 | R16: Total assets | S16: 47501 | T16: 36171 | U16: Other assets | V16: 2263 | W16: 2011 | X16: Other assets | Y16: 5478 | Z16: 3556 | AA16: Other assets | AB16: 3764 | AC16: 5146 | AD16: Current liabilities: | AG16: Current liabilities: | AJ16: Current liabilities:
A17: Marketable securities | B17: Marketable securities | C17: =indmat(B17,R:R,S:S) -> 0 | D17: =indmat(B17,R:R,T:T) -> 0 | E17: =indmat(B17,U:U,V:V) -> 0 | F17: =indmat(B17,X:X,Z:Z) -> 0 | G17: =indmat(B17,X:X,Y:Y) -> 0 | H17: =indmat(B17,AA:AA,AC:AC) -> 0 | I17: =indmat(B17,AA:AA,AB:AB) -> 0 | J17: =indmat(B17,AD:AD,AF:AF) -> 0 | K17: =indmat(B17,AD:AD,AE:AE) -> 0 | L17: =indmat(B17,AG:AG,AI:AI) -> 53892 | M17: =indmat(B17,AG:AG,AH:AH) -> 40388 | N17: =indmat(B17,AJ:AJ,AK:AK) -> 51713 | R17: Current liabilities: | U17: Total assets | V17: 75183 | W17: 47501 | X17: Total assets | Y17: 176064 | Z17: 116371 | AA17: Total assets | AB17: 231839 | AC17: 207000 | AD17: Accounts payable | AE17: 37294 | AF17: 35490 | AG17: Accounts payable | AH17: 55888 | AI17: 44242 | AJ17: Accounts payable | AK17: 46236 | AL17: 55888
A18: Property, plant and equipment, net | B18: Property, plant and equipment, net | C18: =indmat(B18,R:R,S:S) -> 2954 | D18: =indmat(B18,R:R,T:T) -> 2455 | E18: =indmat(B18,U:U,V:V) -> 4768 | F18: =indmat(B18,X:X,Z:Z) -> 7777 | G18: =indmat(B18,X:X,Y:Y) -> 15452 | H18: =indmat(B18,AA:AA,AC:AC) -> 16597 | I18: =indmat(B18,AA:AA,AB:AB) -> 20624 | J18: =indmat(B18,AD:AD,AF:AF) -> 22471 | K18: =indmat(B18,AD:AD,AE:AE) -> 27010 | L18: =indmat(B18,AG:AG,AI:AI) -> 33783 | M18: =indmat(B18,AG:AG,AH:AH) -> 41304 | N18: =indmat(B18,AJ:AJ,AK:AK) -> 37378 | R18: Accounts payable | S18: 5601 | T18: 5520 | U18: Current liabilities: | X18: Current liabilities: | AA18: Current liabilities: | AB18: ' | AC18: ' | AD18: Accrued expenses | AE18: 22027 | AF18: 25181 | AG18: Other current liabilities | AH18: 32687 | AI18: 30551 | AJ18: Other current liabilities | AK18: 37720 | AL18: 33327
A19: Goodwill | B19: Goodwill | C19: =indmat(B19,R:R,S:S) -> 206 | D19: =indmat(B19,R:R,T:T) -> 207 | E19: =indmat(B19,U:U,V:V) -> 741 | F19: =indmat(B19,X:X,Z:Z) -> 896 | G19: =indmat(B19,X:X,Y:Y) -> 1135 | H19: =indmat(B19,AA:AA,AC:AC) -> 1577 | I19: =indmat(B19,AA:AA,AB:AB) -> 4616 | J19: =indmat(B19,AD:AD,AF:AF) -> 5116 | K19: =indmat(B19,AD:AD,AE:AE) -> 5414 | L19: =indmat(B19,AG:AG,AI:AI) -> 0 | M19: =indmat(B19,AG:AG,AH:AH) -> 0 | N19: =indmat(B19,AJ:AJ,AK:AK) -> 0 | R19: Accrued expenses | S19: 3852 | T19: 4224 | U19: Accounts payable | V19: 12015 | W19: 5601 | X19: Accounts payable | Y19: 21175 | Z19: 14632 | AA19: Accounts payable | AB19: 30196 | AC19: 22367 | AD19: Deferred revenue | AE19: 8080 | AF19: 8940 | AG19: Deferred revenue | AH19: 7543 | AI19: 7548 | AJ19: Deferred revenue | AK19: 5522 | AL19: 5966
A20: Other non-current assets | B20: Other non-current assets | C20: =indmat(B20,R:R,S:S) -> 0 | D20: =indmat(B20,R:R,T:T) -> 0 | E20: =indmat(B20,U:U,V:V) -> 0 | F20: =indmat(B20,X:X,Z:Z) -> 0 | G20: =indmat(B20,X:X,Y:Y) -> 0 | H20: =indmat(B20,AA:AA,AC:AC) -> 0 | I20: =indmat(B20,AA:AA,AB:AB) -> 0 | J20: =indmat(B20,AD:AD,AF:AF) -> 5422 | K20: =indmat(B20,AD:AD,AE:AE) -> 8757 | L20: =indmat(B20,AG:AG,AI:AI) -> 18177 | M20: =indmat(B20,AG:AG,AH:AH) -> 22283 | N20: =indmat(B20,AJ:AJ,AK:AK) -> 32978 | R20: Deferred revenue | S20: 2053 | T20: 1617 | U20: Accrued expenses | V20: 5723 | W20: 3852 | X20: Accrued expenses | Y20: 11414 | Z20: 9247 | AA20: Accrued expenses | AB20: 18453 | AC20: 13856 | AD20: Commercial paper | AE20: 8105 | AF20: 8499 | AG20: Commercial paper | AH20: 11964 | AI20: 11977 | AJ20: Commercial paper | AK20: 5980 | AL20: 11964
A21: Acquired intangible assets, net | B21: Acquired intangible assets, net | C21: =indmat(B21,R:R,S:S) -> 247 | D21: =indmat(B21,R:R,T:T) -> 285 | E21: =indmat(B21,U:U,V:V) -> 342 | F21: =indmat(B21,X:X,Z:Z) -> 3536 | G21: =indmat(B21,X:X,Y:Y) -> 4224 | H21: =indmat(B21,AA:AA,AC:AC) -> 4179 | I21: =indmat(B21,AA:AA,AB:AB) -> 4142 | J21: =indmat(B21,AD:AD,AF:AF) -> 3893 | K21: =indmat(B21,AD:AD,AE:AE) -> 3206 | L21: =indmat(B21,AG:AG,AI:AI) -> 0 | M21: =indmat(B21,AG:AG,AH:AH) -> 0 | N21: =indmat(B21,AJ:AJ,AK:AK) -> 0 | R21: Total current liabilities | S21: 11506 | T21: 11361 | U21: Deferred revenue | V21: 2984 | W21: 2053 | X21: Deferred revenue | Y21: 5953 | Z21: 4091 | AA21: Deferred revenue | AB21: 8491 | AC21: 7435 | AD21: Current portion of long-term debt | AE21: 3500 | AF21: 2500 | AG21: Term debt | AH21: 8784 | AI21: 6496 | AJ21: Term debt | AK21: 10260 | AL21: 8784
A22: Other assets | B22: Other assets | C22: =indmat(B22,R:R,S:S) -> 2011 | D22: =indmat(B22,R:R,T:T) -> 839 | E22: =indmat(B22,U:U,V:V) -> 2263 | F22: =indmat(B22,X:X,Z:Z) -> 3556 | G22: =indmat(B22,X:X,Y:Y) -> 5478 | H22: =indmat(B22,AA:AA,AC:AC) -> 5146 | I22: =indmat(B22,AA:AA,AB:AB) -> 3764 | J22: =indmat(B22,AD:AD,AF:AF) -> 0 | K22: =indmat(B22,AD:AD,AE:AE) -> 0 | L22: =indmat(B22,AG:AG,AI:AI) -> 0 | M22: =indmat(B22,AG:AG,AH:AH) -> 0 | N22: =indmat(B22,AJ:AJ,AK:AK) -> 0 | R22: Deferred revenue - non-current | S22: 853 | T22: 768 | U22: Total current liabilities | V22: 20722 | W22: 11506 | X22: Total current liabilities | Y22: 38542 | Z22: 27970 | AA22: Commercial paper | AB22: 6308 | AC22: 0 | AD22: Total current liabilities | AE22: 79006 | AF22: 80610 | AG22: Total current liabilities | AH22: 116866 | AI22: 100814 | AJ22: Total current liabilities | AK22: 105718 | AL22: 115929
A23: Total non-current assets | B23: Total non-current assets | C23: =indmat(B23,R:R,S:S) -> 0 | D23: =indmat(B23,R:R,T:T) -> 0 | E23: =indmat(B23,U:U,V:V) -> 0 | F23: =indmat(B23,X:X,Z:Z) -> 0 | G23: =indmat(B23,X:X,Y:Y) -> 0 | H23: =indmat(B23,AA:AA,AC:AC) -> 0 | I23: =indmat(B23,AA:AA,AB:AB) -> 0 | J23: =indmat(B23,AD:AD,AF:AF) -> 0 | K23: =indmat(B23,AD:AD,AE:AE) -> 0 | L23: =indmat(B23,AG:AG,AI:AI) -> 246674 | M23: =indmat(B23,AG:AG,AH:AH) -> 234386 | N23: =indmat(B23,AJ:AJ,AK:AK) -> 175697 | R23: Other non-current liabilities | S23: 3502 | T23: 1745 | U23: Deferred revenue - non-current | V23: 1139 | W23: 853 | X23: Deferred revenue - non-current | Y23: 2648 | Z23: 1686 | AA23: Total current liabilities | AB23: 63448 | AC23: 43658 | AD23: Deferred revenue, non-current | AE23: 2930 | AF23: 3624 | AG23: Non-current liabilities: | AJ23: Non-current liabilities:
A24: Total assets | B24: Total assets | C24: =indmat(B24,R:R,S:S) -> 47501 | D24: =indmat(B24,R:R,T:T) -> 36171 | E24: =indmat(B24,U:U,V:V) -> 75183 | F24: =indmat(B24,X:X,Z:Z) -> 116371 | G24: =indmat(B24,X:X,Y:Y) -> 176064 | H24: =indmat(B24,AA:AA,AC:AC) -> 207000 | I24: =indmat(B24,AA:AA,AB:AB) -> 231839 | J24: =indmat(B24,AD:AD,AF:AF) -> 290345 | K24: =indmat(B24,AD:AD,AE:AE) -> 321686 | L24: =indmat(B24,AG:AG,AI:AI) -> 375319 | M24: =indmat(B24,AG:AG,AH:AH) -> 365725 | N24: =indmat(B24,AJ:AJ,AK:AK) -> 338516 | R24: Total liabilities | S24: 15861 | T24: 13874 | U24: Other non-current liabilities | V24: 5531 | W24: 3502 | X24: Other non-current liabilities | Y24: 16664 | Z24: 10100 | AA24: Deferred revenue - non-current | AB24: 3031 | AC24: 2625 | AD24: Long-term debt | AE24: 75427 | AF24: 53329 | AG24: Deferred revenue | AH24: 2797 | AI24: 2836 | AJ24: Term debt | AK24: 91807 | AL24: 93735
A25: Current liabilities: | B25: Current liabilities: | C25: =indmat(B25,R:R,S:S) -> 0 | D25: =indmat(B25,R:R,T:T) -> 0 | E25: =indmat(B25,U:U,V:V) -> 0 | F25: =indmat(B25,X:X,Z:Z) -> 0 | G25: =indmat(B25,X:X,Y:Y) -> 0 | H25: =indmat(B25,AA:AA,AC:AC) ->  | I25: =indmat(B25,AA:AA,AB:AB) ->  | J25: =indmat(B25,AD:AD,AF:AF) -> 0 | K25: =indmat(B25,AD:AD,AE:AE) -> 0 | L25: =indmat(B25,AG:AG,AI:AI) -> 0 | M25: =indmat(B25,AG:AG,AH:AH) -> 0 | N25: =indmat(B25,AJ:AJ,AK:AK) -> 0 | R25: Shareholders' equity: | U25: Total liabilities | V25: 27392 | W25: 15861 | X25: Total liabilities | Y25: 57854 | Z25: 39756 | AA25: Long-term debt | AB25: 28987 | AC25: 16960 | AD25: Other non-current liabilities | AE25: 36074 | AF25: 33427 | AG25: Term debt | AH25: 93735 | AI25: 97207 | AJ25: Other non-current liabilities | AK25: 50503 | AL25: 48914
A26: Accounts payable | B26: Accounts payable | C26: =indmat(B26,R:R,S:S) -> 5601 | D26: =indmat(B26,R:R,T:T) -> 5520 | E26: =indmat(B26,U:U,V:V) -> 12015 | F26: =indmat(B26,X:X,Z:Z) -> 14632 | G26: =indmat(B26,X:X,Y:Y) -> 21175 | H26: =indmat(B26,AA:AA,AC:AC) -> 22367 | I26: =indmat(B26,AA:AA,AB:AB) -> 30196 | J26: =indmat(B26,AD:AD,AF:AF) -> 35490 | K26: =indmat(B26,AD:AD,AE:AE) -> 37294 | L26: =indmat(B26,AG:AG,AI:AI) -> 44242 | M26: =indmat(B26,AG:AG,AH:AH) -> 55888 | N26: =indmat(B26,AJ:AJ,AK:AK) -> 46236 | R26: Common stock, no par value; 1,800,000,000 shares authorized; 899,805,500 and 888,325,973 shares issued and outstanding, respectively | S26: 8210 | T26: 7177 | U26: Commitments and contingencies | X26: Commitments and contingencies | AA26: Other non-current liabilities | AB26: 24826 | AC26: 20208 | AD26: Total liabilities | AE26: 193437 | AF26: 170990 | AG26: Other non-current liabilities | AH26: 45180 | AI26: 40415 | AJ26: Total non-current liabilities | AK26: 142310 | AL26: 142649
A27: Accrued expenses | B27: Accrued expenses | C27: =indmat(B27,R:R,S:S) -> 3852 | D27: =indmat(B27,R:R,T:T) -> 4224 | E27: =indmat(B27,U:U,V:V) -> 5723 | F27: =indmat(B27,X:X,Z:Z) -> 9247 | G27: =indmat(B27,X:X,Y:Y) -> 11414 | H27: =indmat(B27,AA:AA,AC:AC) -> 13856 | I27: =indmat(B27,AA:AA,AB:AB) -> 18453 | J27: =indmat(B27,AD:AD,AF:AF) -> 25181 | K27: =indmat(B27,AD:AD,AE:AE) -> 22027 | L27: =indmat(B27,AG:AG,AI:AI) -> 0 | M27: =indmat(B27,AG:AG,AH:AH) -> 0 | N27: =indmat(B27,AJ:AJ,AK:AK) -> 0 | R27: Retained earnings | S27: 23353 | T27: 15129 | U27: Shareholders' equity: | X27: Shareholders' equity: | AA27: Total liabilities | AB27: 120292 | AC27: 83451 | AD27: Commitments and contingencies | AG27: Total non-current liabilities | AH27: 141712 | AI27: 140458 | AJ27: Total liabilities | AK27: 248028 | AL27: 258578
A28: Other current liabilities | B28: Other current liabilities | C28: =indmat(B28,R:R,S:S) -> 0 | D28: =indmat(B28,R:R,T:T) -> 0 | E28: =indmat(B28,U:U,V:V) -> 0 | F28: =indmat(B28,X:X,Z:Z) -> 0 | G28: =indmat(B28,X:X,Y:Y) -> 0 | H28: =indmat(B28,AA:AA,AC:AC) -> 0 | I28: =indmat(B28,AA:AA,AB:AB) -> 0 | J28: =indmat(B28,AD:AD,AF:AF) -> 0 | K28: =indmat(B28,AD:AD,AE:AE) -> 0 | L28: =indmat(B28,AG:AG,AI:AI) -> 30551 | M28: =indmat(B28,AG:AG,AH:AH) -> 32687 | N28: =indmat(B28,AJ:AJ,AK:AK) -> 37720 | R28: Accumulated other comprehensive income/(loss) | S28: 77 | T28: -9 | U28: Common stock, no par value; 1,800,000,000 shares authorized; 915,970,050 and 899,805,500 shares issued and outstanding, respectively | V28: 10668 | W28: 8210 | X28: Common stock, no par value; 1,800,000 shares authorized; 939,208 and 929,277 shares issued and outstanding, respectively | Y28: 16422 | Z28: 13331 | AA28: Commitments and contingencies | AB28: ' | AC28: ' | AD28: Shareholders’ equity: | AG28: Total liabilities | AH28: 258578 | AI28: 241272 | AJ28: Commitments and contingencies
A29: Deferred revenue | B29: Deferred revenue | C29: =indmat(B29,R:R,S:S) -> 2053 | D29: =indmat(B29,R:R,T:T) -> 1617 | E29: =indmat(B29,U:U,V:V) -> 2984 | F29: =indmat(B29,X:X,Z:Z) -> 4091 | G29: =indmat(B29,X:X,Y:Y) -> 5953 | H29: =indmat(B29,AA:AA,AC:AC) -> 7435 | I29: =indmat(B29,AA:AA,AB:AB) -> 8491 | J29: =indmat(B29,AD:AD,AF:AF) -> 8940 | K29: =indmat(B29,AD:AD,AE:AE) -> 8080 | L29: =indmat(B29,AG:AG,AI:AI) -> 7548 | M29: =indmat(B29,AG:AG,AH:AH) -> 7543 | N29: =indmat(B29,AJ:AJ,AK:AK) -> 5522 | R29: Total shareholders' equity | S29: 31640 | T29: 22297 | U29: Retained earnings | V29: 37169 | W29: 23353 | X29: Retained earnings | Y29: 101289 | Z29: 62841 | AA29: Shareholders' equity: | AB29: ' | AC29: ' | AD29: Common stock and additional paid-in capital, $0.00001 par value: 12,600,000 shares authorized; 5,336,166 and 5,578,753 shares issued and outstanding, respectively | AE29: 31251 | AF29: 27416 | AG29: Commitments and contingencies | AJ29: Shareholders’ equity:
A30: Commercial paper | B30: Commercial paper | C30: =indmat(B30,R:R,S:S) -> 0 | D30: =indmat(B30,R:R,T:T) -> 0 | E30: =indmat(B30,U:U,V:V) -> 0 | F30: =indmat(B30,X:X,Z:Z) -> 0 | G30: =indmat(B30,X:X,Y:Y) -> 0 | H30: =indmat(B30,AA:AA,AC:AC) -> 0 | I30: =indmat(B30,AA:AA,AB:AB) -> 6308 | J30: =indmat(B30,AD:AD,AF:AF) -> 8499 | K30: =indmat(B30,AD:AD,AE:AE) -> 8105 | L30: =indmat(B30,AG:AG,AI:AI) -> 11977 | M30: =indmat(B30,AG:AG,AH:AH) -> 11964 | N30: =indmat(B30,AJ:AJ,AK:AK) -> 5980 | R30: Total liabilities and shareholders' equity | S30: 47501 | T30: 36171 | U30: Accumulated other comprehensive (loss)/income | V30: -46 | W30: 77 | X30: Accumulated other comprehensive income | Y30: 499 | Z30: 443 | AA30: Common stock and additional paid-in capital, $0.00001 par value; 12,600,000 shares authorized; 5,866,161 and 6,294,494 shares issued and outstanding, respectively | AB30: 23313 | AC30: 19764 | AD30: Retained earnings | AE30: 96364 | AF30: 92284 | AG30: Shareholders’ equity: | AJ30: Common stock and additional paid-in capital, $0.00001 par value: 12,600,000 shares authorized; 4,443,236 and 4,754,986 shares issued and outstanding, respectively | AK30: 45174 | AL30: 40201
A31: Current portion of long-term debt | B31: Current portion of long-term debt | C31: =indmat(B31,R:R,S:S) -> 0 | D31: =indmat(B31,R:R,T:T) -> 0 | E31: =indmat(B31,U:U,V:V) -> 0 | F31: =indmat(B31,X:X,Z:Z) -> 0 | G31: =indmat(B31,X:X,Y:Y) -> 0 | H31: =indmat(B31,AA:AA,AC:AC) -> 0 | I31: =indmat(B31,AA:AA,AB:AB) -> 0 | J31: =indmat(B31,AD:AD,AF:AF) -> 2500 | K31: =indmat(B31,AD:AD,AE:AE) -> 3500 | L31: =indmat(B31,AG:AG,AI:AI) -> 0 | M31: =indmat(B31,AG:AG,AH:AH) -> 0 | N31: =indmat(B31,AJ:AJ,AK:AK) -> 0 | U31: Total shareholders' equity | V31: 47791 | W31: 31640 | X31: Total shareholders' equity | Y31: 118210 | Z31: 76615 | AA31: Retained earnings | AB31: 87152 | AC31: 104256 | AD31: Accumulated other comprehensive income/(loss) | AE31: 634 | AF31: -345 | AG31: Common stock and additional paid-in capital, $0.00001 par value: 12,600,000 shares authorized; 4,754,986 and 5,126,201 shares issued and outstanding, respectively | AH31: 40201 | AI31: 35867 | AJ31: Retained earnings | AK31: 45898 | AL31: 70400
A32: Term debt | B32: Term debt | C32: =indmat(B32,R:R,S:S) -> 0 | D32: =indmat(B32,R:R,T:T) -> 0 | E32: =indmat(B32,U:U,V:V) -> 0 | F32: =indmat(B32,X:X,Z:Z) -> 0 | G32: =indmat(B32,X:X,Y:Y) -> 0 | H32: =indmat(B32,AA:AA,AC:AC) -> 0 | I32: =indmat(B32,AA:AA,AB:AB) -> 0 | J32: =indmat(B32,AD:AD,AF:AF) -> 0 | K32: =indmat(B32,AD:AD,AE:AE) -> 0 | L32: =indmat(B32,AG:AG,AI:AI) -> 6496 | M32: =indmat(B32,AG:AG,AH:AH) -> 8784 | N32: =indmat(B32,AJ:AJ,AK:AK) -> 10260 | U32: Total liabilities and shareholders' equity | V32: 75183 | W32: 47501 | X32: Total liabilities and shareholders' equity | Y32: 176064 | Z32: 116371 | AA32: Accumulated other comprehensive income/(loss) | AB32: 1082 | AC32: -471 | AD32: Total shareholders’ equity | AE32: 128249 | AF32: 119355 | AG32: Retained earnings | AH32: 70400 | AI32: 98330 | AJ32: Accumulated other comprehensive income/(loss) | AK32: -584 | AL32: -3454
A33: Deferred revenue - non-current | B33: Deferred revenue - non-current | C33: =indmat(B33,R:R,S:S) -> 853 | D33: =indmat(B33,R:R,T:T) -> 768 | E33: =indmat(B33,U:U,V:V) -> 1139 | F33: =indmat(B33,X:X,Z:Z) -> 1686 | G33: =indmat(B33,X:X,Y:Y) -> 2648 | H33: =indmat(B33,AA:AA,AC:AC) -> 2625 | I33: =indmat(B33,AA:AA,AB:AB) -> 3031 | J33: =indmat(B33,AD:AD,AF:AF) -> 0 | K33: =indmat(B33,AD:AD,AE:AE) -> 0 | L33: =indmat(B33,AG:AG,AI:AI) -> 0 | M33: =indmat(B33,AG:AG,AH:AH) -> 0 | N33: =indmat(B33,AJ:AJ,AK:AK) -> 0 | AA33: Total shareholders' equity | AB33: 111547 | AC33: 123549 | AD33: Total liabilities and shareholders’ equity | AE33: 321686 | AF33: 290345 | AG33: Accumulated other comprehensive income/(loss) | AH33: -3454 | AI33: -150 | AJ33: Total shareholders’ equity | AK33: 90488 | AL33: 107147
A34: Other non-current liabilities | B34: Other non-current liabilities | C34: =indmat(B34,R:R,S:S) -> 3502 | D34: =indmat(B34,R:R,T:T) -> 1745 | E34: =indmat(B34,U:U,V:V) -> 5531 | F34: =indmat(B34,X:X,Z:Z) -> 10100 | G34: =indmat(B34,X:X,Y:Y) -> 16664 | H34: =indmat(B34,AA:AA,AC:AC) -> 20208 | I34: =indmat(B34,AA:AA,AB:AB) -> 24826 | J34: =indmat(B34,AD:AD,AF:AF) -> 33427 | K34: =indmat(B34,AD:AD,AE:AE) -> 36074 | L34: =indmat(B34,AG:AG,AI:AI) -> 40415 | M34: =indmat(B34,AG:AG,AH:AH) -> 45180 | N34: =indmat(B34,AJ:AJ,AK:AK) -> 50503 | AA34: Total liabilities and shareholders' equity | AB34: 231839 | AC34: 207000 | AG34: Total shareholders’ equity | AH34: 107147 | AI34: 134047 | AJ34: Total liabilities and shareholders’ equity | AK34: 338516 | AL34: 365725
A35: Total current liabilities | B35: Total current liabilities | C35: =indmat(B35,R:R,S:S) -> 11506 | D35: =indmat(B35,R:R,T:T) -> 11361 | E35: =indmat(B35,U:U,V:V) -> 20722 | F35: =indmat(B35,X:X,Z:Z) -> 27970 | G35: =indmat(B35,X:X,Y:Y) -> 38542 | H35: =indmat(B35,AA:AA,AC:AC) -> 43658 | I35: =indmat(B35,AA:AA,AB:AB) -> 63448 | J35: =indmat(B35,AD:AD,AF:AF) -> 80610 | K35: =indmat(B35,AD:AD,AE:AE) -> 79006 | L35: =indmat(B35,AG:AG,AI:AI) -> 100814 | M35: =indmat(B35,AG:AG,AH:AH) -> 116866 | N35: =indmat(B35,AJ:AJ,AK:AK) -> 105718 | AG35: Total liabilities and shareholders’ equity | AH35: 365725 | AI35: 375319
A36: Deferred revenue, non-current | B36: Deferred revenue, non-current | C36: =indmat(B36,R:R,S:S) -> 0 | D36: =indmat(B36,R:R,T:T) -> 0 | E36: =indmat(B36,U:U,V:V) -> 0 | F36: =indmat(B36,X:X,Z:Z) -> 0 | G36: =indmat(B36,X:X,Y:Y) -> 0 | H36: =indmat(B36,AA:AA,AC:AC) -> 0 | I36: =indmat(B36,AA:AA,AB:AB) -> 0 | J36: =indmat(B36,AD:AD,AF:AF) -> 3624 | K36: =indmat(B36,AD:AD,AE:AE) -> 2930 | L36: =indmat(B36,AG:AG,AI:AI) -> 0 | M36: =indmat(B36,AG:AG,AH:AH) -> 0 | N36: =indmat(B36,AJ:AJ,AK:AK) -> 0
A37: Non-current liabilities: | B37: Non-current liabilities: | C37: =indmat(B37,R:R,S:S) -> 0 | D37: =indmat(B37,R:R,T:T) -> 0 | E37: =indmat(B37,U:U,V:V) -> 0 | F37: =indmat(B37,X:X,Z:Z) -> 0 | G37: =indmat(B37,X:X,Y:Y) -> 0 | H37: =indmat(B37,AA:AA,AC:AC) -> 0 | I37: =indmat(B37,AA:AA,AB:AB) -> 0 | J37: =indmat(B37,AD:AD,AF:AF) -> 0 | K37: =indmat(B37,AD:AD,AE:AE) -> 0 | L37: =indmat(B37,AG:AG,AI:AI) -> 0 | M37: =indmat(B37,AG:AG,AH:AH) -> 0 | N37: =indmat(B37,AJ:AJ,AK:AK) -> 0
A38: Long-term debt | B38: Long-term debt | C38: =indmat(B38,R:R,S:S) -> 0 | D38: =indmat(B38,R:R,T:T) -> 0 | E38: =indmat(B38,U:U,V:V) -> 0 | F38: =indmat(B38,X:X,Z:Z) -> 0 | G38: =indmat(B38,X:X,Y:Y) -> 0 | H38: =indmat(B38,AA:AA,AC:AC) -> 16960 | I38: =indmat(B38,AA:AA,AB:AB) -> 28987 | J38: =indmat(B38,AD:AD,AF:AF) -> 53329 | K38: =indmat(B38,AD:AD,AE:AE) -> 75427 | L38: =indmat(B38,AG:AG,AI:AI) -> 0 | M38: =indmat(B38,AG:AG,AH:AH) -> 0 | N38: =indmat(B38,AJ:AJ,AK:AK) -> 0
A39: Common stock, no par value; 1,800,000,000 shares authorized; 899,805,500 and 888,325,973 shares issued and outstanding, respectively | B39: Total liabilities | C39: =indmat(B39,R:R,S:S) -> 15861 | D39: =indmat(B39,R:R,T:T) -> 13874 | E39: =indmat(B39,U:U,V:V) -> 27392 | F39: =indmat(B39,X:X,Z:Z) -> 39756 | G39: =indmat(B39,X:X,Y:Y) -> 57854 | H39: =indmat(B39,AA:AA,AC:AC) -> 83451 | I39: =indmat(B39,AA:AA,AB:AB) -> 120292 | J39: =indmat(B39,AD:AD,AF:AF) -> 170990 | K39: =indmat(B39,AD:AD,AE:AE) -> 193437 | L39: =indmat(B39,AG:AG,AI:AI) -> 241272 | M39: =indmat(B39,AG:AG,AH:AH) -> 258578 | N39: =indmat(B39,AJ:AJ,AK:AK) -> 248028
A40: Shareholders' equity: | B40: Total non-current liabilities | C40: =indmat(B40,R:R,S:S) -> 0 | D40: =indmat(B40,R:R,T:T) -> 0 | E40: =indmat(B40,U:U,V:V) -> 0 | F40: =indmat(B40,X:X,Z:Z) -> 0 | G40: =indmat(B40,X:X,Y:Y) -> 0 | H40: =indmat(B40,AA:AA,AC:AC) -> 0 | I40: =indmat(B40,AA:AA,AB:AB) -> 0 | J40: =indmat(B40,AD:AD,AF:AF) -> 0 | K40: =indmat(B40,AD:AD,AE:AE) -> 0 | L40: =indmat(B40,AG:AG,AI:AI) -> 140458 | M40: =indmat(B40,AG:AG,AH:AH) -> 141712 | N40: =indmat(B40,AJ:AJ,AK:AK) -> 142310
A41: Total liabilities | B41: Common stock, no par value; 1,800,000,000 shares authorized; 899,805,500 and 888,325,973 shares issued and outstanding, respectively | C41: =indmat(B41,R:R,S:S) -> 8210 | D41: =indmat(B41,R:R,T:T) -> 7177 | E41: =indmat(B41,U:U,V:V) -> 0 | F41: =indmat(B41,X:X,Z:Z) -> 0 | G41: =indmat(B41,X:X,Y:Y) -> 0 | H41: =indmat(B41,AA:AA,AC:AC) -> 0 | I41: =indmat(B41,AA:AA,AB:AB) -> 0 | J41: =indmat(B41,AD:AD,AF:AF) -> 0 | K41: =indmat(B41,AD:AD,AE:AE) -> 0 | L41: =indmat(B41,AG:AG,AI:AI) -> 0 | M41: =indmat(B41,AG:AG,AH:AH) -> 0 | N41: =indmat(B41,AJ:AJ,AK:AK) -> 0
A42: Commitments and contingencies | B42: Common stock and additional paid-in capital, $0.00001 par value: 12,600,000 shares authorized; 5,336,166 and 5,578,753 shares issued and outstanding, respectively | C42: =indmat(B42,R:R,S:S) -> 0 | D42: =indmat(B42,R:R,T:T) -> 0 | E42: =indmat(B42,U:U,V:V) -> 0 | F42: =indmat(B42,X:X,Z:Z) -> 0 | G42: =indmat(B42,X:X,Y:Y) -> 0 | H42: =indmat(B42,AA:AA,AC:AC) -> 0 | I42: =indmat(B42,AA:AA,AB:AB) -> 0 | J42: =indmat(B42,AD:AD,AF:AF) -> 27416 | K42: =indmat(B42,AD:AD,AE:AE) -> 31251 | L42: =indmat(B42,AG:AG,AI:AI) -> 0 | M42: =indmat(B42,AG:AG,AH:AH) -> 0 | N42: =indmat(B42,AJ:AJ,AK:AK) -> 0
A43: Common stock, no par value; 1,800,000 shares authorized; 939,208 and 929,277 shares issued and outstanding, respectively | B43: Common stock and additional paid-in capital, $0.00001 par value; 12,600,000 shares authorized; 5,866,161 and 6,294,494 shares issued and outstanding, respectively | C43: =indmat(B43,R:R,S:S) -> 0 | D43: =indmat(B43,R:R,T:T) -> 0 | E43: =indmat(B43,U:U,V:V) -> 0 | F43: =indmat(B43,X:X,Z:Z) -> 0 | G43: =indmat(B43,X:X,Y:Y) -> 0 | H43: =indmat(B43,AA:AA,AC:AC) -> 19764 | I43: =indmat(B43,AA:AA,AB:AB) -> 23313 | J43: =indmat(B43,AD:AD,AF:AF) -> 0 | K43: =indmat(B43,AD:AD,AE:AE) -> 0 | L43: =indmat(B43,AG:AG,AI:AI) -> 0 | M43: =indmat(B43,AG:AG,AH:AH) -> 0 | N43: =indmat(B43,AJ:AJ,AK:AK) -> 0
A44: Common stock, no par value; 1,800,000,000 shares authorized; 915,970,050 and 899,805,500 shares issued and outstanding, respectively | B44: Common stock, no par value; 1,800,000 shares authorized; 939,208 and 929,277 shares issued and outstanding, respectively | C44: =indmat(B44,R:R,S:S) -> 0 | D44: =indmat(B44,R:R,T:T) -> 0 | E44: =indmat(B44,U:U,V:V) -> 0 | F44: =indmat(B44,X:X,Z:Z) -> 13331 | G44: =indmat(B44,X:X,Y:Y) -> 16422 | H44: =indmat(B44,AA:AA,AC:AC) -> 0 | I44: =indmat(B44,AA:AA,AB:AB) -> 0 | J44: =indmat(B44,AD:AD,AF:AF) -> 0 | K44: =indmat(B44,AD:AD,AE:AE) -> 0 | L44: =indmat(B44,AG:AG,AI:AI) -> 0 | M44: =indmat(B44,AG:AG,AH:AH) -> 0 | N44: =indmat(B44,AJ:AJ,AK:AK) -> 0
A45: Total non-current liabilities | B45: Common stock, no par value; 1,800,000,000 shares authorized; 915,970,050 and 899,805,500 shares issued and outstanding, respectively | C45: =indmat(B45,R:R,S:S) -> 0 | D45: =indmat(B45,R:R,T:T) -> 0 | E45: =indmat(B45,U:U,V:V) -> 10668 | F45: =indmat(B45,X:X,Z:Z) -> 0 | G45: =indmat(B45,X:X,Y:Y) -> 0 | H45: =indmat(B45,AA:AA,AC:AC) -> 0 | I45: =indmat(B45,AA:AA,AB:AB) -> 0 | J45: =indmat(B45,AD:AD,AF:AF) -> 0 | K45: =indmat(B45,AD:AD,AE:AE) -> 0 | L45: =indmat(B45,AG:AG,AI:AI) -> 0 | M45: =indmat(B45,AG:AG,AH:AH) -> 0 | N45: =indmat(B45,AJ:AJ,AK:AK) -> 0
A46: Retained earnings | B46: Common stock and additional paid-in capital, $0.00001 par value: 12,600,000 shares authorized; 4,443,236 and 4,754,986 shares issued and outstanding, respectively | C46: =indmat(B46,R:R,S:S) -> 0 | D46: =indmat(B46,R:R,T:T) -> 0 | E46: =indmat(B46,U:U,V:V) -> 0 | F46: =indmat(B46,X:X,Z:Z) -> 0 | G46: =indmat(B46,X:X,Y:Y) -> 0 | H46: =indmat(B46,AA:AA,AC:AC) -> 0 | I46: =indmat(B46,AA:AA,AB:AB) -> 0 | J46: =indmat(B46,AD:AD,AF:AF) -> 0 | K46: =indmat(B46,AD:AD,AE:AE) -> 0 | L46: =indmat(B46,AG:AG,AI:AI) -> 0 | M46: =indmat(B46,AG:AG,AH:AH) -> 0 | N46: =indmat(B46,AJ:AJ,AK:AK) -> 45174
A47: Accumulated other comprehensive (loss)/income | B47: Common stock and additional paid-in capital, $0.00001 par value: 12,600,000 shares authorized; 4,754,986 and 5,126,201 shares issued and outstanding, respectively | C47: =indmat(B47,R:R,S:S) -> 0 | D47: =indmat(B47,R:R,T:T) -> 0 | E47: =indmat(B47,U:U,V:V) -> 0 | F47: =indmat(B47,X:X,Z:Z) -> 0 | G47: =indmat(B47,X:X,Y:Y) -> 0 | H47: =indmat(B47,AA:AA,AC:AC) -> 0 | I47: =indmat(B47,AA:AA,AB:AB) -> 0 | J47: =indmat(B47,AD:AD,AF:AF) -> 0 | K47: =indmat(B47,AD:AD,AE:AE) -> 0 | L47: =indmat(B47,AG:AG,AI:AI) -> 35867 | M47: =indmat(B47,AG:AG,AH:AH) -> 40201 | N47: =indmat(B47,AJ:AJ,AK:AK) -> 0
A48: Accumulated other comprehensive income | B48: Shareholders' equity: | C48: =indmat(B48,R:R,S:S) -> 0 | D48: =indmat(B48,R:R,T:T) -> 0 | E48: =indmat(B48,U:U,V:V) -> 0 | F48: =indmat(B48,X:X,Z:Z) -> 0 | G48: =indmat(B48,X:X,Y:Y) -> 0 | H48: =indmat(B48,AA:AA,AC:AC) ->  | I48: =indmat(B48,AA:AA,AB:AB) ->  | J48: =indmat(B48,AD:AD,AF:AF) -> 0 | K48: =indmat(B48,AD:AD,AE:AE) -> 0 | L48: =indmat(B48,AG:AG,AI:AI) -> 0 | M48: =indmat(B48,AG:AG,AH:AH) -> 0 | N48: =indmat(B48,AJ:AJ,AK:AK) -> 0
A49: Common stock and additional paid-in capital, $0.00001 par value: 12,600,000 shares authorized; 5,336,166 and 5,578,753 shares issued and outstanding, respectively | B49: Commitments and contingencies | C49: =indmat(B49,R:R,S:S) -> 0 | D49: =indmat(B49,R:R,T:T) -> 0 | E49: =indmat(B49,U:U,V:V) -> 0 | F49: =indmat(B49,X:X,Z:Z) ->  | G49: =indmat(B49,X:X,Y:Y) ->  | H49: =indmat(B49,AA:AA,AC:AC) ->  | I49: =indmat(B49,AA:AA,AB:AB) ->  | J49: =indmat(B49,AD:AD,AF:AF) ->  | K49: =indmat(B49,AD:AD,AE:AE) ->  | L49: =indmat(B49,AG:AG,AI:AI) ->  | M49: =indmat(B49,AG:AG,AH:AH) ->  | N49: =indmat(B49,AJ:AJ,AK:AK) -> 
A50: Common stock and additional paid-in capital, $0.00001 par value; 12,600,000 shares authorized; 5,866,161 and 6,294,494 shares issued and outstanding, respectively | B50: Retained earnings | C50: =indmat(B50,R:R,S:S) -> 23353 | D50: =indmat(B50,R:R,T:T) -> 15129 | E50: =indmat(B50,U:U,V:V) -> 37169 | F50: =indmat(B50,X:X,Z:Z) -> 62841 | G50: =indmat(B50,X:X,Y:Y) -> 101289 | H50: =indmat(B50,AA:AA,AC:AC) -> 104256 | I50: =indmat(B50,AA:AA,AB:AB) -> 87152 | J50: =indmat(B50,AD:AD,AF:AF) -> 92284 | K50: =indmat(B50,AD:AD,AE:AE) -> 96364 | L50: =indmat(B50,AG:AG,AI:AI) -> 98330 | M50: =indmat(B50,AG:AG,AH:AH) -> 70400 | N50: =indmat(B50,AJ:AJ,AK:AK) -> 45898
A51: Shareholders’ equity: | B51: Accumulated other comprehensive (loss)/income | C51: =indmat(B51,R:R,S:S) -> 0 | D51: =indmat(B51,R:R,T:T) -> 0 | E51: =indmat(B51,U:U,V:V) -> -46 | F51: =indmat(B51,X:X,Z:Z) -> 0 | G51: =indmat(B51,X:X,Y:Y) -> 0 | H51: =indmat(B51,AA:AA,AC:AC) -> 0 | I51: =indmat(B51,AA:AA,AB:AB) -> 0 | J51: =indmat(B51,AD:AD,AF:AF) -> 0 | K51: =indmat(B51,AD:AD,AE:AE) -> 0 | L51: =indmat(B51,AG:AG,AI:AI) -> 0 | M51: =indmat(B51,AG:AG,AH:AH) -> 0 | N51: =indmat(B51,AJ:AJ,AK:AK) -> 0
A52: Common stock and additional paid-in capital, $0.00001 par value: 12,600,000 shares authorized; 4,443,236 and 4,754,986 shares issued and outstanding, respectively | B52: Accumulated other comprehensive income | C52: =indmat(B52,R:R,S:S) -> 0 | D52: =indmat(B52,R:R,T:T) -> 0 | E52: =indmat(B52,U:U,V:V) -> 0 | F52: =indmat(B52,X:X,Z:Z) -> 443 | G52: =indmat(B52,X:X,Y:Y) -> 499 | H52: =indmat(B52,AA:AA,AC:AC) -> 0 | I52: =indmat(B52,AA:AA,AB:AB) -> 0 | J52: =indmat(B52,AD:AD,AF:AF) -> 0 | K52: =indmat(B52,AD:AD,AE:AE) -> 0 | L52: =indmat(B52,AG:AG,AI:AI) -> 0 | M52: =indmat(B52,AG:AG,AH:AH) -> 0 | N52: =indmat(B52,AJ:AJ,AK:AK) -> 0
A53: Total shareholders' equity | B53: Accumulated other comprehensive income/(loss) | C53: =indmat(B53,R:R,S:S) -> 77 | D53: =indmat(B53,R:R,T:T) -> -9 | E53: =indmat(B53,U:U,V:V) -> 0 | F53: =indmat(B53,X:X,Z:Z) -> 0 | G53: =indmat(B53,X:X,Y:Y) -> 0 | H53: =indmat(B53,AA:AA,AC:AC) -> -471 | I53: =indmat(B53,AA:AA,AB:AB) -> 1082 | J53: =indmat(B53,AD:AD,AF:AF) -> -345 | K53: =indmat(B53,AD:AD,AE:AE) -> 634 | L53: =indmat(B53,AG:AG,AI:AI) -> -150 | M53: =indmat(B53,AG:AG,AH:AH) -> -3454 | N53: =indmat(B53,AJ:AJ,AK:AK) -> -584
A54: Common stock and additional paid-in capital, $0.00001 par value: 12,600,000 shares authorized; 4,754,986 and 5,126,201 shares issued and outstanding, respectively | B54: Shareholders’ equity: | C54: =indmat(B54,R:R,S:S) -> 0 | D54: =indmat(B54,R:R,T:T) -> 0 | E54: =indmat(B54,U:U,V:V) -> 0 | F54: =indmat(B54,X:X,Z:Z) -> 0 | G54: =indmat(B54,X:X,Y:Y) -> 0 | H54: =indmat(B54,AA:AA,AC:AC) -> 0 | I54: =indmat(B54,AA:AA,AB:AB) -> 0 | J54: =indmat(B54,AD:AD,AF:AF) -> 0 | K54: =indmat(B54,AD:AD,AE:AE) -> 0 | L54: =indmat(B54,AG:AG,AI:AI) -> 0 | M54: =indmat(B54,AG:AG,AH:AH) -> 0 | N54: =indmat(B54,AJ:AJ,AK:AK) -> 0
A55: Total liabilities and shareholders' equity | B55: Total shareholders' equity | C55: =indmat(B55,R:R,S:S) -> 31640 | D55: =indmat(B55,R:R,T:T) -> 22297 | E55: =indmat(B55,U:U,V:V) -> 47791 | F55: =indmat(B55,X:X,Z:Z) -> 76615 | G55: =indmat(B55,X:X,Y:Y) -> 118210 | H55: =indmat(B55,AA:AA,AC:AC) -> 123549 | I55: =indmat(B55,AA:AA,AB:AB) -> 111547 | J55: =indmat(B55,AD:AD,AF:AF) -> 0 | K55: =indmat(B55,AD:AD,AE:AE) -> 0 | L55: =indmat(B55,AG:AG,AI:AI) -> 0 | M55: =indmat(B55,AG:AG,AH:AH) -> 0 | N55: =indmat(B55,AJ:AJ,AK:AK) -> 0
A56: Accumulated other comprehensive income/(loss) | B56: Total shareholders’ equity | C56: =indmat(B56,R:R,S:S) -> 0 | D56: =indmat(B56,R:R,T:T) -> 0 | E56: =indmat(B56,U:U,V:V) -> 0 | F56: =indmat(B56,X:X,Z:Z) -> 0 | G56: =indmat(B56,X:X,Y:Y) -> 0 | H56: =indmat(B56,AA:AA,AC:AC) -> 0 | I56: =indmat(B56,AA:AA,AB:AB) -> 0 | J56: =indmat(B56,AD:AD,AF:AF) -> 119355 | K56: =indmat(B56,AD:AD,AE:AE) -> 128249 | L56: =indmat(B56,AG:AG,AI:AI) -> 134047 | M56: =indmat(B56,AG:AG,AH:AH) -> 107147 | N56: =indmat(B56,AJ:AJ,AK:AK) -> 90488
A57: Total liabilities and shareholders’ equity | B57: Total liabilities and shareholders’ equity | C57: =indmat(B57,R:R,S:S) -> 0 | D57: =indmat(B57,R:R,T:T) -> 0 | E57: =indmat(B57,U:U,V:V) -> 0 | F57: =indmat(B57,X:X,Z:Z) -> 0 | G57: =indmat(B57,X:X,Y:Y) -> 0 | H57: =indmat(B57,AA:AA,AC:AC) -> 0 | I57: =indmat(B57,AA:AA,AB:AB) -> 0 | J57: =indmat(B57,AD:AD,AF:AF) -> 290345 | K57: =indmat(B57,AD:AD,AE:AE) -> 321686 | L57: =indmat(B57,AG:AG,AI:AI) -> 375319 | M57: =indmat(B57,AG:AG,AH:AH) -> 365725 | N57: =indmat(B57,AJ:AJ,AK:AK) -> 338516
A58: Total shareholders’ equity | B58: Total liabilities and shareholders' equity | C58: =indmat(B58,R:R,S:S) -> 47501 | D58: =indmat(B58,R:R,T:T) -> 36171 | E58: =indmat(B58,U:U,V:V) -> 75183 | F58: =indmat(B58,X:X,Z:Z) -> 116371 | G58: =indmat(B58,X:X,Y:Y) -> 176064 | H58: =indmat(B58,AA:AA,AC:AC) -> 207000 | I58: =indmat(B58,AA:AA,AB:AB) -> 231839 | J58: =indmat(B58,AD:AD,AF:AF) -> 0 | K58: =indmat(B58,AD:AD,AE:AE) -> 0 | L58: =indmat(B58,AG:AG,AI:AI) -> 0 | M58: =indmat(B58,AG:AG,AH:AH) -> 0 | N58: =indmat(B58,AJ:AJ,AK:AK) -> 0
A59: 0 | B59: 0 | C59: =indmat(B59,R:R,S:S) -> 0 | D59: =indmat(B59,R:R,T:T) -> 0 | E59: =indmat(B59,U:U,V:V) -> 0 | F59: =indmat(B59,X:X,Z:Z) -> 0 | G59: =indmat(B59,X:X,Y:Y) -> 0 | H59: =indmat(B59,AA:AA,AC:AC) -> 0 | I59: =indmat(B59,AA:AA,AB:AB) -> 0 | J59: =indmat(B59,AD:AD,AF:AF) -> 0 | K59: =indmat(B59,AD:AD,AE:AE) -> 0 | L59: =indmat(B59,AG:AG,AI:AI) -> 0 | M59: =indmat(B59,AG:AG,AH:AH) -> 0 | N59: =indmat(B59,AJ:AJ,AK:AK) -> 0
A60: 0 | B60: 0 | C60: =indmat(B60,R:R,S:S) -> 0 | D60: =indmat(B60,R:R,T:T) -> 0 | E60: =indmat(B60,U:U,V:V) -> 0 | F60: =indmat(B60,X:X,Z:Z) -> 0 | G60: =indmat(B60,X:X,Y:Y) -> 0 | H60: =indmat(B60,AA:AA,AC:AC) -> 0 | I60: =indmat(B60,AA:AA,AB:AB) -> 0 | J60: =indmat(B60,AD:AD,AF:AF) -> 0 | K60: =indmat(B60,AD:AD,AE:AE) -> 0 | L60: =indmat(B60,AG:AG,AI:AI) -> 0 | M60: =indmat(B60,AG:AG,AH:AH) -> 0 | N60: =indmat(B60,AJ:AJ,AK:AK) -> 0
A61: 0 | B61: 0 | C61: =indmat(B61,R:R,S:S) -> 0 | D61: =indmat(B61,R:R,T:T) -> 0 | E61: =indmat(B61,U:U,V:V) -> 0 | F61: =indmat(B61,X:X,Z:Z) -> 0 | G61: =indmat(B61,X:X,Y:Y) -> 0 | H61: =indmat(B61,AA:AA,AC:AC) -> 0 | I61: =indmat(B61,AA:AA,AB:AB) -> 0 | J61: =indmat(B61,AD:AD,AF:AF) -> 0 | K61: =indmat(B61,AD:AD,AE:AE) -> 0 | L61: =indmat(B61,AG:AG,AI:AI) -> 0 | M61: =indmat(B61,AG:AG,AH:AH) -> 0 | N61: =indmat(B61,AJ:AJ,AK:AK) -> 0
A62: 0 | B62: 0 | C62: =indmat(B62,R:R,S:S) -> 0 | D62: =indmat(B62,R:R,T:T) -> 0 | E62: =indmat(B62,U:U,V:V) -> 0 | F62: =indmat(B62,X:X,Z:Z) -> 0 | G62: =indmat(B62,X:X,Y:Y) -> 0 | H62: =indmat(B62,AA:AA,AC:AC) -> 0 | I62: =indmat(B62,AA:AA,AB:AB) -> 0 | J62: =indmat(B62,AD:AD,AF:AF) -> 0 | K62: =indmat(B62,AD:AD,AE:AE) -> 0 | L62: =indmat(B62,AG:AG,AI:AI) -> 0 | M62: =indmat(B62,AG:AG,AH:AH) -> 0 | N62: =indmat(B62,AJ:AJ,AK:AK) -> 0
A63: 0 | B63: 0 | C63: =indmat(B63,R:R,S:S) -> 0 | D63: =indmat(B63,R:R,T:T) -> 0 | E63: =indmat(B63,U:U,V:V) -> 0 | F63: =indmat(B63,X:X,Z:Z) -> 0 | G63: =indmat(B63,X:X,Y:Y) -> 0 | H63: =indmat(B63,AA:AA,AC:AC) -> 0 | I63: =indmat(B63,AA:AA,AB:AB) -> 0 | J63: =indmat(B63,AD:AD,AF:AF) -> 0 | K63: =indmat(B63,AD:AD,AE:AE) -> 0 | L63: =indmat(B63,AG:AG,AI:AI) -> 0 | M63: =indmat(B63,AG:AG,AH:AH) -> 0 | N63: =indmat(B63,AJ:AJ,AK:AK) -> 0
A64: 0 | B64: 0 | C64: =indmat(B64,R:R,S:S) -> 0 | D64: =indmat(B64,R:R,T:T) -> 0 | E64: =indmat(B64,U:U,V:V) -> 0 | F64: =indmat(B64,X:X,Z:Z) -> 0 | G64: =indmat(B64,X:X,Y:Y) -> 0 | H64: =indmat(B64,AA:AA,AC:AC) -> 0 | I64: =indmat(B64,AA:AA,AB:AB) -> 0 | J64: =indmat(B64,AD:AD,AF:AF) -> 0 | K64: =indmat(B64,AD:AD,AE:AE) -> 0 | L64: =indmat(B64,AG:AG,AI:AI) -> 0 | M64: =indmat(B64,AG:AG,AH:AH) -> 0 | N64: =indmat(B64,AJ:AJ,AK:AK) -> 0
A65: 0 | B65: 0 | C65: =indmat(B65,R:R,S:S) -> 0 | D65: =indmat(B65,R:R,T:T) -> 0 | E65: =indmat(B65,U:U,V:V) -> 0 | F65: =indmat(B65,X:X,Z:Z) -> 0 | G65: =indmat(B65,X:X,Y:Y) -> 0 | H65: =indmat(B65,AA:AA,AC:AC) -> 0 | I65: =indmat(B65,AA:AA,AB:AB) -> 0 | J65: =indmat(B65,AD:AD,AF:AF) -> 0 | K65: =indmat(B65,AD:AD,AE:AE) -> 0 | L65: =indmat(B65,AG:AG,AI:AI) -> 0 | M65: =indmat(B65,AG:AG,AH:AH) -> 0 | N65: =indmat(B65,AJ:AJ,AK:AK) -> 0
A66: 0 | B66: 0 | C66: =indmat(B66,R:R,S:S) -> 0 | D66: =indmat(B66,R:R,T:T) -> 0 | E66: =indmat(B66,U:U,V:V) -> 0 | F66: =indmat(B66,X:X,Z:Z) -> 0 | G66: =indmat(B66,X:X,Y:Y) -> 0 | H66: =indmat(B66,AA:AA,AC:AC) -> 0 | I66: =indmat(B66,AA:AA,AB:AB) -> 0 | J66: =indmat(B66,AD:AD,AF:AF) -> 0 | K66: =indmat(B66,AD:AD,AE:AE) -> 0 | L66: =indmat(B66,AG:AG,AI:AI) -> 0 | M66: =indmat(B66,AG:AG,AH:AH) -> 0 | N66: =indmat(B66,AJ:AJ,AK:AK) -> 0
A67: 0 | B67: 0 | C67: =indmat(B67,R:R,S:S) -> 0 | D67: =indmat(B67,R:R,T:T) -> 0 | E67: =indmat(B67,U:U,V:V) -> 0 | F67: =indmat(B67,X:X,Z:Z) -> 0 | G67: =indmat(B67,X:X,Y:Y) -> 0 | H67: =indmat(B67,AA:AA,AC:AC) -> 0 | I67: =indmat(B67,AA:AA,AB:AB) -> 0 | J67: =indmat(B67,AD:AD,AF:AF) -> 0 | K67: =indmat(B67,AD:AD,AE:AE) -> 0 | L67: =indmat(B67,AG:AG,AI:AI) -> 0 | M67: =indmat(B67,AG:AG,AH:AH) -> 0 | N67: =indmat(B67,AJ:AJ,AK:AK) -> 0
A68: 0 | B68: 0 | C68: =indmat(B68,R:R,S:S) -> 0 | D68: =indmat(B68,R:R,T:T) -> 0 | E68: =indmat(B68,U:U,V:V) -> 0 | F68: =indmat(B68,X:X,Z:Z) -> 0 | G68: =indmat(B68,X:X,Y:Y) -> 0 | H68: =indmat(B68,AA:AA,AC:AC) -> 0 | I68: =indmat(B68,AA:AA,AB:AB) -> 0 | J68: =indmat(B68,AD:AD,AF:AF) -> 0 | K68: =indmat(B68,AD:AD,AE:AE) -> 0 | L68: =indmat(B68,AG:AG,AI:AI) -> 0 | M68: =indmat(B68,AG:AG,AH:AH) -> 0 | N68: =indmat(B68,AJ:AJ,AK:AK) -> 0
A69: 0 | B69: 0 | C69: =indmat(B69,R:R,S:S) -> 0 | D69: =indmat(B69,R:R,T:T) -> 0 | E69: =indmat(B69,U:U,V:V) -> 0 | F69: =indmat(B69,X:X,Z:Z) -> 0 | G69: =indmat(B69,X:X,Y:Y) -> 0 | H69: =indmat(B69,AA:AA,AC:AC) -> 0 | I69: =indmat(B69,AA:AA,AB:AB) -> 0 | J69: =indmat(B69,AD:AD,AF:AF) -> 0 | K69: =indmat(B69,AD:AD,AE:AE) -> 0 | L69: =indmat(B69,AG:AG,AI:AI) -> 0 | M69: =indmat(B69,AG:AG,AH:AH) -> 0 | N69: =indmat(B69,AJ:AJ,AK:AK) -> 0
A70: 0 | B70: 0 | C70: =indmat(B70,R:R,S:S) -> 0 | D70: =indmat(B70,R:R,T:T) -> 0 | E70: =indmat(B70,U:U,V:V) -> 0 | F70: =indmat(B70,X:X,Z:Z) -> 0 | G70: =indmat(B70,X:X,Y:Y) -> 0 | H70: =indmat(B70,AA:AA,AC:AC) -> 0 | I70: =indmat(B70,AA:AA,AB:AB) -> 0 | J70: =indmat(B70,AD:AD,AF:AF) -> 0 | K70: =indmat(B70,AD:AD,AE:AE) -> 0 | L70: =indmat(B70,AG:AG,AI:AI) -> 0 | M70: =indmat(B70,AG:AG,AH:AH) -> 0 | N70: =indmat(B70,AJ:AJ,AK:AK) -> 0
A71: 0 | B71: 0 | C71: =indmat(B71,R:R,S:S) -> 0 | D71: =indmat(B71,R:R,T:T) -> 0 | E71: =indmat(B71,U:U,V:V) -> 0 | F71: =indmat(B71,X:X,Z:Z) -> 0 | G71: =indmat(B71,X:X,Y:Y) -> 0 | H71: =indmat(B71,AA:AA,AC:AC) -> 0 | I71: =indmat(B71,AA:AA,AB:AB) -> 0 | J71: =indmat(B71,AD:AD,AF:AF) -> 0 | K71: =indmat(B71,AD:AD,AE:AE) -> 0 | L71: =indmat(B71,AG:AG,AI:AI) -> 0 | M71: =indmat(B71,AG:AG,AH:AH) -> 0 | N71: =indmat(B71,AJ:AJ,AK:AK) -> 0

Sheet AMZN Stock Price
